{"text_format":"1","workbook":"xlsx","n_sheets":6,"sheets":["Notes","Summary","STP","Trusts","Categories","BS"],"not_rendered":{"charts":0,"images":0,"macros":1,"external_links":1,"defined_names":14,"comments":0,"pivot_tables":0},"unopened":[],"bounds":{"document_bytes":16777216,"sheet_cells":100000,"rows_first":2000,"rows_last":500,"rows_between":2000,"halvings":0,"cell_chars":16384,"cell_head_chars":4096},"cells_cut":0,"cells_raw":0,"read":"whole","date_system":"1900"}

{"sheet":"Notes","index":0,"n_rows":2,"n_cols":8,"rows_kept":2,"cut":false,"hidden":false,"merged":[[1,1,1,4]]}
[]
[null,"Community Health Friends and Family Test (FFT) data - November 2021",null,null,null,null,null,"  Show data for:"]

{"sheet":"Summary","index":1,"n_rows":11,"n_cols":10,"rows_kept":11,"cut":false,"hidden":false,"merged":[[2,1,3,1],[2,4,2,5],[2,6,2,7],[2,8,2,9]]}
[]
[]
[null,"FFT","Number of organisations submitting","Total responses to date","Responses",null,"Percentage Positive",null,"Percentage Negative"]
[null,null,"2021-11-01","2021-11-01","2021-11-01","2021-10-27","2021-11-01","2021-10-27","2021-11-01","2021-10-27"]
[null,"Community Health Overall",145,7563224,78144,70513,0.93496621621621623,0.92814091018677403,3.1186015561015561E-2,3.7085360146355995E-2]
[null,"Community Inpatient Services",63,272501,2058,1834,0.94606413994169092,0.95365321701199568,1.4091350826044704E-2,1.2540894220283533E-2]
[null,"Community Nursing Services",88,934725,10055,10098,0.94490303331675785,0.94216676569617741,1.9293883639980108E-2,2.2380669439492969E-2]
[null,"Rehabilitation and Therapy Services",89,1419341,15128,11257,0.93257535695399263,0.93603979745935861,3.1530936012691697E-2,2.8249089455449943E-2]
[null,"Specialist Services",89,1692678,18920,17189,0.95882663847780125,0.95596020710919771,1.849894291754757E-2,2.0652743033335273E-2]
[null,"Children and Family Services",78,1168057,7827,5982,0.93675737830586436,0.9399866265463056,3.0663089306247605E-2,3.1260448010698764E-2]
[null,"Community Healthcare Other",89,2075922,24156,24153,0.91211293260473592,0.89392622034529867,4.7483026991223712E-2,6.2352502794683892E-2]

{"sheet":"STP","index":2,"n_rows":47,"n_cols":12,"rows_kept":47,"cut":false,"hidden":false,"merged":[[2,6,2,11],[2,0,3,0],[2,1,3,1],[2,2,3,2],[2,3,3,3],[2,4,3,4],[2,5,3,5]]}
[]
[]
["STP Code","STP Name","Total Responses","Total Eligible","Percentage Positive","Percentage Negative","Breakdown of Responses"]
[null,null,null,null,null,null,"Very Good","Good","Neither Good nor Poor","Poor","Very Poor","Don't Know"]
[null,"England (including Independent Sector Providers)",{"$f":"SUM('[1]Organisation Level'!M:M)","v":78144},{"$f":"SUM('[1]Organisation Level'!N:N)","v":2737735},{"$f":"SUM(G5:H5)/SUM(G5:L5)","v":0.93496621621621623},{"$f":"SUM(J5:K5)/SUM(G5:L5)","v":3.1186015561015561E-2},{"$f":"SUM('[1]Organisation Level'!G:G)","v":59716},{"$f":"SUM('[1]Organisation Level'!H:H)","v":13346},{"$f":"SUM('[1]Organisation Level'!I:I)","v":2059},{"$f":"SUM('[1]Organisation Level'!J:J)","v":1020},{"$f":"SUM('[1]Organisation Level'!K:K)","v":1417},{"$f":"SUM('[1]Organisation Level'!L:L)","v":586}]
[null,"England (excluding Independent Sector Providers)",{"$f":"SUMIF('[1]Organisation Level'!$P:$P, \"<>zIS1\", '[1]Organisation Level'!M:M)","v":56193},{"$f":"SUMIF('[1]Organisation Level'!$P:$P, \"<>zIS1\", '[1]Organisation Level'!N:N)","v":2286978},{"$f":"SUM(G6:H6)/SUM(G6:L6)","v":0.94476180307155699},{"$f":"SUM(J6:K6)/SUM(G6:L6)","v":2.4967522645169327E-2},{"$f":"SUMIF('[1]Organisation Level'!$P:$P, \"<>zIS1\", '[1]Organisation Level'!G:G)","v":43541},{"$f":"SUMIF('[1]Organisation Level'!$P:$P, \"<>zIS1\", '[1]Organisation Level'!H:H)","v":9548},{"$f":"SUMIF('[1]Organisation Level'!$P:$P, \"<>zIS1\", '[1]Organisation Level'!I:I)","v":1283},{"$f":"SUMIF('[1]Organisation Level'!$P:$P, \"<>zIS1\", '[1]Organisation Level'!J:J)","v":607},{"$f":"SUMIF('[1]Organisation Level'!$P:$P, \"<>zIS1\", '[1]Organisation Level'!K:K)","v":796},{"$f":"SUMIF('[1]Organisation Level'!$P:$P, \"<>zIS1\", '[1]Organisation Level'!L:L)","v":418}]
[null,"Selection (excluding suppressed data)",{"$f":"SUBTOTAL(9,C8:C340)","v":78144},{"$f":"SUBTOTAL(9,D8:D340)","v":2737735},{"$f":"IFERROR((G7+H7)/SUM(G7:L7), \"-\")","v":0.93493290996619893},{"$f":"IFERROR((J7+K7)/SUM(G7:L7), \"-\")","v":3.1201987094130901E-2},{"$f":"SUBTOTAL(9,G8:G340)","v":59679},{"$f":"SUBTOTAL(9,H8:H340)","v":13343},2059,1020,1417,586]
["QE1","HEALTHIER LANCASHIRE AND SOUTH CUMBRIA",3083,132689,0.95329224781057409,1.7191047680830358E-2,2553,386,51,25,28,40]
["QF7","SOUTH YORKSHIRE AND BASSETLAW STP",774,146612,0.94444444444444442,2.3255813953488372E-2,664,67,23,7,11,2]
["QGH","HEREFORDSHIRE AND WORCESTERSHIRE STP",233,18545,0.93133047210300424,3.4334763948497854E-2,193,24,5,2,6,3]
["QH8","MID AND SOUTH ESSEX STP",10,17718,1,0,"*","*","*","*","*","*"]
["QHL","BIRMINGHAM AND SOLIHULL STP",1011,65792,0.95548961424332346,2.4727992087042534E-2,842,124,14,9,16,6]
["QHM","CUMBRIA AND NORTH EAST STP",1986,123646,0.96424974823766363,1.7119838872104734E-2,1708,207,32,18,16,5]
["QJ2","JOINED UP CARE DERBYSHIRE STP",1324,38975,0.89123867069486407,4.0785498489425982E-2,916,264,78,26,28,12]
["QJG","SUFFOLK AND NORTH EAST ESSEX ICS",412,12386,0.95873786407766992,1.9417475728155338E-2,340,55,8,2,6,1]
["QJK","DEVON STP",378,40681,0.96296296296296291,1.0582010582010581E-2,328,36,6,2,2,4]
["QJM","LINCOLNSHIRE STP",1129,25999,0.82816651904340122,9.7431355181576612E-2,768,167,68,49,61,16]
["QK1","LEICESTER, LEICESTERSHIRE AND RUTLAND STP",2769,90665,0.86421090646442755,6.3921993499458291E-2,1887,506,143,64,113,56]
["QKK","OUR HEALTHIER SOUTH EAST LONDON STP",2236,50703,0.93112701252236141,2.6833631484794274E-2,1591,491,84,25,35,10]
["QKS","KENT AND MEDWAY STP",4385,65000,0.97879133409350061,6.6134549600912204E-3,3878,414,56,14,15,8]
["QM7","HERTFORDSHIRE AND WEST ESSEX STP",506,47741,0.95059288537549402,2.5691699604743084E-2,435,46,11,11,2,1]
["QMF","EAST LONDON HEALTH & CARE PARTNERSHIP (STP)",4161,171825,0.95794280221100692,1.6822879115597211E-2,1345,2641,82,30,40,23]
["QMJ","NORTH LONDON PARTNERS IN HEALTH & CARE (STP)",1040,74881,0.97307692307692306,9.6153846153846159E-3,854,158,17,3,7,1]
["QMM","NORFOLK AND WAVENEY HEALTH & CARE PARTNERSHIP (STP)",352,23037,0.95454545454545459,1.4204545454545454E-2,274,62,9,2,3,2]
["QNC","STAFFORDSHIRE & STOKE ON TRENT STP",643,46405,0.95956454121306378,2.4883359253499222E-2,467,150,10,1,15,0]
["QNQ","FRIMLEY HEALTH & CARE (STP)",1744,31114,0.93291284403669728,3.6123853211009173E-2,1405,222,41,33,30,13]
["QNX","SUSSEX HEALTH AND CARE PARTNERSHIP",1312,93560,0.97484756097560976,9.1463414634146336E-3,1137,142,20,2,10,1]
["QOC","SHROPSHIRE AND TELFORD AND WREKIN STP",407,23343,0.95577395577395574,1.2285012285012284E-2,315,74,8,5,0,5]
["QOP","GREATER MANCHESTER HEALTH & SOCIAL CARE PARTNERSHIP",2071,76387,0.95219700627716075,1.9797199420569771E-2,1737,235,36,19,22,22]
["QOQ","HUMBER, COAST AND VALE STP",144,21270,0.9375,3.4722222222222224E-2,108,27,2,3,2,2]
["QPM","NORTHAMPTONSHIRE STP",355,39997,0.93802816901408448,3.0985915492957747E-2,294,39,6,0,11,5]
["QR1","GLOUCESTERSHIRE STP",1367,16589,0.96269202633504025,1.755669348939283E-2,1163,153,23,11,13,4]
["QRL","HAMPSHIRE AND THE ISLE OF WIGHT STP",1863,85808,0.94793344068706387,2.6838432635534086E-2,1517,249,34,25,25,13]
["QRV","NORTH WEST LONDON HEALTH & CARE PARTNERSHIP (STP)",2433,98149,0.96752979860254829,1.2330456226880395E-2,2104,250,46,14,16,3]
["QSL","SOMERSET STP",30,22341,1,0,"*","*","*","*","*","*"]
["QT1","NOTTINGHAM AND NOTTINGHAMSHIRE HEALTH AND CARE STP",81,40538,0.9135802469135802,3.7037037037037035E-2,62,12,4,2,1,0]
["QT6","CORNWALL AND THE ISLES OF SCILLY HEALTH & SOCIAL CARE PARTNERSHIP (STP)",1109,31353,0.9413886384129847,3.6068530207394048E-2,905,139,23,24,16,2]
["QU9","BUCKINGHAMSHIRE, OXFORDSHIRE AND BERKSHIRE WEST STP",1515,37888,0.91881188118811885,3.3003300330033E-2,1185,207,41,18,32,32]
["QUA","THE BLACK COUNTRY AND WEST BIRMINGHAM STP",1232,29519,0.91477272727272729,2.353896103896104E-2,975,152,39,15,14,37]
["QUE","CAMBRIDGESHIRE AND PETERBOROUGH STP",2418,80208,0.95822994210090984,2.6468155500413565E-2,2011,306,34,35,29,3]
["QVV","DORSET STP",1976,42165,0.94534412955465585,2.5303643724696356E-2,1674,194,40,17,33,18]
["QWE","SOUTH WEST LONDON HEALTH & CARE PARTNERSHIP (STP)",1435,62146,0.97073170731707314,1.1149825783972125E-2,1092,301,19,7,9,7]
["QWO","WEST YORKSHIRE AND HARROGATE HEALTH & CARE PARTNERSHIP (STP)",3428,96123,0.96966161026837805,1.2835472578763127E-2,2930,394,44,21,23,16]
["QWU","COVENTRY AND WARWICKSHIRE STP",223,8479,0.94170403587443952,4.9327354260089683E-2,184,26,1,0,11,1]
["QXU","SURREY HEARTLANDS HEALTH & CARE PARTNERSHIP (STP)",83,4302,0.98795180722891562,1.2048192771084338E-2,76,6,0,1,0,0]
["QYG","CHESHIRE AND MERSEYSIDE STP",4535,152399,0.92745314222712238,3.5281146637265712E-2,3587,619,125,65,95,44]
["IS1","Independent Sector Providers",21951,450757,0.90989021001321124,4.7104915493599381E-2,16175,3798,776,413,621,168]

{"sheet":"Trusts","index":3,"n_rows":152,"n_cols":19,"rows_kept":152,"cut":false,"hidden":false,"merged":[[2,6,3,6],[2,7,2,12],[2,13,2,18],[2,0,3,0],[2,1,3,1],[2,2,3,2],[2,3,3,3],[2,4,3,4],[2,5,3,5]]}
[]
[]
["STP Code","Trust Code","Trust Name","Total Responses","Total Eligible","Percentage Positive","Percentage Negative","Breakdown of Responses",null,null,null,null,null,"Mode of Collection"]
[null,null,null,null,null,null,null,"Very Good","Good","Neither Good nor Poor","Poor","Very Poor","Don't Know","Mode SMS","Mode Electronic Discharge","Mode Paper Home","Mode Telephone","Mode Online","Mode Other"]
[null,null,"England (including Independent Sector Providers)",78144,2737735,0.93496621621621623,3.1186015561015561E-2,59716,13346,2059,1020,1417,586,22962,4521,21620,3925,22690,2426]
[null,null,"England (excluding Independent Sector Providers)",56193,2286978,0.94476180307155699,2.4967522645169327E-2,43541,9548,1283,607,796,418,16102,4420,15894,3611,13741,2425]
[null,null,"Selection (excluding suppressed data)",{"$f":"SUBTOTAL(9,D8:D294)","v":78144},{"$f":"SUBTOTAL(9,E8:E294)","v":2737735},{"$f":"IFERROR((H7+I7)/SUM(H7:M7), \"-\")","v":0.93575882760514029},{"$f":"IFERROR((K7+L7)/SUM(H7:M7), \"-\")","v":3.0996300315061509E-2},{"$f":"SUBTOTAL(9,H8:H294)","v":58534},13045,1975,991,1380,568,21367,4521,21618,3925,22636,2426]
["QE1","RXL","BLACKPOOL TEACHING HOSPITALS NHS FOUNDATION TRUST",916,22653,0.95851528384279472,2.1834061135371178E-2,781,97,16,12,8,2,131,0,478,0,307,0]
["QE1","RXR","EAST LANCASHIRE HOSPITALS NHS TRUST",664,49244,0.91265060240963858,3.1626506024096383E-2,486,120,16,8,13,21,402,0,193,21,48,0]
["QE1","RW5","LANCASHIRE & SOUTH CUMBRIA NHS FOUNDATION TRUST",752,55642,0.98404255319148937,3.9893617021276593E-3,684,56,8,2,1,1,0,0,0,0,752,0]
["QE1","RTX","UNIVERSITY HOSPITALS OF MORECAMBE BAY NHS FOUNDATION TRUST",751,5150,0.95206391478029295,1.1984021304926764E-2,602,113,11,3,6,16,504,0,0,247,0,0]
["QF7","RXE","ROTHERHAM DONCASTER AND SOUTH HUMBER NHS FOUNDATION TRUST",262,113185,0.99236641221374045,7.6335877862595417E-3,251,9,0,0,2,0,0,150,112,0,0,0]
["QF7","RCU","SHEFFIELD CHILDREN'S NHS FOUNDATION TRUST",112,6718,0.9642857142857143,8.9285714285714281E-3,102,6,3,1,0,0,0,0,0,0,112,0]
["QF7","RHQ","SHEFFIELD TEACHING HOSPITALS NHS FOUNDATION TRUST",266,1425,0.90225563909774431,4.5112781954887216E-2,197,43,12,5,7,2,128,0,38,0,87,13]
["QF7","RFR","THE ROTHERHAM NHS FOUNDATION TRUST",134,25284,0.91791044776119401,2.2388059701492536E-2,114,9,8,1,2,0,0,0,42,0,92,0]
["QGH","R1A","HEREFORDSHIRE AND WORCESTERSHIRE HEALTH AND CARE NHS TRUST",230,13217,0.93043478260869561,3.4782608695652174E-2,"*","*","*","*","*","*","*","*","*","*","*","*"]
["QGH","RLQ","WYE VALLEY NHS TRUST",3,5328,"*","*","*","*","*","*","*","*","*","*","*","*","*","*"]
["QH8","R1L","ESSEX PARTNERSHIP UNIVERSITY NHS FOUNDATION TRUST",10,17718,1,0,"*","*","*","*","*","*","*","*","*","*","*","*"]
["QHL","RYW","BIRMINGHAM COMMUNITY HEALTHCARE NHS FOUNDATION TRUST",985,60389,0.95431472081218272,2.5380710659898477E-2,817,123,14,9,16,6,1,0,612,0,372,0]
["QHL","RRK","UNIVERSITY HOSPITALS BIRMINGHAM NHS FOUNDATION TRUST",26,5403,1,0,25,1,0,0,0,0,0,0,26,0,0,0]
["QHM","RXP","COUNTY DURHAM AND DARLINGTON NHS FOUNDATION TRUST",0,659,"NA","NA",0,0,0,0,0,0,0,0,0,0,0,0]
["QHM","RR7","GATESHEAD HEALTH NHS FOUNDATION TRUST",0,42878,"NA","NA",0,0,0,0,0,0,0,0,0,0,0,0]
["QHM","RNN","NORTH CUMBRIA INTEGRATED CARE NHS FOUNDATION TRUST",664,13959,0.98644578313253017,3.0120481927710845E-3,603,52,7,1,1,0,174,0,392,0,98,0]
["QHM","RVW","NORTH TEES AND HARTLEPOOL NHS FOUNDATION TRUST",194,11580,0.97422680412371132,5.1546391752577319E-3,170,19,2,1,0,2,136,0,58,0,0,0]
["QHM","RTF","NORTHUMBRIA HEALTHCARE NHS FOUNDATION TRUST",608,34814,0.91282894736842102,5.0986842105263157E-2,470,85,19,16,15,3,608,0,0,0,0,0]
["QHM","RTR","SOUTH TEES HOSPITALS NHS FOUNDATION TRUST",262,5502,0.98854961832061072,0,230,29,3,0,0,0,46,157,52,0,7,0]
["QHM","R0B","SOUTH TYNESIDE AND SUNDERLAND NHS FOUNDATION TRUST",200,11313,1,0,190,10,0,0,0,0,0,0,193,0,7,0]
["QHM","RTD","THE NEWCASTLE UPON TYNE HOSPITALS NHS FOUNDATION TRUST",58,2941,0.98275862068965514,0,45,12,1,0,0,0,0,0,0,0,58,0]
["QJ2","RY8","DERBYSHIRE COMMUNITY HEALTH SERVICES NHS FOUNDATION TRUST",1321,32502,0.89099167297501891,4.0878122634367901E-2,"*","*","*","*","*","*","*","*","*","*","*","*"]
["QJ2","RXM","DERBYSHIRE HEALTHCARE NHS FOUNDATION TRUST",3,6473,"*","*","*","*","*","*","*","*","*","*","*","*","*","*"]
["QJG","RDE","EAST SUFFOLK AND NORTH ESSEX NHS FOUNDATION TRUST",356,10640,0.9578651685393258,2.247191011235955E-2,301,40,6,2,6,1,0,0,4,0,352,0]
["QJG","RGR","WEST SUFFOLK NHS FOUNDATION TRUST",56,1746,0.9642857142857143,0,39,15,2,0,0,0,0,38,18,0,0,0]
["QJK","RBZ","NORTHERN DEVON HEALTHCARE NHS TRUST",119,4475,0.97478991596638653,8.4033613445378148E-3,108,8,2,1,0,0,0,0,82,0,37,0]
["QJK","RH8","ROYAL DEVON AND EXETER NHS FOUNDATION TRUST",62,13212,0.967741935483871,0,60,0,1,0,0,1,0,0,0,0,62,0]
["QJK","RA9","TORBAY AND SOUTH DEVON NHS FOUNDATION TRUST",147,22770,0.96598639455782309,2.0408163265306121E-2,124,18,2,1,2,0,0,0,147,0,0,0]
["QJK","RK9","UNIVERSITY HOSPITALS PLYMOUTH NHS TRUST",50,224,0.92,0,36,10,1,0,0,3,0,0,50,0,0,0]
["QJM","RY5","LINCOLNSHIRE COMMUNITY HEALTH SERVICES NHS TRUST",1129,25999,0.82816651904340122,9.7431355181576612E-2,768,167,68,49,61,16,812,300,17,0,0,0]
["QK1","RT5","LEICESTERSHIRE PARTNERSHIP NHS TRUST",2769,90665,0.86421090646442755,6.3921993499458291E-2,1887,506,143,64,113,56,2195,144,0,370,60,0]
["QKK","RJ1","GUY'S AND ST THOMAS' NHS FOUNDATION TRUST",334,5838,0.95808383233532934,2.0958083832335328E-2,249,71,6,4,3,1,0,0,195,19,120,0]
["QKK","RJ2","LEWISHAM AND GREENWICH NHS TRUST",782,26326,0.97314578005115093,1.4066496163682864E-2,568,193,10,5,6,0,3,0,20,0,759,0]
["QKK","RPG","OXLEAS NHS FOUNDATION TRUST",1120,18539,0.89375000000000004,3.7499999999999999E-2,774,227,68,16,26,9,669,185,248,0,5,13]
["QKS","RYY","KENT COMMUNITY HEALTH NHS FOUNDATION TRUST",4385,65000,0.97879133409350061,6.6134549600912204E-3,3878,414,56,14,15,8,0,231,2192,181,1781,0]
["QM7","RY4","HERTFORDSHIRE COMMUNITY NHS TRUST",506,47741,0.95059288537549402,2.5691699604743084E-2,435,46,11,11,2,1,194,0,208,0,104,0]
["QMF","R1H","BARTS HEALTH NHS TRUST",0,9922,"NA","NA",0,0,0,0,0,0,0,0,0,0,0,0]
["QMF","RWK","EAST LONDON NHS FOUNDATION TRUST",3006,11150,0.99135063206919494,2.6613439787092482E-3,550,2430,16,3,5,2,58,84,0,0,537,2327]
["QMF","RQX","HOMERTON UNIVERSITY HOSPITAL NHS FOUNDATION TRUST",110,16476,0.96363636363636362,1.8181818181818181E-2,90,16,2,0,2,0,0,7,5,0,98,0]
["QMF","RAT","NORTH EAST LONDON NHS FOUNDATION TRUST",1045,134277,0.86124401913875603,5.7416267942583733E-2,705,195,64,27,33,21,0,0,0,0,1045,0]
["QMJ","RRP","BARNET, ENFIELD AND HARINGEY MENTAL HEALTH NHS TRUST",124,9949,0.94354838709677424,8.0645161290322578E-3,84,33,6,1,0,0,0,0,0,0,124,0]
["QMJ","RV3","CENTRAL AND NORTH WEST LONDON NHS FOUNDATION TRUST",305,39901,0.97049180327868856,6.5573770491803279E-3,227,69,6,1,1,1,0,0,174,0,131,0]
["QMJ","RKE","WHITTINGTON HEALTH NHS TRUST",611,25031,0.98036006546644849,1.1456628477905073E-2,543,56,5,1,6,0,2,570,8,6,25,0]
["QMM","RY3","NORFOLK COMMUNITY HEALTH AND CARE NHS TRUST",352,23037,0.95454545454545459,1.4204545454545454E-2,274,62,9,2,3,2,0,50,153,0,149,0]
["QNC","RRE","MIDLANDS PARTNERSHIP NHS FOUNDATION TRUST",643,46405,0.95956454121306378,2.4883359253499222E-2,467,150,10,1,15,0,0,82,0,0,561,0]
["QNQ","RWX","BERKSHIRE HEALTHCARE NHS FOUNDATION TRUST",1680,30875,0.93154761904761907,3.7499999999999999E-2,1348,217,39,33,30,13,1137,20,175,0,348,0]
["QNQ","RDU","FRIMLEY HEALTH NHS FOUNDATION TRUST",64,239,0.96875,0,57,5,2,0,0,0,0,0,64,0,0,0]
["QNX","RXC","EAST SUSSEX HEALTHCARE NHS TRUST",282,45650,0.99290780141843971,0,255,25,1,0,0,1,0,10,266,0,6,0]
["QNX","RDR","SUSSEX COMMUNITY NHS FOUNDATION TRUST",1030,47910,0.96990291262135919,1.1650485436893204E-2,882,117,19,2,10,0,0,0,1030,0,0,0]
["QOC","R1D","SHROPSHIRE COMMUNITY HEALTH NHS TRUST",407,23343,0.95577395577395574,1.2285012285012284E-2,315,74,8,5,0,5,1,280,91,0,35,0]
["QOP","RMC","BOLTON NHS FOUNDATION TRUST",537,13207,0.9906890130353817,0,494,38,4,0,0,1,0,177,360,0,0,0]
["QOP","R0A","MANCHESTER UNIVERSITY NHS FOUNDATION TRUST",473,43186,0.95771670190274838,1.9027484143763214E-2,383,70,7,2,7,4,164,18,147,144,0,0]
["QOP","RWJ","STOCKPORT NHS FOUNDATION TRUST",546,16593,0.94688644688644685,1.8315018315018316E-2,461,56,16,4,6,3,435,0,4,59,0,48]
["QOP","RRF","WRIGHTINGTON, WIGAN AND LEIGH NHS FOUNDATION TRUST",515,3401,0.91262135922330101,4.2718446601941747E-2,399,71,9,13,9,14,398,0,14,103,0,0]
["QOQ","RCD","HARROGATE AND DISTRICT NHS FOUNDATION TRUST",74,6933,0.90540540540540537,5.4054054054054057E-2,49,18,2,2,2,1,0,0,0,74,0,0]
["QOQ","RV9","HUMBER TEACHING NHS FOUNDATION TRUST",47,10210,0.95744680851063835,2.1276595744680851E-2,40,5,0,1,0,1,0,0,47,0,0,0]
["QOQ","RCB","YORK AND SCARBOROUGH TEACHING HOSPITALS NHS FOUNDATION TRUST",23,4127,1,0,19,4,0,0,0,0,0,0,23,0,0,0]
["QPM","RP1","NORTHAMPTONSHIRE HEALTHCARE NHS FOUNDATION TRUST",355,39997,0.93802816901408448,3.0985915492957747E-2,294,39,6,0,11,5,0,38,227,0,90,0]
["QR1","RTQ","GLOUCESTERSHIRE HEALTH AND CARE NHS FOUNDATION TRUST",1367,16589,0.96269202633504025,1.755669348939283E-2,1163,153,23,11,13,4,0,0,0,0,1367,0]
["QRL","R1F","ISLE OF WIGHT NHS TRUST",72,7365,1,0,60,12,0,0,0,0,0,0,72,0,0,0]
["QRL","R1C","SOLENT NHS TRUST",1725,41935,0.94434782608695655,2.8985507246376812E-2,1396,233,34,25,25,12,1194,0,448,0,83,0]
["QRL","RW1","SOUTHERN HEALTH NHS FOUNDATION TRUST",66,36508,0.98484848484848486,0,61,4,0,0,0,1,0,0,9,0,57,0]
["QRV","RYX","CENTRAL LONDON COMMUNITY HEALTHCARE NHS TRUST",1811,82311,0.96852567642186638,1.1043622308117063E-2,1559,195,35,12,8,2,0,75,669,1067,0,0]
["QRV","RQM","CHELSEA AND WESTMINSTER HOSPITAL NHS FOUNDATION TRUST",291,3302,0.96219931271477666,1.0309278350515464E-2,261,19,7,1,2,1,274,0,0,0,17,0]
["QRV","R1K","LONDON NORTH WEST UNIVERSITY HEALTHCARE NHS TRUST",183,722,0.97267759562841527,2.185792349726776E-2,171,7,1,0,4,0,0,0,183,0,0,0]
["QRV","RKL","WEST LONDON NHS TRUST",148,11814,0.95945945945945943,2.0270270270270271E-2,113,29,3,1,2,0,0,0,131,0,17,0]
["QSL","RH5","SOMERSET NHS FOUNDATION TRUST",30,22341,1,0,"*","*","*","*","*","*","*","*","*","*","*","*"]
["QT1","RX1","NOTTINGHAM UNIVERSITY HOSPITALS NHS TRUST",0,832,"NA","NA",0,0,0,0,0,0,0,0,0,0,0,0]
["QT1","RHA","NOTTINGHAMSHIRE HEALTHCARE NHS FOUNDATION TRUST",81,39706,0.9135802469135802,3.7037037037037035E-2,62,12,4,2,1,0,0,0,81,0,0,0]
["QT6","RJ8","CORNWALL PARTNERSHIP NHS FOUNDATION TRUST",1109,31353,0.9413886384129847,3.6068530207394048E-2,905,139,23,24,16,2,868,63,132,0,46,0]
["QU9","RXQ","BUCKINGHAMSHIRE HEALTHCARE NHS TRUST",774,5972,0.89534883720930236,3.2299741602067181E-2,564,129,35,13,12,21,479,0,0,295,0,0]
["QU9","RNU","OXFORD HEALTH NHS FOUNDATION TRUST",741,31916,0.94331983805668018,3.3738191632928474E-2,621,78,6,5,20,11,0,220,473,0,48,0]
["QUA","TAJ","BLACK COUNTRY HEALTHCARE NHS FOUNDATION TRUST",23,4265,1,0,22,1,0,0,0,0,0,0,0,0,0,23]
["QUA","RNA","THE DUDLEY GROUP NHS FOUNDATION TRUST",333,10517,0.86486486486486491,2.4024024024024024E-2,267,21,11,2,6,26,278,0,50,0,5,0]
["QUA","RL4","THE ROYAL WOLVERHAMPTON NHS TRUST",386,5789,0.92227979274611394,2.5906735751295335E-2,293,63,9,4,6,11,51,0,0,334,1,0]
["QUA","RBK","WALSALL HEALTHCARE NHS TRUST",490,8948,0.93877551020408168,2.2448979591836733E-2,393,67,19,9,2,0,0,29,0,461,0,0]
["QUE","RT1","CAMBRIDGESHIRE AND PETERBOROUGH NHS FOUNDATION TRUST",460,26074,0.97173913043478266,2.391304347826087E-2,386,61,2,8,3,0,7,20,173,0,259,1]
["QUE","RYV","CAMBRIDGESHIRE COMMUNITY SERVICES NHS TRUST",1958,54134,0.9550561797752809,2.7068437180796732E-2,1625,245,32,27,26,3,0,1067,355,102,434,0]
["QVV","RDY","DORSET HEALTHCARE UNIVERSITY NHS FOUNDATION TRUST",1976,42165,0.94534412955465585,2.5303643724696356E-2,1674,194,40,17,33,18,232,118,135,0,1491,0]
["QWE","RJ6","CROYDON HEALTH SERVICES NHS TRUST",75,14741,1,0,74,1,0,0,0,0,75,0,0,0,0,0]
["QWE","RVR","EPSOM AND ST HELIER UNIVERSITY HOSPITALS NHS TRUST",396,7779,0.9747474747474747,2.5252525252525255E-3,352,34,3,0,1,6,0,11,223,0,162,0]
["QWE","RY9","HOUNSLOW AND RICHMOND COMMUNITY HEALTHCARE NHS TRUST",947,37851,0.96726504751847941,1.5839493136219639E-2,653,263,15,7,8,1,0,21,557,0,369,0]
["QWE","RJ7","ST GEORGE'S UNIVERSITY HOSPITALS NHS FOUNDATION TRUST",17,1775,0.94117647058823528,0,13,3,1,0,0,0,0,0,16,0,1,0]
["QWO","RCF","AIREDALE NHS FOUNDATION TRUST",187,1558,0.89839572192513373,4.2780748663101602E-2,139,29,9,3,5,2,187,0,0,0,0,0]
["QWO","TAD","BRADFORD DISTRICT CARE NHS FOUNDATION TRUST",867,40188,0.97577854671280273,8.0738177623990767E-3,737,109,12,5,2,2,0,245,405,54,163,0]
["QWO","RWY","CALDERDALE AND HUDDERSFIELD NHS FOUNDATION TRUST",143,11926,0.95804195804195802,6.993006993006993E-3,83,54,1,0,1,4,0,0,0,0,143,0]
["QWO","RY6","LEEDS COMMUNITY HEALTHCARE NHS TRUST",273,10733,0.95604395604395609,2.197802197802198E-2,227,34,4,4,2,2,0,0,173,0,100,0]
["QWO","RXF","MID YORKSHIRE HOSPITALS NHS TRUST",1614,19834,0.98760842627013634,5.5762081784386614E-3,1474,120,8,4,5,3,5,0,1414,0,195,0]
["QWO","RXG","SOUTH WEST YORKSHIRE PARTNERSHIP NHS FOUNDATION TRUST",344,11884,0.92441860465116277,3.7790697674418602E-2,270,48,10,5,8,3,225,4,40,0,75,0]
["QWU","RYG","COVENTRY AND WARWICKSHIRE PARTNERSHIP NHS TRUST",0,0,"NA","NA",0,0,0,0,0,0,0,0,0,0,0,0]
["QWU","RJC","SOUTH WARWICKSHIRE NHS FOUNDATION TRUST",223,8479,0.94170403587443952,4.9327354260089683E-2,184,26,1,0,11,1,0,0,204,0,19,0]
["QXU","RA2","ROYAL SURREY COUNTY HOSPITAL NHS FOUNDATION TRUST",83,4302,0.98795180722891562,1.2048192771084338E-2,76,6,0,1,0,0,2,0,77,0,4,0]
["QYG","RBS","ALDER HEY CHILDREN'S NHS FOUNDATION TRUST",120,382,0.9,7.4999999999999997E-2,95,13,3,4,5,0,114,6,0,0,0,0]
["QYG","RY2","BRIDGEWATER COMMUNITY HEALTHCARE NHS FOUNDATION TRUST",2071,19655,0.94109126026074363,2.8488652824722356E-2,1680,269,42,23,36,21,1148,0,893,0,30,0]
["QYG","RXA","CHESHIRE AND WIRRAL PARTNERSHIP NHS FOUNDATION TRUST",51,18057,0.84313725490196079,7.8431372549019607E-2,"*","*","*","*","*","*","*","*","*","*","*","*"]
["QYG","RJN","EAST CHESHIRE NHS TRUST",180,2312,0.89444444444444449,2.7777777777777776E-2,136,25,9,3,2,5,106,0,0,74,0,0]
["QYG","RBQ","LIVERPOOL HEART AND CHEST HOSPITAL NHS FOUNDATION TRUST",0,0,"NA","NA",0,0,0,0,0,0,0,0,0,0,0,0]
["QYG","RW4","MERSEY CARE NHS FOUNDATION TRUST",851,74319,0.95887191539365457,8.2256169212690956E-3,696,120,23,5,2,5,0,0,808,0,43,0]
["QYG","RBT","MID CHESHIRE HOSPITALS NHS FOUNDATION TRUST",525,6066,0.92380952380952386,3.619047619047619E-2,427,58,19,8,11,2,519,0,6,0,0,0]
["QYG","RVY","SOUTHPORT AND ORMSKIRK HOSPITAL NHS TRUST",3,1468,"*","*","*","*","*","*","*","*","*","*","*","*","*","*"]
["QYG","RY7","WIRRAL COMMUNITY HEALTH AND CARE NHS FOUNDATION TRUST",734,30140,0.8732970027247956,7.7656675749318796E-2,517,124,28,21,36,8,545,0,0,0,189,0]
["IS1","NEC","ALLIED HEALTH PROFESSIONALS SUFFOLK CIC",191,11997,0.97905759162303663,1.5706806282722512E-2,168,19,1,1,2,0,0,0,25,0,166,0]
["IS1","8J094","BADGER LTD",68,5900,0.97058823529411764,1.4705882352941176E-2,56,10,1,0,1,0,0,0,68,0,0,0]
["IS1","DVG","BARDOC",38,5529,0.86842105263157898,2.6315789473684209E-2,20,13,4,0,1,0,0,0,38,0,0,0]
["IS1","NQV","BROMLEY HEALTHCARE",307,21560,0.91530944625407162,1.9543973941368076E-2,251,30,4,1,5,16,0,0,50,0,257,0]
["IS1","NL3","CARE PLUS GROUP",63,3405,0.96825396825396826,0,53,8,1,0,0,1,0,0,63,0,0,0]
["IS1","Q8V5K","CITIZENS ADVICE STOCKPORT, OLDHAM, ROCHDALE",5,198,1,0,5,0,0,0,0,0,0,0,2,0,3,0]
["IS1","NNF","CITY HEALTH CARE PARTNERSHIP CIC",1911,28419,0.97540554683411829,1.0465724751439037E-2,1642,222,21,10,10,6,0,0,486,0,1425,0]
["IS1","DCF","CLINICAL PARTNERSHIP",45,280,0.97777777777777775,0,43,1,1,0,0,0,0,0,0,0,45,0]
["IS1","NMG","CONNECT HEALTH LIMITED",3188,45432,0.8638644918444166,5.4893350062735255E-2,2138,616,215,79,96,44,2828,0,0,270,90,0]
["IS1","NY6","CONNECT HEALTH PAIN SERVICES",547,2036,0.74588665447897629,0.14442413162705667,281,127,46,27,52,14,547,0,0,0,0,0]
["IS1","NTV","CSH SURREY",26,20244,0.84615384615384615,3.8461538461538464E-2,19,3,2,0,1,1,0,5,20,0,1,0]
["IS1","8HE44","DR KERSHAWS HOSPICE",15,66,1,0,15,0,0,0,0,0,0,0,15,0,0,0]
["IS1","NAX","EAST COAST COMMUNITY HEALTHCARE C.I.C",80,9480,0.96250000000000002,3.7499999999999999E-2,68,9,0,0,3,0,0,0,68,0,12,0]
["IS1","DY6","EASTLEIGH SOUTHERN PARISHES NETWORK LTD",104,257,0.79807692307692313,0.15384615384615385,69,14,5,5,11,0,104,0,0,0,0,0]
["IS1","NDJ","FIRST COMMUNITY HEALTH AND CARE CIC",139,6779,0.90647482014388492,2.1582733812949641E-2,112,14,3,0,3,7,0,0,115,0,24,0]
["IS1","NDK","FRESHNEY PELHAM CARE LIMITED",43,55,1,0,38,5,0,0,0,0,0,0,43,0,0,0]
["IS1","NWV01","GP CARE UK",167,696,0.9880239520958084,1.1976047904191617E-2,145,20,0,2,0,0,0,0,167,0,0,0]
["IS1","NHA","INSIDEVUE LIMITED",91,91,0.95604395604395609,1.098901098901099E-2,69,18,3,1,0,0,91,0,0,0,0,0]
["IS1","NLE01","LANCASTER HOUSE CONSULTING DIAGNOSTICS SURGICAL LTD HQ",1345,1345,0.971003717472119,6.6914498141263943E-3,832,474,30,9,0,0,0,0,1345,0,0,0]
["IS1","NR5","LIVEWELL SOUTHWEST",240,7740,0.96250000000000002,4.1666666666666666E-3,204,27,6,1,0,2,10,0,214,0,16,0]
["IS1","DAY","LLR PROVIDER COMPANY LTD",975,6799,0.98461538461538467,0,865,95,15,0,0,0,0,0,975,0,0,0]
["IS1","NL8","LOCALA COMMUNITY PARTNERSHIPS CIC",2193,28600,0.96443228454172369,1.7783857729138167E-2,1908,207,38,18,21,1,0,0,0,0,2193,0]
["IS1","NCE","MASTERCALL HEALTHCARE",394,19962,0.64720812182741116,0.26903553299492383,161,94,27,21,85,6,394,0,0,0,0,0]
["IS1","NQ7","MEDWAY COMMUNITY HEALTHCARE",569,15864,0.89279437609841827,4.7451669595782071E-2,393,115,31,10,17,3,0,7,28,0,534,0]
["IS1","ARA","MID HAMPSHIRE HEALTHCARE LIMITED",82,82,0.93902439024390238,3.6585365853658534E-2,71,6,2,2,1,0,82,0,0,0,0,0]
["IS1","NPH","MILTON KEYNES URGENT CARE SERVICES CIC HQ",663,8020,0.79788838612368029,0.11613876319758673,326,203,51,29,48,6,0,0,0,0,663,0]
["IS1","AT7H","NEIGHBOURHOOD CARE LIMITED",21,27,1,0,21,0,0,0,0,0,0,0,0,21,0,0]
["IS1","NHX","NORTH HAMPSHIRE URGENT CARE",55,7816,0.94545454545454544,0,37,15,3,0,0,0,0,0,55,0,0,0]
["IS1","NR3","NOTTINGHAM CITYCARE PARTNERSHIP",240,14977,0.8,0.1,141,51,22,6,18,2,174,16,50,0,0,0]
["IS1","NQH","NOVUS HEALTH LTD",562,4436,0.90569395017793597,4.8042704626334518E-2,430,79,23,13,14,3,0,0,234,0,328,0]
["IS1","NLF","PENNINE MUSCULOSKELETAL PARTNERSHIP (ICATS)",775,5848,0.93419354838709678,1.935483870967742E-2,630,94,29,9,6,7,775,0,0,0,0,0]
["IS1","NTP","PRACTICE PLUS GROUP",1298,27559,0.7380585516178737,0.19337442218798151,674,284,81,107,144,8,0,0,87,0,1211,0]
["IS1","NQA","PROVIDE",1093,12044,0.96889295516925888,1.6468435498627629E-2,966,93,14,7,11,2,0,0,0,0,1093,0]
["IS1","NNC","SOLENT MEDICAL SERVICES LIMITED",12,888,1,0,12,0,0,0,0,0,0,0,12,0,0,0]
["IS1","NDL","SUFFOLK GP FEDERATION",755,10167,0.89403973509933776,5.8278145695364242E-2,551,124,32,23,21,4,755,0,0,0,0,0]
["IS1","NYG","SUSSEX COMMUNITY DERMATOLOGY SERVICE",188,8725,0.99468085106382975,0,112,75,1,0,0,0,0,0,0,0,188,0]
["IS1","NGX","TAURUS HEALTHCARE LTD",125,1860,0.92800000000000005,3.2000000000000001E-2,96,20,5,2,2,0,125,0,0,0,0,0]
["IS1","NN1","THE ROYAL HOSPITAL FOR NEURO-DISABILITY",5,7,1,0,4,1,0,0,0,0,0,0,5,0,0,0]
["IS1","8HN95","THE STROKE ASSOCIATION",21,21,0.90476190476190477,0,13,6,0,0,0,2,0,0,0,21,0,0]
["IS1","VLN99","TURNING POINT - BIRCHWOOD NURSING HOME",0,16,"NA","NA",0,0,0,0,0,0,0,0,0,0,0,0]
["IS1","NQT","VIRGIN CARE LTD",2347,77493,0.94929697486152531,2.4712398806987643E-2,1853,375,39,18,40,22,919,0,1345,0,83,0]
["IS1","NDA","VIRGIN CARE SERVICES LTD",256,8389,0.94921875,1.953125E-2,205,38,4,5,0,4,20,0,136,0,100,0]
["IS1","AXG","WILTSHIRE HEALTH & CARE",290,18314,0.93103448275862066,4.4827586206896551E-2,233,37,0,6,7,7,36,73,44,2,134,1]
["IS1","NNV","YOUR HEALTHCARE",419,1334,0.95704057279236276,4.7732696897374704E-3,245,156,16,1,1,0,0,0,36,0,383,0]

{"sheet":"Categories","index":4,"n_rows":503,"n_cols":13,"rows_kept":503,"cut":false,"hidden":false,"merged":[[2,6,3,6],[2,7,2,12],[2,0,3,0],[2,1,3,1],[2,2,3,2],[2,3,3,3],[2,4,3,4],[2,5,3,5]]}
[]
[]
["STP Code","Trust Code","Trust Name","Service Category Provided","Total Responses","Percentage Positive","Percentage Negative","Breakdown of Responses"]
[null,null,null,null,null,null,null,"Very Good","Good","Neither Good nor Poor","Poor","Very Poor","Don't Know"]
[null,null,null,"England (including Independent Sector Providers)",78144,0.93496621621621623,3.1186015561015561E-2,59716,13346,2059,1020,1417,586]
[null,null,null,"England (excluding Independent Sector Providers)",56193,0.94476180307155699,2.4967522645169327E-2,43541,9548,1283,607,796,418]
[null,null,null,"Selection (excluding suppressed data)",{"$f":"SUBTOTAL(9,E8:E994)","v":78144},{"$f":"IFERROR((H7+I7)/SUM(H7:M7), \"-\")","v":0.93498195739617418},{"$f":"IFERROR((K7+L7)/SUM(H7:M7), \"-\")","v":3.1273846631400599E-2},{"$f":"SUBTOTAL(9,H8:H994)","v":59061},13229,2039,1015,1403,570]
["QE1","RXL","BLACKPOOL TEACHING HOSPITALS NHS FOUNDATION TRUST","Children & Family Services",17,0.94117647058823528,5.8823529411764705E-2,14,2,0,1,0,0]
["QE1","RXL","BLACKPOOL TEACHING HOSPITALS NHS FOUNDATION TRUST","Community Inpatient Services",44,0.95454545454545459,0,32,10,2,0,0,0]
["QE1","RXL","BLACKPOOL TEACHING HOSPITALS NHS FOUNDATION TRUST","Community Nursing Services",54,1,0,53,1,0,0,0,0]
["QE1","RXL","BLACKPOOL TEACHING HOSPITALS NHS FOUNDATION TRUST","Rehabilitation & Therapy Services",482,0.94605809128630702,2.9045643153526972E-2,406,50,10,8,6,2]
["QE1","RXL","BLACKPOOL TEACHING HOSPITALS NHS FOUNDATION TRUST","Specialist Services",319,0.97178683385579934,1.5673981191222569E-2,276,34,4,3,2,0]
["QE1","RXR","EAST LANCASHIRE HOSPITALS NHS TRUST","Children & Family Services",20,0.95,0,15,4,0,0,0,1]
["QE1","RXR","EAST LANCASHIRE HOSPITALS NHS TRUST","Community Healthcare Other",6,1,0,6,0,0,0,0,0]
["QE1","RXR","EAST LANCASHIRE HOSPITALS NHS TRUST","Community Inpatient Services",83,0.92771084337349397,0,57,20,0,0,0,6]
["QE1","RXR","EAST LANCASHIRE HOSPITALS NHS TRUST","Community Nursing Services",404,0.9133663366336634,3.4653465346534656E-2,296,73,12,5,9,9]
["QE1","RXR","EAST LANCASHIRE HOSPITALS NHS TRUST","Rehabilitation & Therapy Services",143,0.90909090909090906,4.195804195804196E-2,108,22,4,3,3,3]
["QE1","RXR","EAST LANCASHIRE HOSPITALS NHS TRUST","Specialist Services",8,0.625,0.125,4,1,0,0,1,2]
["QE1","RW5","LANCASHIRE & SOUTH CUMBRIA NHS FOUNDATION TRUST","Children & Family Services",12,0.91666666666666663,0,10,1,1,0,0,0]
["QE1","RW5","LANCASHIRE & SOUTH CUMBRIA NHS FOUNDATION TRUST","Community Inpatient Services",5,1,0,4,1,0,0,0,0]
["QE1","RW5","LANCASHIRE & SOUTH CUMBRIA NHS FOUNDATION TRUST","Community Nursing Services",418,0.97846889952153115,7.1770334928229667E-3,376,33,5,2,1,1]
["QE1","RW5","LANCASHIRE & SOUTH CUMBRIA NHS FOUNDATION TRUST","Rehabilitation & Therapy Services",47,0.97872340425531912,0,39,7,1,0,0,0]
["QE1","RW5","LANCASHIRE & SOUTH CUMBRIA NHS FOUNDATION TRUST","Specialist Services",270,0.99629629629629635,0,255,14,1,0,0,0]
["QE1","RTX","UNIVERSITY HOSPITALS OF MORECAMBE BAY NHS FOUNDATION TRUST","Community Healthcare Other",21,0.8571428571428571,4.7619047619047616E-2,"*","*","*","*","*","*"]
["QE1","RTX","UNIVERSITY HOSPITALS OF MORECAMBE BAY NHS FOUNDATION TRUST","Community Inpatient Services",3,"*","*","*","*","*","*","*","*"]
["QE1","RTX","UNIVERSITY HOSPITALS OF MORECAMBE BAY NHS FOUNDATION TRUST","Community Nursing Services",210,0.96190476190476193,4.7619047619047623E-3,159,43,4,1,0,3]
["QE1","RTX","UNIVERSITY HOSPITALS OF MORECAMBE BAY NHS FOUNDATION TRUST","Rehabilitation & Therapy Services",41,0.92682926829268297,0,30,8,0,0,0,3]
["QE1","RTX","UNIVERSITY HOSPITALS OF MORECAMBE BAY NHS FOUNDATION TRUST","Specialist Services",476,0.95378151260504207,1.4705882352941176E-2,394,60,6,2,5,9]
["QF7","RXE","ROTHERHAM DONCASTER AND SOUTH HUMBER NHS FOUNDATION TRUST","Children & Family Services",179,0.994413407821229,5.5865921787709499E-3,173,5,0,0,1,0]
["QF7","RXE","ROTHERHAM DONCASTER AND SOUTH HUMBER NHS FOUNDATION TRUST","Community Healthcare Other",67,0.9850746268656716,1.4925373134328358E-2,64,2,0,0,1,0]
["QF7","RXE","ROTHERHAM DONCASTER AND SOUTH HUMBER NHS FOUNDATION TRUST","Community Inpatient Services",1,"*","*","*","*","*","*","*","*"]
["QF7","RXE","ROTHERHAM DONCASTER AND SOUTH HUMBER NHS FOUNDATION TRUST","Community Nursing Services",9,1,0,8,1,0,0,0,0]
["QF7","RXE","ROTHERHAM DONCASTER AND SOUTH HUMBER NHS FOUNDATION TRUST","Rehabilitation & Therapy Services",2,"*","*","*","*","*","*","*","*"]
["QF7","RXE","ROTHERHAM DONCASTER AND SOUTH HUMBER NHS FOUNDATION TRUST","Specialist Services",4,"*","*","*","*","*","*","*","*"]
["QF7","RCU","SHEFFIELD CHILDREN'S NHS FOUNDATION TRUST","Community Nursing Services",112,0.9642857142857143,8.9285714285714281E-3,102,6,3,1,0,0]
["QF7","RHQ","SHEFFIELD TEACHING HOSPITALS NHS FOUNDATION TRUST","Community Healthcare Other",39,0.69230769230769229,0.20512820512820512,16,11,4,3,5,0]
["QF7","RHQ","SHEFFIELD TEACHING HOSPITALS NHS FOUNDATION TRUST","Community Inpatient Services",12,0.91666666666666663,0,8,3,0,0,0,1]
["QF7","RHQ","SHEFFIELD TEACHING HOSPITALS NHS FOUNDATION TRUST","Community Nursing Services",25,0.92,0,21,2,2,0,0,0]
["QF7","RHQ","SHEFFIELD TEACHING HOSPITALS NHS FOUNDATION TRUST","Rehabilitation & Therapy Services",126,0.93650793650793651,1.5873015873015872E-2,94,24,6,1,1,0]
["QF7","RHQ","SHEFFIELD TEACHING HOSPITALS NHS FOUNDATION TRUST","Specialist Services",64,0.953125,3.125E-2,58,3,0,1,1,1]
["QF7","RFR","THE ROTHERHAM NHS FOUNDATION TRUST","Children & Family Services",33,0.90909090909090906,3.0303030303030304E-2,25,5,2,1,0,0]
["QF7","RFR","THE ROTHERHAM NHS FOUNDATION TRUST","Community Nursing Services",10,1,0,"*","*","*","*","*","*"]
["QF7","RFR","THE ROTHERHAM NHS FOUNDATION TRUST","Rehabilitation & Therapy Services",89,0.9213483146067416,1.1235955056179775E-2,79,3,6,0,1,0]
["QF7","RFR","THE ROTHERHAM NHS FOUNDATION TRUST","Specialist Services",2,"*","*","*","*","*","*","*","*"]
["QGH","R1A","HEREFORDSHIRE AND WORCESTERSHIRE HEALTH AND CARE NHS TRUST","Children & Family Services",24,0.875,8.3333333333333329E-2,17,4,1,1,1,0]
["QGH","R1A","HEREFORDSHIRE AND WORCESTERSHIRE HEALTH AND CARE NHS TRUST","Community Healthcare Other",1,"*","*","*","*","*","*","*","*"]
["QGH","R1A","HEREFORDSHIRE AND WORCESTERSHIRE HEALTH AND CARE NHS TRUST","Community Inpatient Services",16,0.9375,0,11,4,1,0,0,0]
["QGH","R1A","HEREFORDSHIRE AND WORCESTERSHIRE HEALTH AND CARE NHS TRUST","Community Nursing Services",7,0.8571428571428571,0.14285714285714285,"*","*","*","*","*","*"]
["QGH","R1A","HEREFORDSHIRE AND WORCESTERSHIRE HEALTH AND CARE NHS TRUST","Rehabilitation & Therapy Services",76,0.94736842105263153,3.9473684210526314E-2,61,11,1,1,2,0]
["QGH","R1A","HEREFORDSHIRE AND WORCESTERSHIRE HEALTH AND CARE NHS TRUST","Specialist Services",106,0.93396226415094341,1.8867924528301886E-2,95,4,2,0,2,3]
["QGH","RLQ","WYE VALLEY NHS TRUST","Community Healthcare Other",3,"*","*","*","*","*","*","*","*"]
["QH8","R1L","ESSEX PARTNERSHIP UNIVERSITY NHS FOUNDATION TRUST","Children & Family Services",1,"*","*","*","*","*","*","*","*"]
["QH8","R1L","ESSEX PARTNERSHIP UNIVERSITY NHS FOUNDATION TRUST","Community Nursing Services",3,"*","*","*","*","*","*","*","*"]
["QH8","R1L","ESSEX PARTNERSHIP UNIVERSITY NHS FOUNDATION TRUST","Specialist Services",6,1,0,4,2,0,0,0,0]
["QHL","RYW","BIRMINGHAM COMMUNITY HEALTHCARE NHS FOUNDATION TRUST","Children & Family Services",139,0.8920863309352518,7.1942446043165464E-2,99,25,5,4,6,0]
["QHL","RYW","BIRMINGHAM COMMUNITY HEALTHCARE NHS FOUNDATION TRUST","Community Healthcare Other",17,0.82352941176470584,0.17647058823529413,10,4,0,3,0,0]
["QHL","RYW","BIRMINGHAM COMMUNITY HEALTHCARE NHS FOUNDATION TRUST","Community Inpatient Services",51,0.96078431372549022,1.9607843137254902E-2,36,13,1,0,1,0]
["QHL","RYW","BIRMINGHAM COMMUNITY HEALTHCARE NHS FOUNDATION TRUST","Community Nursing Services",302,0.99006622516556286,3.3112582781456954E-3,275,24,2,0,1,0]
["QHL","RYW","BIRMINGHAM COMMUNITY HEALTHCARE NHS FOUNDATION TRUST","Rehabilitation & Therapy Services",274,0.95985401459854014,1.4598540145985401E-2,223,40,1,0,4,6]
["QHL","RYW","BIRMINGHAM COMMUNITY HEALTHCARE NHS FOUNDATION TRUST","Specialist Services",202,0.9455445544554455,2.9702970297029702E-2,174,17,5,2,4,0]
["QHL","RRK","UNIVERSITY HOSPITALS BIRMINGHAM NHS FOUNDATION TRUST","Children & Family Services",4,"*","*","*","*","*","*","*","*"]
["QHL","RRK","UNIVERSITY HOSPITALS BIRMINGHAM NHS FOUNDATION TRUST","Community Nursing Services",4,"*","*","*","*","*","*","*","*"]
["QHL","RRK","UNIVERSITY HOSPITALS BIRMINGHAM NHS FOUNDATION TRUST","Rehabilitation & Therapy Services",2,"*","*","*","*","*","*","*","*"]
["QHL","RRK","UNIVERSITY HOSPITALS BIRMINGHAM NHS FOUNDATION TRUST","Specialist Services",16,1,0,16,0,0,0,0,0]
["QHM","RNN","NORTH CUMBRIA INTEGRATED CARE NHS FOUNDATION TRUST","Community Healthcare Other",56,1,0,52,4,0,0,0,0]
["QHM","RNN","NORTH CUMBRIA INTEGRATED CARE NHS FOUNDATION TRUST","Community Inpatient Services",59,0.96610169491525422,1.6949152542372881E-2,47,10,1,1,0,0]
["QHM","RNN","NORTH CUMBRIA INTEGRATED CARE NHS FOUNDATION TRUST","Community Nursing Services",207,1,0,190,17,0,0,0,0]
["QHM","RNN","NORTH CUMBRIA INTEGRATED CARE NHS FOUNDATION TRUST","Rehabilitation & Therapy Services",196,0.97959183673469385,0,183,9,4,0,0,0]
["QHM","RNN","NORTH CUMBRIA INTEGRATED CARE NHS FOUNDATION TRUST","Specialist Services",146,0.97945205479452058,6.8493150684931503E-3,131,12,2,0,1,0]
["QHM","RVW","NORTH TEES AND HARTLEPOOL NHS FOUNDATION TRUST","Community Nursing Services",85,0.97647058823529409,1.1764705882352941E-2,77,6,1,1,0,0]
["QHM","RVW","NORTH TEES AND HARTLEPOOL NHS FOUNDATION TRUST","Rehabilitation & Therapy Services",27,0.96296296296296291,0,22,4,1,0,0,0]
["QHM","RVW","NORTH TEES AND HARTLEPOOL NHS FOUNDATION TRUST","Specialist Services",82,0.97560975609756095,0,71,9,0,0,0,2]
["QHM","RTF","NORTHUMBRIA HEALTHCARE NHS FOUNDATION TRUST","Community Nursing Services",155,0.93548387096774188,2.5806451612903226E-2,120,25,6,1,3,0]
["QHM","RTF","NORTHUMBRIA HEALTHCARE NHS FOUNDATION TRUST","Rehabilitation & Therapy Services",397,0.90428211586901763,5.793450881612091E-2,307,52,12,14,9,3]
["QHM","RTF","NORTHUMBRIA HEALTHCARE NHS FOUNDATION TRUST","Specialist Services",56,0.9107142857142857,7.1428571428571425E-2,43,8,1,1,3,0]
["QHM","RTR","SOUTH TEES HOSPITALS NHS FOUNDATION TRUST","Children & Family Services",2,"*","*","*","*","*","*","*","*"]
["QHM","RTR","SOUTH TEES HOSPITALS NHS FOUNDATION TRUST","Community Nursing Services",198,1,0,174,24,0,0,0,0]
["QHM","RTR","SOUTH TEES HOSPITALS NHS FOUNDATION TRUST","Rehabilitation & Therapy Services",40,0.95,0,33,5,2,0,0,0]
["QHM","RTR","SOUTH TEES HOSPITALS NHS FOUNDATION TRUST","Specialist Services",22,0.95454545454545459,0,"*","*","*","*","*","*"]
["QHM","R0B","SOUTH TYNESIDE AND SUNDERLAND NHS FOUNDATION TRUST","Children & Family Services",47,1,0,47,0,0,0,0,0]
["QHM","R0B","SOUTH TYNESIDE AND SUNDERLAND NHS FOUNDATION TRUST","Community Healthcare Other",66,1,0,65,1,0,0,0,0]
["QHM","R0B","SOUTH TYNESIDE AND SUNDERLAND NHS FOUNDATION TRUST","Community Inpatient Services",6,1,0,5,1,0,0,0,0]
["QHM","R0B","SOUTH TYNESIDE AND SUNDERLAND NHS FOUNDATION TRUST","Community Nursing Services",81,1,0,73,8,0,0,0,0]
["QHM","RTD","THE NEWCASTLE UPON TYNE HOSPITALS NHS FOUNDATION TRUST","Community Healthcare Other",58,0.98275862068965514,0,45,12,1,0,0,0]
["QJ2","RY8","DERBYSHIRE COMMUNITY HEALTH SERVICES NHS FOUNDATION TRUST","Children & Family Services",132,0.88636363636363635,6.8181818181818177E-2,85,32,6,5,4,0]
["QJ2","RY8","DERBYSHIRE COMMUNITY HEALTH SERVICES NHS FOUNDATION TRUST","Community Healthcare Other",25,0.96,0,"*","*","*","*","*","*"]
["QJ2","RY8","DERBYSHIRE COMMUNITY HEALTH SERVICES NHS FOUNDATION TRUST","Community Nursing Services",4,"*","*","*","*","*","*","*","*"]
["QJ2","RY8","DERBYSHIRE COMMUNITY HEALTH SERVICES NHS FOUNDATION TRUST","Rehabilitation & Therapy Services",727,0.88445667125171934,4.264099037138927E-2,492,151,45,13,18,8]
["QJ2","RY8","DERBYSHIRE COMMUNITY HEALTH SERVICES NHS FOUNDATION TRUST","Specialist Services",433,0.89838337182448036,3.2332563510392612E-2,316,73,26,8,6,4]
["QJ2","RXM","DERBYSHIRE HEALTHCARE NHS FOUNDATION TRUST","Children & Family Services",3,"*","*","*","*","*","*","*","*"]
["QJG","RDE","EAST SUFFOLK AND NORTH ESSEX NHS FOUNDATION TRUST","Community Healthcare Other",336,0.9553571428571429,2.3809523809523808E-2,283,38,6,2,6,1]
["QJG","RDE","EAST SUFFOLK AND NORTH ESSEX NHS FOUNDATION TRUST","Community Inpatient Services",6,1,0,5,1,0,0,0,0]
["QJG","RDE","EAST SUFFOLK AND NORTH ESSEX NHS FOUNDATION TRUST","Community Nursing Services",11,1,0,10,1,0,0,0,0]
["QJG","RDE","EAST SUFFOLK AND NORTH ESSEX NHS FOUNDATION TRUST","Rehabilitation & Therapy Services",2,"*","*","*","*","*","*","*","*"]
["QJG","RDE","EAST SUFFOLK AND NORTH ESSEX NHS FOUNDATION TRUST","Specialist Services",1,"*","*","*","*","*","*","*","*"]
["QJG","RGR","WEST SUFFOLK NHS FOUNDATION TRUST","Community Inpatient Services",38,0.94736842105263153,0,23,13,2,0,0,0]
["QJG","RGR","WEST SUFFOLK NHS FOUNDATION TRUST","Community Nursing Services",8,1,0,7,1,0,0,0,0]
["QJG","RGR","WEST SUFFOLK NHS FOUNDATION TRUST","Rehabilitation & Therapy Services",10,1,0,9,1,0,0,0,0]
["QJK","RBZ","NORTHERN DEVON HEALTHCARE NHS TRUST","Community Healthcare Other",7,1,0,6,1,0,0,0,0]
["QJK","RBZ","NORTHERN DEVON HEALTHCARE NHS TRUST","Community Inpatient Services",1,"*","*","*","*","*","*","*","*"]
["QJK","RBZ","NORTHERN DEVON HEALTHCARE NHS TRUST","Community Nursing Services",2,"*","*","*","*","*","*","*","*"]
["QJK","RBZ","NORTHERN DEVON HEALTHCARE NHS TRUST","Rehabilitation & Therapy Services",31,0.967741935483871,0,27,3,1,0,0,0]
["QJK","RBZ","NORTHERN DEVON HEALTHCARE NHS TRUST","Specialist Services",78,0.97435897435897434,1.282051282051282E-2,72,4,1,1,0,0]
["QJK","RH8","ROYAL DEVON AND EXETER NHS FOUNDATION TRUST","Community Healthcare Other",16,0.9375,0,15,0,1,0,0,0]
["QJK","RH8","ROYAL DEVON AND EXETER NHS FOUNDATION TRUST","Community Inpatient Services",3,"*","*","*","*","*","*","*","*"]
["QJK","RH8","ROYAL DEVON AND EXETER NHS FOUNDATION TRUST","Community Nursing Services",16,1,0,16,0,0,0,0,0]
["QJK","RH8","ROYAL DEVON AND EXETER NHS FOUNDATION TRUST","Rehabilitation & Therapy Services",17,1,0,17,0,0,0,0,0]
["QJK","RH8","ROYAL DEVON AND EXETER NHS FOUNDATION TRUST","Specialist Services",10,1,0,"*","*","*","*","*","*"]
["QJK","RA9","TORBAY AND SOUTH DEVON NHS FOUNDATION TRUST","Children & Family Services",1,"*","*","*","*","*","*","*","*"]
["QJK","RA9","TORBAY AND SOUTH DEVON NHS FOUNDATION TRUST","Community Healthcare Other",11,0.90909090909090906,0,"*","*","*","*","*","*"]
["QJK","RA9","TORBAY AND SOUTH DEVON NHS FOUNDATION TRUST","Community Inpatient Services",40,0.95,2.5000000000000001E-2,31,7,1,0,1,0]
["QJK","RA9","TORBAY AND SOUTH DEVON NHS FOUNDATION TRUST","Rehabilitation & Therapy Services",60,0.98333333333333328,1.6666666666666666E-2,54,5,0,1,0,0]
["QJK","RA9","TORBAY AND SOUTH DEVON NHS FOUNDATION TRUST","Specialist Services",35,0.97142857142857142,2.8571428571428571E-2,30,4,0,0,1,0]
["QJK","RK9","UNIVERSITY HOSPITALS PLYMOUTH NHS TRUST","Children & Family Services",50,0.92,0,36,10,1,0,0,3]
["QJM","RY5","LINCOLNSHIRE COMMUNITY HEALTH SERVICES NHS TRUST","Children & Family Services",1,"*","*","*","*","*","*","*","*"]
["QJM","RY5","LINCOLNSHIRE COMMUNITY HEALTH SERVICES NHS TRUST","Community Healthcare Other",810,0.80493827160493825,0.11851851851851852,527,125,53,41,55,9]
["QJM","RY5","LINCOLNSHIRE COMMUNITY HEALTH SERVICES NHS TRUST","Community Inpatient Services",17,0.94117647058823528,0,15,1,1,0,0,0]
["QJM","RY5","LINCOLNSHIRE COMMUNITY HEALTH SERVICES NHS TRUST","Community Nursing Services",289,0.89273356401384085,4.1522491349480967E-2,218,40,13,6,6,6]
["QJM","RY5","LINCOLNSHIRE COMMUNITY HEALTH SERVICES NHS TRUST","Rehabilitation & Therapy Services",4,"*","*","*","*","*","*","*","*"]
["QJM","RY5","LINCOLNSHIRE COMMUNITY HEALTH SERVICES NHS TRUST","Specialist Services",8,0.625,0.25,4,1,1,2,0,0]
["QK1","RT5","LEICESTERSHIRE PARTNERSHIP NHS TRUST","Children & Family Services",199,0.78894472361809043,0.11055276381909548,128,29,12,7,15,8]
["QK1","RT5","LEICESTERSHIRE PARTNERSHIP NHS TRUST","Community Healthcare Other",131,0.67938931297709926,0.12977099236641221,69,20,14,3,14,11]
["QK1","RT5","LEICESTERSHIRE PARTNERSHIP NHS TRUST","Community Inpatient Services",146,0.91095890410958902,2.7397260273972601E-2,108,25,6,2,2,3]
["QK1","RT5","LEICESTERSHIRE PARTNERSHIP NHS TRUST","Community Nursing Services",206,0.90291262135922334,2.9126213592233011E-2,136,50,10,4,2,4]
["QK1","RT5","LEICESTERSHIRE PARTNERSHIP NHS TRUST","Rehabilitation & Therapy Services",1799,0.87326292384658144,6.6703724291272928E-2,1249,322,88,45,75,20]
["QK1","RT5","LEICESTERSHIRE PARTNERSHIP NHS TRUST","Specialist Services",288,0.89236111111111116,2.7777777777777776E-2,197,60,13,3,5,10]
["QKK","RJ1","GUY'S AND ST THOMAS' NHS FOUNDATION TRUST","Children & Family Services",105,0.98095238095238091,1.9047619047619049E-2,91,12,0,1,1,0]
["QKK","RJ1","GUY'S AND ST THOMAS' NHS FOUNDATION TRUST","Community Nursing Services",108,0.92592592592592593,3.7037037037037035E-2,78,22,3,2,2,1]
["QKK","RJ1","GUY'S AND ST THOMAS' NHS FOUNDATION TRUST","Rehabilitation & Therapy Services",107,0.96261682242990654,9.3457943925233638E-3,66,37,3,1,0,0]
["QKK","RJ1","GUY'S AND ST THOMAS' NHS FOUNDATION TRUST","Specialist Services",14,1,0,14,0,0,0,0,0]
["QKK","RJ2","LEWISHAM AND GREENWICH NHS TRUST","Children & Family Services",45,0.93333333333333335,4.4444444444444446E-2,37,5,1,0,2,0]
["QKK","RJ2","LEWISHAM AND GREENWICH NHS TRUST","Community Healthcare Other",76,0.96052631578947367,2.6315789473684209E-2,64,9,1,1,1,0]
["QKK","RJ2","LEWISHAM AND GREENWICH NHS TRUST","Community Nursing Services",334,0.97904191616766467,8.9820359281437123E-3,183,144,4,2,1,0]
["QKK","RJ2","LEWISHAM AND GREENWICH NHS TRUST","Rehabilitation & Therapy Services",7,1,0,6,1,0,0,0,0]
["QKK","RJ2","LEWISHAM AND GREENWICH NHS TRUST","Specialist Services",320,0.97499999999999998,1.2500000000000001E-2,278,34,4,2,2,0]
["QKK","RPG","OXLEAS NHS FOUNDATION TRUST","Children & Family Services",153,0.87581699346405228,3.2679738562091505E-2,103,31,10,4,1,4]
["QKK","RPG","OXLEAS NHS FOUNDATION TRUST","Community Healthcare Other",56,0.6785714285714286,0.10714285714285714,26,12,12,2,4,0]
["QKK","RPG","OXLEAS NHS FOUNDATION TRUST","Community Inpatient Services",30,0.93333333333333335,0,23,5,1,0,0,1]
["QKK","RPG","OXLEAS NHS FOUNDATION TRUST","Community Nursing Services",326,0.87116564417177911,5.8282208588957052E-2,203,81,20,8,11,3]
["QKK","RPG","OXLEAS NHS FOUNDATION TRUST","Rehabilitation & Therapy Services",446,0.92152466367713004,2.4663677130044841E-2,337,74,23,2,9,1]
["QKK","RPG","OXLEAS NHS FOUNDATION TRUST","Specialist Services",109,0.97247706422018354,9.1743119266055051E-3,82,24,2,0,1,0]
["QKS","RYY","KENT COMMUNITY HEALTH NHS FOUNDATION TRUST","Children & Family Services",558,0.98028673835125446,5.3763440860215058E-3,488,59,7,0,3,1]
["QKS","RYY","KENT COMMUNITY HEALTH NHS FOUNDATION TRUST","Community Healthcare Other",2869,0.98745207389334266,3.4855350296270479E-3,2640,193,22,5,5,4]
["QKS","RYY","KENT COMMUNITY HEALTH NHS FOUNDATION TRUST","Community Inpatient Services",65,0.9538461538461539,4.6153846153846156E-2,43,19,0,3,0,0]
["QKS","RYY","KENT COMMUNITY HEALTH NHS FOUNDATION TRUST","Community Nursing Services",367,0.91825613079019075,2.4523160762942781E-2,279,58,18,5,4,3]
["QKS","RYY","KENT COMMUNITY HEALTH NHS FOUNDATION TRUST","Rehabilitation & Therapy Services",59,0.96610169491525422,1.6949152542372881E-2,40,17,1,0,1,0]
["QKS","RYY","KENT COMMUNITY HEALTH NHS FOUNDATION TRUST","Specialist Services",467,0.97644539614561032,6.4239828693790149E-3,388,68,8,1,2,0]
["QM7","RY4","HERTFORDSHIRE COMMUNITY NHS TRUST","Children & Family Services",122,0.95081967213114749,4.0983606557377046E-2,101,15,1,5,0,0]
["QM7","RY4","HERTFORDSHIRE COMMUNITY NHS TRUST","Community Healthcare Other",25,0.96,0.04,24,0,0,1,0,0]
["QM7","RY4","HERTFORDSHIRE COMMUNITY NHS TRUST","Community Inpatient Services",7,0.8571428571428571,0,4,2,1,0,0,0]
["QM7","RY4","HERTFORDSHIRE COMMUNITY NHS TRUST","Community Nursing Services",68,0.97058823529411764,1.4705882352941176E-2,59,7,0,1,0,1]
["QM7","RY4","HERTFORDSHIRE COMMUNITY NHS TRUST","Rehabilitation & Therapy Services",124,0.89516129032258063,4.0322580645161289E-2,98,13,8,3,2,0]
["QM7","RY4","HERTFORDSHIRE COMMUNITY NHS TRUST","Specialist Services",160,0.98750000000000004,6.2500000000000003E-3,149,9,1,1,0,0]
["QMF","RWK","EAST LONDON NHS FOUNDATION TRUST","Children & Family Services",82,1,0,74,8,0,0,0,0]
["QMF","RWK","EAST LONDON NHS FOUNDATION TRUST","Community Healthcare Other",501,0.9880239520958084,5.9880239520958087E-3,410,85,3,1,2,0]
["QMF","RWK","EAST LONDON NHS FOUNDATION TRUST","Community Inpatient Services",8,1,0,5,3,0,0,0,0]
["QMF","RWK","EAST LONDON NHS FOUNDATION TRUST","Community Nursing Services",40,0.82499999999999996,0.05,26,7,3,1,1,2]
["QMF","RWK","EAST LONDON NHS FOUNDATION TRUST","Rehabilitation & Therapy Services",39,0.82051282051282048,7.6923076923076927E-2,26,6,4,1,2,0]
["QMF","RWK","EAST LONDON NHS FOUNDATION TRUST","Specialist Services",2336,0.99743150684931503,0,9,2321,6,0,0,0]
["QMF","RQX","HOMERTON UNIVERSITY HOSPITAL NHS FOUNDATION TRUST","Children & Family Services",16,1,0,14,2,0,0,0,0]
["QMF","RQX","HOMERTON UNIVERSITY HOSPITAL NHS FOUNDATION TRUST","Community Nursing Services",19,1,0,17,2,0,0,0,0]
["QMF","RQX","HOMERTON UNIVERSITY HOSPITAL NHS FOUNDATION TRUST","Rehabilitation & Therapy Services",62,0.93548387096774188,3.2258064516129031E-2,47,11,2,0,2,0]
["QMF","RQX","HOMERTON UNIVERSITY HOSPITAL NHS FOUNDATION TRUST","Specialist Services",13,1,0,12,1,0,0,0,0]
["QMF","RAT","NORTH EAST LONDON NHS FOUNDATION TRUST","Children & Family Services",342,0.87134502923976609,7.3099415204678359E-2,223,75,11,9,16,8]
["QMF","RAT","NORTH EAST LONDON NHS FOUNDATION TRUST","Community Healthcare Other",139,0.75539568345323738,0.1223021582733813,78,27,13,8,9,4]
["QMF","RAT","NORTH EAST LONDON NHS FOUNDATION TRUST","Community Inpatient Services",29,0.75862068965517238,0,16,6,6,0,0,1]
["QMF","RAT","NORTH EAST LONDON NHS FOUNDATION TRUST","Community Nursing Services",155,0.88387096774193552,3.2258064516129031E-2,115,22,11,3,2,2]
["QMF","RAT","NORTH EAST LONDON NHS FOUNDATION TRUST","Rehabilitation & Therapy Services",104,0.86538461538461542,6.7307692307692304E-2,64,26,5,4,3,2]
["QMF","RAT","NORTH EAST LONDON NHS FOUNDATION TRUST","Specialist Services",276,0.89855072463768115,2.1739130434782608E-2,209,39,18,3,3,4]
["QMJ","RRP","BARNET, ENFIELD AND HARINGEY MENTAL HEALTH NHS TRUST","Children & Family Services",32,0.96875,0,23,8,1,0,0,0]
["QMJ","RRP","BARNET, ENFIELD AND HARINGEY MENTAL HEALTH NHS TRUST","Community Inpatient Services",7,1,0,1,6,0,0,0,0]
["QMJ","RRP","BARNET, ENFIELD AND HARINGEY MENTAL HEALTH NHS TRUST","Community Nursing Services",43,0.86046511627906974,2.3255813953488372E-2,24,13,5,1,0,0]
["QMJ","RRP","BARNET, ENFIELD AND HARINGEY MENTAL HEALTH NHS TRUST","Rehabilitation & Therapy Services",29,1,0,25,4,0,0,0,0]
["QMJ","RRP","BARNET, ENFIELD AND HARINGEY MENTAL HEALTH NHS TRUST","Specialist Services",13,1,0,11,2,0,0,0,0]
["QMJ","RV3","CENTRAL AND NORTH WEST LONDON NHS FOUNDATION TRUST","Children & Family Services",52,0.98076923076923073,0,43,8,0,0,0,1]
["QMJ","RV3","CENTRAL AND NORTH WEST LONDON NHS FOUNDATION TRUST","Community Healthcare Other",38,1,0,32,6,0,0,0,0]
["QMJ","RV3","CENTRAL AND NORTH WEST LONDON NHS FOUNDATION TRUST","Community Inpatient Services",86,0.93023255813953487,2.3255813953488372E-2,47,33,4,1,1,0]
["QMJ","RV3","CENTRAL AND NORTH WEST LONDON NHS FOUNDATION TRUST","Community Nursing Services",36,0.97222222222222221,0,25,10,1,0,0,0]
["QMJ","RV3","CENTRAL AND NORTH WEST LONDON NHS FOUNDATION TRUST","Rehabilitation & Therapy Services",58,0.98275862068965514,0,49,8,1,0,0,0]
["QMJ","RV3","CENTRAL AND NORTH WEST LONDON NHS FOUNDATION TRUST","Specialist Services",35,1,0,31,4,0,0,0,0]
["QMJ","RKE","WHITTINGTON HEALTH NHS TRUST","Children & Family Services",1,"*","*","*","*","*","*","*","*"]
["QMJ","RKE","WHITTINGTON HEALTH NHS TRUST","Rehabilitation & Therapy Services",141,0.94326241134751776,3.5460992907801421E-2,"*","*","*","*","*","*"]
["QMJ","RKE","WHITTINGTON HEALTH NHS TRUST","Specialist Services",469,0.99147121535181237,4.2643923240938165E-3,427,38,2,0,2,0]
["QMM","RY3","NORFOLK COMMUNITY HEALTH AND CARE NHS TRUST","Children & Family Services",3,"*","*","*","*","*","*","*","*"]
["QMM","RY3","NORFOLK COMMUNITY HEALTH AND CARE NHS TRUST","Community Inpatient Services",19,0.73684210526315785,0,"*","*","*","*","*","*"]
["QMM","RY3","NORFOLK COMMUNITY HEALTH AND CARE NHS TRUST","Community Nursing Services",164,0.94512195121951215,1.8292682926829267E-2,111,44,6,1,2,0]
["QMM","RY3","NORFOLK COMMUNITY HEALTH AND CARE NHS TRUST","Rehabilitation & Therapy Services",82,0.97560975609756095,2.4390243902439025E-2,73,7,0,1,1,0]
["QMM","RY3","NORFOLK COMMUNITY HEALTH AND CARE NHS TRUST","Specialist Services",84,1,0,76,8,0,0,0,0]
["QNC","RRE","MIDLANDS PARTNERSHIP NHS FOUNDATION TRUST","Children & Family Services",56,0.9821428571428571,1.7857142857142856E-2,49,6,0,0,1,0]
["QNC","RRE","MIDLANDS PARTNERSHIP NHS FOUNDATION TRUST","Community Healthcare Other",333,0.95495495495495497,1.8018018018018018E-2,211,107,9,0,6,0]
["QNC","RRE","MIDLANDS PARTNERSHIP NHS FOUNDATION TRUST","Community Inpatient Services",29,1,0,23,6,0,0,0,0]
["QNC","RRE","MIDLANDS PARTNERSHIP NHS FOUNDATION TRUST","Community Nursing Services",40,0.97499999999999998,2.5000000000000001E-2,32,7,0,1,0,0]
["QNC","RRE","MIDLANDS PARTNERSHIP NHS FOUNDATION TRUST","Rehabilitation & Therapy Services",61,1,0,48,13,0,0,0,0]
["QNC","RRE","MIDLANDS PARTNERSHIP NHS FOUNDATION TRUST","Specialist Services",124,0.92741935483870963,6.4516129032258063E-2,104,11,1,0,8,0]
["QNQ","RWX","BERKSHIRE HEALTHCARE NHS FOUNDATION TRUST","Children & Family Services",473,0.90909090909090906,5.7082452431289642E-2,377,53,13,11,16,3]
["QNQ","RWX","BERKSHIRE HEALTHCARE NHS FOUNDATION TRUST","Community Inpatient Services",105,0.95238095238095233,1.9047619047619049E-2,74,26,3,2,0,0]
["QNQ","RWX","BERKSHIRE HEALTHCARE NHS FOUNDATION TRUST","Community Nursing Services",124,0.95967741935483875,2.4193548387096774E-2,97,22,2,3,0,0]
["QNQ","RWX","BERKSHIRE HEALTHCARE NHS FOUNDATION TRUST","Rehabilitation & Therapy Services",527,0.93927893738140422,3.0360531309297913E-2,432,63,12,11,5,4]
["QNQ","RWX","BERKSHIRE HEALTHCARE NHS FOUNDATION TRUST","Specialist Services",451,0.93348115299334811,3.325942350332594E-2,368,53,9,6,9,6]
["QNQ","RDU","FRIMLEY HEALTH NHS FOUNDATION TRUST","Community Healthcare Other",64,0.96875,0,57,5,2,0,0,0]
["QNX","RXC","EAST SUSSEX HEALTHCARE NHS TRUST","Community Inpatient Services",27,0.96296296296296291,0,20,6,1,0,0,0]
["QNX","RXC","EAST SUSSEX HEALTHCARE NHS TRUST","Community Nursing Services",27,1,0,24,3,0,0,0,0]
["QNX","RXC","EAST SUSSEX HEALTHCARE NHS TRUST","Rehabilitation & Therapy Services",204,0.99509803921568629,0,187,16,0,0,0,1]
["QNX","RXC","EAST SUSSEX HEALTHCARE NHS TRUST","Specialist Services",24,1,0,24,0,0,0,0,0]
["QNX","RDR","SUSSEX COMMUNITY NHS FOUNDATION TRUST","Children & Family Services",168,0.91666666666666663,4.1666666666666664E-2,138,16,7,1,6,0]
["QNX","RDR","SUSSEX COMMUNITY NHS FOUNDATION TRUST","Community Healthcare Other",67,0.92537313432835822,4.4776119402985072E-2,52,10,2,1,2,0]
["QNX","RDR","SUSSEX COMMUNITY NHS FOUNDATION TRUST","Community Inpatient Services",100,0.96,0.01,79,17,3,0,1,0]
["QNX","RDR","SUSSEX COMMUNITY NHS FOUNDATION TRUST","Community Nursing Services",131,0.98473282442748089,0,109,20,2,0,0,0]
["QNX","RDR","SUSSEX COMMUNITY NHS FOUNDATION TRUST","Rehabilitation & Therapy Services",183,0.98907103825136611,5.4644808743169399E-3,157,24,1,0,1,0]
["QNX","RDR","SUSSEX COMMUNITY NHS FOUNDATION TRUST","Specialist Services",381,0.98950131233595795,0,347,30,4,0,0,0]
["QOC","R1D","SHROPSHIRE COMMUNITY HEALTH NHS TRUST","Children & Family Services",292,0.9726027397260274,3.4246575342465752E-3,231,53,4,1,0,3]
["QOC","R1D","SHROPSHIRE COMMUNITY HEALTH NHS TRUST","Community Healthcare Other",14,1,0,13,1,0,0,0,0]
["QOC","R1D","SHROPSHIRE COMMUNITY HEALTH NHS TRUST","Community Inpatient Services",13,0.69230769230769229,0.15384615384615385,7,2,1,2,0,1]
["QOC","R1D","SHROPSHIRE COMMUNITY HEALTH NHS TRUST","Community Nursing Services",47,0.8936170212765957,4.2553191489361701E-2,28,14,2,2,0,1]
["QOC","R1D","SHROPSHIRE COMMUNITY HEALTH NHS TRUST","Rehabilitation & Therapy Services",17,1,0,16,1,0,0,0,0]
["QOC","R1D","SHROPSHIRE COMMUNITY HEALTH NHS TRUST","Specialist Services",24,0.95833333333333337,0,20,3,1,0,0,0]
["QOP","RMC","BOLTON NHS FOUNDATION TRUST","Children & Family Services",119,0.96638655462184875,0,96,19,4,0,0,0]
["QOP","RMC","BOLTON NHS FOUNDATION TRUST","Community Healthcare Other",35,1,0,34,1,0,0,0,0]
["QOP","RMC","BOLTON NHS FOUNDATION TRUST","Community Inpatient Services",7,1,0,7,0,0,0,0,0]
["QOP","RMC","BOLTON NHS FOUNDATION TRUST","Community Nursing Services",281,0.99644128113879005,0,265,15,0,0,0,1]
["QOP","RMC","BOLTON NHS FOUNDATION TRUST","Rehabilitation & Therapy Services",14,1,0,13,1,0,0,0,0]
["QOP","RMC","BOLTON NHS FOUNDATION TRUST","Specialist Services",81,1,0,79,2,0,0,0,0]
["QOP","R0A","MANCHESTER UNIVERSITY NHS FOUNDATION TRUST","Children & Family Services",102,1,0,98,4,0,0,0,0]
["QOP","R0A","MANCHESTER UNIVERSITY NHS FOUNDATION TRUST","Community Inpatient Services",23,1,0,14,9,0,0,0,0]
["QOP","R0A","MANCHESTER UNIVERSITY NHS FOUNDATION TRUST","Community Nursing Services",143,0.93006993006993011,4.195804195804196E-2,112,21,2,1,5,2]
["QOP","R0A","MANCHESTER UNIVERSITY NHS FOUNDATION TRUST","Rehabilitation & Therapy Services",14,1,0,13,1,0,0,0,0]
["QOP","R0A","MANCHESTER UNIVERSITY NHS FOUNDATION TRUST","Specialist Services",191,0.94764397905759157,1.5706806282722512E-2,146,35,5,1,2,2]
["QOP","RWJ","STOCKPORT NHS FOUNDATION TRUST","Children & Family Services",28,0.9285714285714286,3.5714285714285712E-2,"*","*","*","*","*","*"]
["QOP","RWJ","STOCKPORT NHS FOUNDATION TRUST","Community Healthcare Other",4,"*","*","*","*","*","*","*","*"]
["QOP","RWJ","STOCKPORT NHS FOUNDATION TRUST","Community Nursing Services",234,0.94871794871794868,1.282051282051282E-2,203,19,8,1,2,1]
["QOP","RWJ","STOCKPORT NHS FOUNDATION TRUST","Rehabilitation & Therapy Services",182,0.9505494505494505,2.7472527472527472E-2,150,23,2,2,3,2]
["QOP","RWJ","STOCKPORT NHS FOUNDATION TRUST","Specialist Services",98,0.93877551020408168,1.020408163265306E-2,80,12,5,0,1,0]
["QOP","RRF","WRIGHTINGTON, WIGAN AND LEIGH NHS FOUNDATION TRUST","Children & Family Services",28,0.8571428571428571,0.14285714285714285,19,5,0,2,2,0]
["QOP","RRF","WRIGHTINGTON, WIGAN AND LEIGH NHS FOUNDATION TRUST","Community Nursing Services",50,0.88,0.04,39,5,2,1,1,2]
["QOP","RRF","WRIGHTINGTON, WIGAN AND LEIGH NHS FOUNDATION TRUST","Rehabilitation & Therapy Services",342,0.92397660818713445,2.9239766081871343E-2,269,47,6,7,3,10]
["QOP","RRF","WRIGHTINGTON, WIGAN AND LEIGH NHS FOUNDATION TRUST","Specialist Services",95,0.90526315789473688,6.3157894736842107E-2,72,14,1,3,3,2]
["QOQ","RCD","HARROGATE AND DISTRICT NHS FOUNDATION TRUST","Community Healthcare Other",2,"*","*","*","*","*","*","*","*"]
["QOQ","RCD","HARROGATE AND DISTRICT NHS FOUNDATION TRUST","Rehabilitation & Therapy Services",72,0.93055555555555558,4.1666666666666664E-2,"*","*","*","*","*","*"]
["QOQ","RV9","HUMBER TEACHING NHS FOUNDATION TRUST","Children & Family Services",17,0.94117647058823528,5.8823529411764705E-2,13,3,0,1,0,0]
["QOQ","RV9","HUMBER TEACHING NHS FOUNDATION TRUST","Community Healthcare Other",11,0.90909090909090906,0,"*","*","*","*","*","*"]
["QOQ","RV9","HUMBER TEACHING NHS FOUNDATION TRUST","Community Inpatient Services",15,1,0,14,1,0,0,0,0]
["QOQ","RV9","HUMBER TEACHING NHS FOUNDATION TRUST","Community Nursing Services",4,"*","*","*","*","*","*","*","*"]
["QOQ","RCB","YORK AND SCARBOROUGH TEACHING HOSPITALS NHS FOUNDATION TRUST","Community Inpatient Services",23,1,0,19,4,0,0,0,0]
["QPM","RP1","NORTHAMPTONSHIRE HEALTHCARE NHS FOUNDATION TRUST","Children & Family Services",169,0.9526627218934911,5.9171597633136093E-3,137,24,3,0,1,4]
["QPM","RP1","NORTHAMPTONSHIRE HEALTHCARE NHS FOUNDATION TRUST","Community Healthcare Other",9,1,0,9,0,0,0,0,0]
["QPM","RP1","NORTHAMPTONSHIRE HEALTHCARE NHS FOUNDATION TRUST","Community Inpatient Services",56,0.9642857142857143,1.7857142857142856E-2,45,9,0,0,1,1]
["QPM","RP1","NORTHAMPTONSHIRE HEALTHCARE NHS FOUNDATION TRUST","Community Nursing Services",10,0.8,0.2,6,2,0,0,2,0]
["QPM","RP1","NORTHAMPTONSHIRE HEALTHCARE NHS FOUNDATION TRUST","Rehabilitation & Therapy Services",46,0.91304347826086951,4.3478260869565216E-2,39,3,2,0,2,0]
["QPM","RP1","NORTHAMPTONSHIRE HEALTHCARE NHS FOUNDATION TRUST","Specialist Services",65,0.90769230769230769,7.6923076923076927E-2,58,1,1,0,5,0]
["QR1","RTQ","GLOUCESTERSHIRE HEALTH AND CARE NHS FOUNDATION TRUST","Children & Family Services",214,0.9719626168224299,1.4018691588785047E-2,176,32,2,1,2,1]
["QR1","RTQ","GLOUCESTERSHIRE HEALTH AND CARE NHS FOUNDATION TRUST","Community Healthcare Other",487,0.94661190965092401,2.6694045174537988E-2,414,47,11,7,6,2]
["QR1","RTQ","GLOUCESTERSHIRE HEALTH AND CARE NHS FOUNDATION TRUST","Community Inpatient Services",67,0.95522388059701491,1.4925373134328358E-2,50,14,2,1,0,0]
["QR1","RTQ","GLOUCESTERSHIRE HEALTH AND CARE NHS FOUNDATION TRUST","Community Nursing Services",40,0.95,2.5000000000000001E-2,33,5,1,1,0,0]
["QR1","RTQ","GLOUCESTERSHIRE HEALTH AND CARE NHS FOUNDATION TRUST","Rehabilitation & Therapy Services",243,0.97942386831275718,1.2345679012345678E-2,212,26,2,0,3,0]
["QR1","RTQ","GLOUCESTERSHIRE HEALTH AND CARE NHS FOUNDATION TRUST","Specialist Services",316,0.97151898734177211,9.4936708860759497E-3,278,29,5,1,2,1]
["QRL","R1F","ISLE OF WIGHT NHS TRUST","Children & Family Services",8,1,0,7,1,0,0,0,0]
["QRL","R1F","ISLE OF WIGHT NHS TRUST","Community Healthcare Other",6,1,0,"*","*","*","*","*","*"]
["QRL","R1F","ISLE OF WIGHT NHS TRUST","Community Inpatient Services",15,1,0,11,4,0,0,0,0]
["QRL","R1F","ISLE OF WIGHT NHS TRUST","Community Nursing Services",4,"*","*","*","*","*","*","*","*"]
["QRL","R1F","ISLE OF WIGHT NHS TRUST","Rehabilitation & Therapy Services",23,1,0,22,1,0,0,0,0]
["QRL","R1F","ISLE OF WIGHT NHS TRUST","Specialist Services",16,1,0,13,3,0,0,0,0]
["QRL","R1C","SOLENT NHS TRUST","Children & Family Services",135,0.91111111111111109,5.185185185185185E-2,100,23,3,4,3,2]
["QRL","R1C","SOLENT NHS TRUST","Community Healthcare Other",29,0.86206896551724133,0.13793103448275862,22,3,0,1,3,0]
["QRL","R1C","SOLENT NHS TRUST","Community Inpatient Services",35,0.94285714285714284,2.8571428571428571E-2,29,4,0,0,1,1]
["QRL","R1C","SOLENT NHS TRUST","Community Nursing Services",161,0.95652173913043481,1.8633540372670808E-2,123,31,3,3,0,1]
["QRL","R1C","SOLENT NHS TRUST","Rehabilitation & Therapy Services",954,0.94339622641509435,3.2494758909853247E-2,789,111,21,15,16,2]
["QRL","R1C","SOLENT NHS TRUST","Specialist Services",411,0.95863746958637475,9.7323600973236012E-3,333,61,7,2,2,6]
["QRL","RW1","SOUTHERN HEALTH NHS FOUNDATION TRUST","Children & Family Services",33,1,0,31,2,0,0,0,0]
["QRL","RW1","SOUTHERN HEALTH NHS FOUNDATION TRUST","Community Healthcare Other",4,"*","*","*","*","*","*","*","*"]
["QRL","RW1","SOUTHERN HEALTH NHS FOUNDATION TRUST","Community Inpatient Services",4,"*","*","*","*","*","*","*","*"]
["QRL","RW1","SOUTHERN HEALTH NHS FOUNDATION TRUST","Community Nursing Services",15,1,0,15,0,0,0,0,0]
["QRL","RW1","SOUTHERN HEALTH NHS FOUNDATION TRUST","Rehabilitation & Therapy Services",10,1,0,9,1,0,0,0,0]
["QRV","RYX","CENTRAL LONDON COMMUNITY HEALTHCARE NHS TRUST","Children & Family Services",38,0.92105263157894735,2.6315789473684209E-2,30,5,2,1,0,0]
["QRV","RYX","CENTRAL LONDON COMMUNITY HEALTHCARE NHS TRUST","Community Healthcare Other",192,0.97395833333333337,1.0416666666666666E-2,169,18,3,2,0,0]
["QRV","RYX","CENTRAL LONDON COMMUNITY HEALTHCARE NHS TRUST","Community Inpatient Services",84,0.95238095238095233,0,56,24,3,0,0,1]
["QRV","RYX","CENTRAL LONDON COMMUNITY HEALTHCARE NHS TRUST","Community Nursing Services",541,0.9593345656192237,1.4787430683918669E-2,458,61,14,3,5,0]
["QRV","RYX","CENTRAL LONDON COMMUNITY HEALTHCARE NHS TRUST","Rehabilitation & Therapy Services",344,0.95930232558139539,1.7441860465116279E-2,286,44,7,4,2,1]
["QRV","RYX","CENTRAL LONDON COMMUNITY HEALTHCARE NHS TRUST","Specialist Services",612,0.98529411764705888,4.9019607843137254E-3,560,43,6,2,1,0]
["QRV","RQM","CHELSEA AND WESTMINSTER HOSPITAL NHS FOUNDATION TRUST","Specialist Services",291,0.96219931271477666,1.0309278350515464E-2,261,19,7,1,2,1]
["QRV","R1K","LONDON NORTH WEST UNIVERSITY HEALTHCARE NHS TRUST","Specialist Services",183,0.97267759562841527,2.185792349726776E-2,171,7,1,0,4,0]
["QRV","RKL","WEST LONDON NHS TRUST","Children & Family Services",54,0.94444444444444442,3.7037037037037035E-2,41,10,1,0,2,0]
["QRV","RKL","WEST LONDON NHS TRUST","Community Inpatient Services",42,0.9285714285714286,2.3809523809523808E-2,23,16,2,1,0,0]
["QRV","RKL","WEST LONDON NHS TRUST","Rehabilitation & Therapy Services",8,1,0,7,1,0,0,0,0]
["QRV","RKL","WEST LONDON NHS TRUST","Specialist Services",44,1,0,42,2,0,0,0,0]
["QSL","RH5","SOMERSET NHS FOUNDATION TRUST","Specialist Services",30,1,0,"*","*","*","*","*","*"]
["QT1","RHA","NOTTINGHAMSHIRE HEALTHCARE NHS FOUNDATION TRUST","Children & Family Services",35,0.91428571428571426,0,27,5,3,0,0,0]
["QT1","RHA","NOTTINGHAMSHIRE HEALTHCARE NHS FOUNDATION TRUST","Community Healthcare Other",1,"*","*","*","*","*","*","*","*"]
["QT1","RHA","NOTTINGHAMSHIRE HEALTHCARE NHS FOUNDATION TRUST","Community Nursing Services",34,0.88235294117647056,8.8235294117647065E-2,24,6,1,2,1,0]
["QT1","RHA","NOTTINGHAMSHIRE HEALTHCARE NHS FOUNDATION TRUST","Specialist Services",11,1,0,"*","*","*","*","*","*"]
["QT6","RJ8","CORNWALL PARTNERSHIP NHS FOUNDATION TRUST","Children & Family Services",1,"*","*","*","*","*","*","*","*"]
["QT6","RJ8","CORNWALL PARTNERSHIP NHS FOUNDATION TRUST","Community Healthcare Other",913,0.92990142387732744,4.271631982475356E-2,737,112,23,24,15,2]
["QT6","RJ8","CORNWALL PARTNERSHIP NHS FOUNDATION TRUST","Community Inpatient Services",103,0.99029126213592233,9.7087378640776691E-3,91,11,0,0,1,0]
["QT6","RJ8","CORNWALL PARTNERSHIP NHS FOUNDATION TRUST","Community Nursing Services",5,1,0,"*","*","*","*","*","*"]
["QT6","RJ8","CORNWALL PARTNERSHIP NHS FOUNDATION TRUST","Rehabilitation & Therapy Services",7,1,0,6,1,0,0,0,0]
["QT6","RJ8","CORNWALL PARTNERSHIP NHS FOUNDATION TRUST","Specialist Services",80,1,0,66,14,0,0,0,0]
["QU9","RXQ","BUCKINGHAMSHIRE HEALTHCARE NHS TRUST","Children & Family Services",117,0.88034188034188032,6.8376068376068383E-2,89,14,5,4,4,1]
["QU9","RXQ","BUCKINGHAMSHIRE HEALTHCARE NHS TRUST","Community Healthcare Other",7,1,0,"*","*","*","*","*","*"]
["QU9","RXQ","BUCKINGHAMSHIRE HEALTHCARE NHS TRUST","Community Inpatient Services",3,"*","*","*","*","*","*","*","*"]
["QU9","RXQ","BUCKINGHAMSHIRE HEALTHCARE NHS TRUST","Community Nursing Services",345,0.89855072463768115,2.6086956521739129E-2,249,61,19,6,3,7]
["QU9","RXQ","BUCKINGHAMSHIRE HEALTHCARE NHS TRUST","Rehabilitation & Therapy Services",234,0.89316239316239321,2.1367521367521368E-2,168,41,8,2,3,12]
["QU9","RXQ","BUCKINGHAMSHIRE HEALTHCARE NHS TRUST","Specialist Services",68,0.92647058823529416,2.9411764705882353E-2,54,9,2,1,1,1]
["QU9","RNU","OXFORD HEALTH NHS FOUNDATION TRUST","Children & Family Services",62,0.9838709677419355,0,60,1,1,0,0,0]
["QU9","RNU","OXFORD HEALTH NHS FOUNDATION TRUST","Community Healthcare Other",79,0.94936708860759489,3.7974683544303799E-2,69,6,0,1,2,1]
["QU9","RNU","OXFORD HEALTH NHS FOUNDATION TRUST","Community Inpatient Services",108,0.9907407407407407,9.2592592592592587E-3,84,23,0,1,0,0]
["QU9","RNU","OXFORD HEALTH NHS FOUNDATION TRUST","Community Nursing Services",52,0.94230769230769229,5.7692307692307696E-2,48,1,0,0,3,0]
["QU9","RNU","OXFORD HEALTH NHS FOUNDATION TRUST","Rehabilitation & Therapy Services",183,0.90710382513661203,4.9180327868852458E-2,134,32,4,3,6,4]
["QU9","RNU","OXFORD HEALTH NHS FOUNDATION TRUST","Specialist Services",257,0.9377431906614786,3.5019455252918288E-2,226,15,1,0,9,6]
["QUA","TAJ","BLACK COUNTRY HEALTHCARE NHS FOUNDATION TRUST","Community Healthcare Other",23,1,0,22,1,0,0,0,0]
["QUA","RNA","THE DUDLEY GROUP NHS FOUNDATION TRUST","Community Nursing Services",187,0.82887700534759357,3.2085561497326207E-2,144,11,7,2,4,19]
["QUA","RNA","THE DUDLEY GROUP NHS FOUNDATION TRUST","Rehabilitation & Therapy Services",138,0.91304347826086951,7.246376811594203E-3,117,9,4,0,1,7]
["QUA","RNA","THE DUDLEY GROUP NHS FOUNDATION TRUST","Specialist Services",8,0.875,0.125,6,1,0,0,1,0]
["QUA","RL4","THE ROYAL WOLVERHAMPTON NHS TRUST","Community Healthcare Other",386,0.92227979274611394,2.5906735751295335E-2,293,63,9,4,6,11]
["QUA","RBK","WALSALL HEALTHCARE NHS TRUST","Community Healthcare Other",490,0.93877551020408168,2.2448979591836733E-2,393,67,19,9,2,0]
["QUE","RT1","CAMBRIDGESHIRE AND PETERBOROUGH NHS FOUNDATION TRUST","Children & Family Services",9,0.88888888888888884,0.1111111111111111,7,1,0,0,1,0]
["QUE","RT1","CAMBRIDGESHIRE AND PETERBOROUGH NHS FOUNDATION TRUST","Community Healthcare Other",247,0.96761133603238869,3.2388663967611336E-2,223,16,0,7,1,0]
["QUE","RT1","CAMBRIDGESHIRE AND PETERBOROUGH NHS FOUNDATION TRUST","Community Inpatient Services",21,1,0,14,7,0,0,0,0]
["QUE","RT1","CAMBRIDGESHIRE AND PETERBOROUGH NHS FOUNDATION TRUST","Community Nursing Services",81,0.97530864197530864,0,58,21,2,0,0,0]
["QUE","RT1","CAMBRIDGESHIRE AND PETERBOROUGH NHS FOUNDATION TRUST","Rehabilitation & Therapy Services",92,0.97826086956521741,2.1739130434782608E-2,78,12,0,1,1,0]
["QUE","RT1","CAMBRIDGESHIRE AND PETERBOROUGH NHS FOUNDATION TRUST","Specialist Services",10,1,0,6,4,0,0,0,0]
["QUE","RYV","CAMBRIDGESHIRE COMMUNITY SERVICES NHS TRUST","Children & Family Services",365,0.92054794520547945,4.6575342465753428E-2,261,75,12,11,6,0]
["QUE","RYV","CAMBRIDGESHIRE COMMUNITY SERVICES NHS TRUST","Community Healthcare Other",183,0.96174863387978138,1.092896174863388E-2,162,14,5,0,2,0]
["QUE","RYV","CAMBRIDGESHIRE COMMUNITY SERVICES NHS TRUST","Community Nursing Services",73,0.9726027397260274,0,51,20,2,0,0,0]
["QUE","RYV","CAMBRIDGESHIRE COMMUNITY SERVICES NHS TRUST","Rehabilitation & Therapy Services",202,0.96534653465346532,2.4752475247524754E-2,176,19,2,3,2,0]
["QUE","RYV","CAMBRIDGESHIRE COMMUNITY SERVICES NHS TRUST","Specialist Services",1135,0.96211453744493391,2.5550660792951541E-2,975,117,11,13,16,3]
["QVV","RDY","DORSET HEALTHCARE UNIVERSITY NHS FOUNDATION TRUST","Children & Family Services",202,0.90594059405940597,4.9504950495049507E-2,148,35,6,2,8,3]
["QVV","RDY","DORSET HEALTHCARE UNIVERSITY NHS FOUNDATION TRUST","Community Healthcare Other",379,0.97097625329815307,1.3192612137203167E-2,349,19,6,2,3,0]
["QVV","RDY","DORSET HEALTHCARE UNIVERSITY NHS FOUNDATION TRUST","Community Inpatient Services",42,0.88095238095238093,4.7619047619047616E-2,30,7,2,1,1,1]
["QVV","RDY","DORSET HEALTHCARE UNIVERSITY NHS FOUNDATION TRUST","Community Nursing Services",361,0.91412742382271472,3.8781163434903045E-2,296,34,7,6,8,10]
["QVV","RDY","DORSET HEALTHCARE UNIVERSITY NHS FOUNDATION TRUST","Rehabilitation & Therapy Services",581,0.95180722891566261,2.4096385542168676E-2,490,63,11,5,9,3]
["QVV","RDY","DORSET HEALTHCARE UNIVERSITY NHS FOUNDATION TRUST","Specialist Services",411,0.96593673965936744,1.2165450121654502E-2,361,36,8,1,4,1]
["QWE","RJ6","CROYDON HEALTH SERVICES NHS TRUST","Children & Family Services",45,1,0,45,0,0,0,0,0]
["QWE","RJ6","CROYDON HEALTH SERVICES NHS TRUST","Community Nursing Services",2,"*","*","*","*","*","*","*","*"]
["QWE","RJ6","CROYDON HEALTH SERVICES NHS TRUST","Rehabilitation & Therapy Services",13,1,0,"*","*","*","*","*","*"]
["QWE","RJ6","CROYDON HEALTH SERVICES NHS TRUST","Specialist Services",15,1,0,15,0,0,0,0,0]
["QWE","RVR","EPSOM AND ST HELIER UNIVERSITY HOSPITALS NHS TRUST","Children & Family Services",93,0.956989247311828,1.0752688172043012E-2,78,11,3,0,1,0]
["QWE","RVR","EPSOM AND ST HELIER UNIVERSITY HOSPITALS NHS TRUST","Community Healthcare Other",71,1,0,62,9,0,0,0,0]
["QWE","RVR","EPSOM AND ST HELIER UNIVERSITY HOSPITALS NHS TRUST","Community Inpatient Services",53,0.90566037735849059,0,"*","*","*","*","*","*"]
["QWE","RVR","EPSOM AND ST HELIER UNIVERSITY HOSPITALS NHS TRUST","Community Nursing Services",57,1,0,55,2,0,0,0,0]
["QWE","RVR","EPSOM AND ST HELIER UNIVERSITY HOSPITALS NHS TRUST","Rehabilitation & Therapy Services",118,0.99152542372881358,0,111,6,0,0,0,1]
["QWE","RVR","EPSOM AND ST HELIER UNIVERSITY HOSPITALS NHS TRUST","Specialist Services",4,"*","*","*","*","*","*","*","*"]
["QWE","RY9","HOUNSLOW AND RICHMOND COMMUNITY HEALTHCARE NHS TRUST","Children & Family Services",88,0.89772727272727271,4.5454545454545456E-2,59,20,5,0,4,0]
["QWE","RY9","HOUNSLOW AND RICHMOND COMMUNITY HEALTHCARE NHS TRUST","Community Healthcare Other",272,0.94852941176470584,3.3088235294117647E-2,226,32,5,6,3,0]
["QWE","RY9","HOUNSLOW AND RICHMOND COMMUNITY HEALTHCARE NHS TRUST","Community Inpatient Services",10,0.9,0,6,3,1,0,0,0]
["QWE","RY9","HOUNSLOW AND RICHMOND COMMUNITY HEALTHCARE NHS TRUST","Community Nursing Services",206,0.99029126213592233,4.8543689320388345E-3,99,105,1,0,1,0]
["QWE","RY9","HOUNSLOW AND RICHMOND COMMUNITY HEALTHCARE NHS TRUST","Rehabilitation & Therapy Services",260,0.99230769230769234,3.8461538461538464E-3,175,83,1,1,0,0]
["QWE","RY9","HOUNSLOW AND RICHMOND COMMUNITY HEALTHCARE NHS TRUST","Specialist Services",111,0.97297297297297303,0,88,20,2,0,0,1]
["QWE","RJ7","ST GEORGE'S UNIVERSITY HOSPITALS NHS FOUNDATION TRUST","Rehabilitation & Therapy Services",17,0.94117647058823528,0,13,3,1,0,0,0]
["QWO","RCF","AIREDALE NHS FOUNDATION TRUST","Community Healthcare Other",187,0.89839572192513373,4.2780748663101602E-2,139,29,9,3,5,2]
["QWO","TAD","BRADFORD DISTRICT CARE NHS FOUNDATION TRUST","Children & Family Services",137,0.94890510948905105,2.1897810218978103E-2,112,18,2,3,0,2]
["QWO","TAD","BRADFORD DISTRICT CARE NHS FOUNDATION TRUST","Community Healthcare Other",627,0.98405103668261562,6.379585326953748E-3,533,84,6,2,2,0]
["QWO","TAD","BRADFORD DISTRICT CARE NHS FOUNDATION TRUST","Community Nursing Services",82,0.98780487804878048,0,77,4,1,0,0,0]
["QWO","TAD","BRADFORD DISTRICT CARE NHS FOUNDATION TRUST","Rehabilitation & Therapy Services",5,1,0,3,2,0,0,0,0]
["QWO","TAD","BRADFORD DISTRICT CARE NHS FOUNDATION TRUST","Specialist Services",16,0.8125,0,12,1,3,0,0,0]
["QWO","RWY","CALDERDALE AND HUDDERSFIELD NHS FOUNDATION TRUST","Community Nursing Services",77,0.94805194805194803,1.2987012987012988E-2,20,53,1,0,1,2]
["QWO","RWY","CALDERDALE AND HUDDERSFIELD NHS FOUNDATION TRUST","Rehabilitation & Therapy Services",53,0.98113207547169812,0,51,1,0,0,0,1]
["QWO","RWY","CALDERDALE AND HUDDERSFIELD NHS FOUNDATION TRUST","Specialist Services",13,0.92307692307692313,0,12,0,0,0,0,1]
["QWO","RY6","LEEDS COMMUNITY HEALTHCARE NHS TRUST","Children & Family Services",111,0.98198198198198194,9.0090090090090089E-3,97,12,0,0,1,1]
["QWO","RY6","LEEDS COMMUNITY HEALTHCARE NHS TRUST","Community Inpatient Services",1,"*","*","*","*","*","*","*","*"]
["QWO","RY6","LEEDS COMMUNITY HEALTHCARE NHS TRUST","Community Nursing Services",54,0.94444444444444442,0,"*","*","*","*","*","*"]
["QWO","RY6","LEEDS COMMUNITY HEALTHCARE NHS TRUST","Specialist Services",107,0.93457943925233644,4.6728971962616821E-2,86,14,1,4,1,1]
["QWO","RXF","MID YORKSHIRE HOSPITALS NHS TRUST","Children & Family Services",56,0.9821428571428571,0,48,7,1,0,0,0]
["QWO","RXF","MID YORKSHIRE HOSPITALS NHS TRUST","Community Nursing Services",446,0.99551569506726456,2.242152466367713E-3,410,34,1,1,0,0]
["QWO","RXF","MID YORKSHIRE HOSPITALS NHS TRUST","Rehabilitation & Therapy Services",640,0.98906249999999996,4.6874999999999998E-3,598,35,2,2,1,2]
["QWO","RXF","MID YORKSHIRE HOSPITALS NHS TRUST","Specialist Services",472,0.97881355932203384,1.059322033898305E-2,418,44,4,1,4,1]
["QWO","RXG","SOUTH WEST YORKSHIRE PARTNERSHIP NHS FOUNDATION TRUST","Children & Family Services",50,1,0,36,14,0,0,0,0]
["QWO","RXG","SOUTH WEST YORKSHIRE PARTNERSHIP NHS FOUNDATION TRUST","Community Nursing Services",8,1,0,8,0,0,0,0,0]
["QWO","RXG","SOUTH WEST YORKSHIRE PARTNERSHIP NHS FOUNDATION TRUST","Rehabilitation & Therapy Services",178,0.8932584269662921,6.1797752808988762E-2,136,23,7,5,6,1]
["QWO","RXG","SOUTH WEST YORKSHIRE PARTNERSHIP NHS FOUNDATION TRUST","Specialist Services",108,0.93518518518518523,1.8518518518518517E-2,90,11,3,0,2,2]
["QWU","RJC","SOUTH WARWICKSHIRE NHS FOUNDATION TRUST","Children & Family Services",4,"*","*","*","*","*","*","*","*"]
["QWU","RJC","SOUTH WARWICKSHIRE NHS FOUNDATION TRUST","Community Healthcare Other",8,1,0,"*","*","*","*","*","*"]
["QWU","RJC","SOUTH WARWICKSHIRE NHS FOUNDATION TRUST","Community Nursing Services",134,0.95522388059701491,2.9850746268656716E-2,119,9,1,0,4,1]
["QWU","RJC","SOUTH WARWICKSHIRE NHS FOUNDATION TRUST","Rehabilitation & Therapy Services",10,0.9,0.1,9,0,0,0,1,0]
["QWU","RJC","SOUTH WARWICKSHIRE NHS FOUNDATION TRUST","Specialist Services",67,0.92537313432835822,7.4626865671641784E-2,48,14,0,0,5,0]
["QXU","RA2","ROYAL SURREY COUNTY HOSPITAL NHS FOUNDATION TRUST","Community Inpatient Services",39,0.97435897435897434,2.564102564102564E-2,34,4,0,1,0,0]
["QXU","RA2","ROYAL SURREY COUNTY HOSPITAL NHS FOUNDATION TRUST","Rehabilitation & Therapy Services",44,1,0,42,2,0,0,0,0]
["QYG","RBS","ALDER HEY CHILDREN'S NHS FOUNDATION TRUST","Children & Family Services",120,0.9,7.4999999999999997E-2,95,13,3,4,5,0]
["QYG","RY2","BRIDGEWATER COMMUNITY HEALTHCARE NHS FOUNDATION TRUST","Children & Family Services",180,0.93333333333333335,0.05,152,16,1,2,7,2]
["QYG","RY2","BRIDGEWATER COMMUNITY HEALTHCARE NHS FOUNDATION TRUST","Community Healthcare Other",832,0.96875,1.3221153846153846E-2,662,144,14,5,6,1]
["QYG","RY2","BRIDGEWATER COMMUNITY HEALTHCARE NHS FOUNDATION TRUST","Community Nursing Services",264,0.90530303030303028,1.893939393939394E-2,214,25,10,2,3,10]
["QYG","RY2","BRIDGEWATER COMMUNITY HEALTHCARE NHS FOUNDATION TRUST","Rehabilitation & Therapy Services",477,0.92452830188679247,4.1928721174004195E-2,384,57,11,7,13,5]
["QYG","RY2","BRIDGEWATER COMMUNITY HEALTHCARE NHS FOUNDATION TRUST","Specialist Services",318,0.92767295597484278,4.40251572327044E-2,268,27,6,7,7,3]
["QYG","RXA","CHESHIRE AND WIRRAL PARTNERSHIP NHS FOUNDATION TRUST","Children & Family Services",1,"*","*","*","*","*","*","*","*"]
["QYG","RXA","CHESHIRE AND WIRRAL PARTNERSHIP NHS FOUNDATION TRUST","Community Nursing Services",39,0.82051282051282048,7.6923076923076927E-2,26,6,1,1,2,3]
["QYG","RXA","CHESHIRE AND WIRRAL PARTNERSHIP NHS FOUNDATION TRUST","Rehabilitation & Therapy Services",11,0.90909090909090906,9.0909090909090912E-2,"*","*","*","*","*","*"]
["QYG","RJN","EAST CHESHIRE NHS TRUST","Children & Family Services",6,1,0,5,1,0,0,0,0]
["QYG","RJN","EAST CHESHIRE NHS TRUST","Community Nursing Services",65,0.81538461538461537,6.1538461538461542E-2,45,8,5,3,1,3]
["QYG","RJN","EAST CHESHIRE NHS TRUST","Rehabilitation & Therapy Services",99,0.92929292929292928,1.0101010101010102E-2,76,16,4,0,1,2]
["QYG","RJN","EAST CHESHIRE NHS TRUST","Specialist Services",10,1,0,10,0,0,0,0,0]
["QYG","RW4","MERSEY CARE NHS FOUNDATION TRUST","Children & Family Services",601,0.95341098169717142,8.3194675540765387E-3,469,104,18,4,1,5]
["QYG","RW4","MERSEY CARE NHS FOUNDATION TRUST","Community Nursing Services",6,0.83333333333333337,0.16666666666666666,5,0,0,0,1,0]
["QYG","RW4","MERSEY CARE NHS FOUNDATION TRUST","Rehabilitation & Therapy Services",80,0.98750000000000004,0,78,1,1,0,0,0]
["QYG","RW4","MERSEY CARE NHS FOUNDATION TRUST","Specialist Services",164,0.96951219512195119,6.0975609756097563E-3,144,15,4,1,0,0]
["QYG","RBT","MID CHESHIRE HOSPITALS NHS FOUNDATION TRUST","Children & Family Services",29,0.82758620689655171,0.17241379310344829,21,3,0,1,4,0]
["QYG","RBT","MID CHESHIRE HOSPITALS NHS FOUNDATION TRUST","Community Healthcare Other",22,0.86363636363636365,4.5454545454545456E-2,19,0,1,0,1,1]
["QYG","RBT","MID CHESHIRE HOSPITALS NHS FOUNDATION TRUST","Community Nursing Services",155,0.92903225806451617,2.5806451612903226E-2,117,27,7,3,1,0]
["QYG","RBT","MID CHESHIRE HOSPITALS NHS FOUNDATION TRUST","Rehabilitation & Therapy Services",319,0.93416927899686519,2.8213166144200628E-2,270,28,11,4,5,1]
["QYG","RVY","SOUTHPORT AND ORMSKIRK HOSPITAL NHS TRUST","Specialist Services",3,"*","*","*","*","*","*","*","*"]
["QYG","RY7","WIRRAL COMMUNITY HEALTH AND CARE NHS FOUNDATION TRUST","Children & Family Services",11,1,0,9,2,0,0,0,0]
["QYG","RY7","WIRRAL COMMUNITY HEALTH AND CARE NHS FOUNDATION TRUST","Community Healthcare Other",604,0.85264900662251653,9.4370860927152314E-2,417,98,26,21,36,6]
["QYG","RY7","WIRRAL COMMUNITY HEALTH AND CARE NHS FOUNDATION TRUST","Community Inpatient Services",4,"*","*","*","*","*","*","*","*"]
["QYG","RY7","WIRRAL COMMUNITY HEALTH AND CARE NHS FOUNDATION TRUST","Community Nursing Services",6,0.83333333333333337,0,"*","*","*","*","*","*"]
["QYG","RY7","WIRRAL COMMUNITY HEALTH AND CARE NHS FOUNDATION TRUST","Rehabilitation & Therapy Services",74,0.95945945945945943,0,65,6,2,0,0,1]
["QYG","RY7","WIRRAL COMMUNITY HEALTH AND CARE NHS FOUNDATION TRUST","Specialist Services",35,1,0,25,10,0,0,0,0]
["IS1","NEC","ALLIED HEALTH PROFESSIONALS SUFFOLK CIC","Rehabilitation & Therapy Services",191,0.97905759162303663,1.5706806282722512E-2,168,19,1,1,2,0]
["IS1","8J094","BADGER LTD","Community Healthcare Other",68,0.97058823529411764,1.4705882352941176E-2,56,10,1,0,1,0]
["IS1","DVG","BARDOC","Community Healthcare Other",38,0.86842105263157898,2.6315789473684209E-2,20,13,4,0,1,0]
["IS1","NQV","BROMLEY HEALTHCARE","Children & Family Services",88,0.85227272727272729,0,71,4,1,0,0,12]
["IS1","NQV","BROMLEY HEALTHCARE","Community Nursing Services",32,1,0,28,4,0,0,0,0]
["IS1","NQV","BROMLEY HEALTHCARE","Rehabilitation & Therapy Services",38,0.97368421052631582,2.6315789473684209E-2,36,1,0,0,1,0]
["IS1","NQV","BROMLEY HEALTHCARE","Specialist Services",149,0.91946308724832215,3.3557046979865772E-2,116,21,3,1,4,4]
["IS1","NL3","CARE PLUS GROUP","Community Nursing Services",61,0.96721311475409832,0,"*","*","*","*","*","*"]
["IS1","NL3","CARE PLUS GROUP","Specialist Services",2,"*","*","*","*","*","*","*","*"]
["IS1","Q8V5K","CITIZENS ADVICE STOCKPORT, OLDHAM, ROCHDALE","Community Healthcare Other",5,1,0,5,0,0,0,0,0]
["IS1","NNF","CITY HEALTH CARE PARTNERSHIP CIC","Children & Family Services",47,1,0,46,1,0,0,0,0]
["IS1","NNF","CITY HEALTH CARE PARTNERSHIP CIC","Community Healthcare Other",40,0.95,2.5000000000000001E-2,37,1,1,0,1,0]
["IS1","NNF","CITY HEALTH CARE PARTNERSHIP CIC","Community Nursing Services",88,0.98863636363636365,0,82,5,1,0,0,0]
["IS1","NNF","CITY HEALTH CARE PARTNERSHIP CIC","Rehabilitation & Therapy Services",571,0.978984238178634,1.0507880910683012E-2,488,71,5,3,3,1]
["IS1","NNF","CITY HEALTH CARE PARTNERSHIP CIC","Specialist Services",1165,0.97253218884120174,1.1158798283261802E-2,989,144,14,7,6,5]
["IS1","DCF","CLINICAL PARTNERSHIP","Community Healthcare Other",45,0.97777777777777775,0,43,1,1,0,0,0]
["IS1","NMG","CONNECT HEALTH LIMITED","Community Healthcare Other",3188,0.8638644918444166,5.4893350062735255E-2,2138,616,215,79,96,44]
["IS1","NY6","CONNECT HEALTH PAIN SERVICES","Community Healthcare Other",83,0.68674698795180722,0.14457831325301204,37,20,7,2,10,7]
["IS1","NY6","CONNECT HEALTH PAIN SERVICES","Specialist Services",464,0.75646551724137934,0.14439655172413793,244,107,39,25,42,7]
["IS1","NTV","CSH SURREY","Children & Family Services",1,"*","*","*","*","*","*","*","*"]
["IS1","NTV","CSH SURREY","Community Inpatient Services",25,0.84,0.04,"*","*","*","*","*","*"]
["IS1","8HE44","DR KERSHAWS HOSPICE","Community Healthcare Other",5,1,0,5,0,0,0,0,0]
["IS1","8HE44","DR KERSHAWS HOSPICE","Community Inpatient Services",5,1,0,5,0,0,0,0,0]
["IS1","8HE44","DR KERSHAWS HOSPICE","Community Nursing Services",5,1,0,5,0,0,0,0,0]
["IS1","NAX","EAST COAST COMMUNITY HEALTHCARE C.I.C","Community Healthcare Other",2,"*","*","*","*","*","*","*","*"]
["IS1","NAX","EAST COAST COMMUNITY HEALTHCARE C.I.C","Community Inpatient Services",6,1,0,"*","*","*","*","*","*"]
["IS1","NAX","EAST COAST COMMUNITY HEALTHCARE C.I.C","Community Nursing Services",10,0.9,0.1,9,0,0,0,1,0]
["IS1","NAX","EAST COAST COMMUNITY HEALTHCARE C.I.C","Rehabilitation & Therapy Services",35,0.97142857142857142,2.8571428571428571E-2,27,7,0,0,1,0]
["IS1","NAX","EAST COAST COMMUNITY HEALTHCARE C.I.C","Specialist Services",27,1,0,25,2,0,0,0,0]
["IS1","DY6","EASTLEIGH SOUTHERN PARISHES NETWORK LTD","Community Healthcare Other",104,0.79807692307692313,0.15384615384615385,69,14,5,5,11,0]
["IS1","NDJ","FIRST COMMUNITY HEALTH AND CARE CIC","Children & Family Services",10,1,0,9,1,0,0,0,0]
["IS1","NDJ","FIRST COMMUNITY HEALTH AND CARE CIC","Community Healthcare Other",29,0.86206896551724133,0,25,0,0,0,0,4]
["IS1","NDJ","FIRST COMMUNITY HEALTH AND CARE CIC","Community Inpatient Services",4,"*","*","*","*","*","*","*","*"]
["IS1","NDJ","FIRST COMMUNITY HEALTH AND CARE CIC","Community Nursing Services",2,"*","*","*","*","*","*","*","*"]
["IS1","NDJ","FIRST COMMUNITY HEALTH AND CARE CIC","Rehabilitation & Therapy Services",74,0.8783783783783784,4.0540540540540543E-2,56,9,3,0,3,3]
["IS1","NDJ","FIRST COMMUNITY HEALTH AND CARE CIC","Specialist Services",20,1,0,19,1,0,0,0,0]
["IS1","NDK","FRESHNEY PELHAM CARE LIMITED","Community Nursing Services",43,1,0,38,5,0,0,0,0]
["IS1","NWV01","GP CARE UK","Community Healthcare Other",167,0.9880239520958084,1.1976047904191617E-2,145,20,0,2,0,0]
["IS1","NHA","INSIDEVUE LIMITED","Community Inpatient Services",91,0.95604395604395609,1.098901098901099E-2,69,18,3,1,0,0]
["IS1","NLE01","LANCASTER HOUSE CONSULTING DIAGNOSTICS SURGICAL LTD HQ","Community Healthcare Other",1345,0.971003717472119,6.6914498141263943E-3,832,474,30,9,0,0]
["IS1","NR5","LIVEWELL SOUTHWEST","Children & Family Services",3,"*","*","*","*","*","*","*","*"]
["IS1","NR5","LIVEWELL SOUTHWEST","Community Healthcare Other",82,0.93902439024390238,0,66,11,3,0,0,2]
["IS1","NR5","LIVEWELL SOUTHWEST","Community Nursing Services",7,1,0,"*","*","*","*","*","*"]
["IS1","NR5","LIVEWELL SOUTHWEST","Rehabilitation & Therapy Services",84,0.97619047619047616,0,72,10,2,0,0,0]
["IS1","NR5","LIVEWELL SOUTHWEST","Specialist Services",64,0.96875,1.5625E-2,56,6,1,1,0,0]
["IS1","DAY","LLR PROVIDER COMPANY LTD","Community Healthcare Other",975,0.98461538461538467,0,865,95,15,0,0,0]
["IS1","NL8","LOCALA COMMUNITY PARTNERSHIPS CIC","Children & Family Services",177,0.96610169491525422,1.6949152542372881E-2,154,17,3,1,2,0]
["IS1","NL8","LOCALA COMMUNITY PARTNERSHIPS CIC","Community Healthcare Other",299,0.9364548494983278,4.0133779264214048E-2,248,32,7,5,7,0]
["IS1","NL8","LOCALA COMMUNITY PARTNERSHIPS CIC","Community Nursing Services",146,1,0,132,14,0,0,0,0]
["IS1","NL8","LOCALA COMMUNITY PARTNERSHIPS CIC","Rehabilitation & Therapy Services",98,0.96938775510204078,2.0408163265306121E-2,93,2,1,1,1,0]
["IS1","NL8","LOCALA COMMUNITY PARTNERSHIPS CIC","Specialist Services",1473,0.9660556687033266,1.493550577053632E-2,1281,142,27,11,11,1]
["IS1","NCE","MASTERCALL HEALTHCARE","Community Healthcare Other",394,0.64720812182741116,0.26903553299492383,161,94,27,21,85,6]
["IS1","NQ7","MEDWAY COMMUNITY HEALTHCARE","Children & Family Services",98,0.79591836734693877,0.1326530612244898,55,23,7,6,7,0]
["IS1","NQ7","MEDWAY COMMUNITY HEALTHCARE","Community Healthcare Other",18,0.83333333333333337,0.16666666666666666,15,0,0,0,3,0]
["IS1","NQ7","MEDWAY COMMUNITY HEALTHCARE","Community Nursing Services",165,0.90303030303030307,1.8181818181818181E-2,112,37,10,0,3,3]
["IS1","NQ7","MEDWAY COMMUNITY HEALTHCARE","Rehabilitation & Therapy Services",283,0.92226148409893993,2.8268551236749116E-2,206,55,14,4,4,0]
["IS1","NQ7","MEDWAY COMMUNITY HEALTHCARE","Specialist Services",5,1,0,5,0,0,0,0,0]
["IS1","ARA","MID HAMPSHIRE HEALTHCARE LIMITED","Community Healthcare Other",82,0.93902439024390238,3.6585365853658534E-2,71,6,2,2,1,0]
["IS1","NPH","MILTON KEYNES URGENT CARE SERVICES CIC HQ","Community Healthcare Other",663,0.79788838612368029,0.11613876319758673,326,203,51,29,48,6]
["IS1","AT7H","NEIGHBOURHOOD CARE LIMITED","Community Inpatient Services",21,1,0,21,0,0,0,0,0]
["IS1","NHX","NORTH HAMPSHIRE URGENT CARE","Community Healthcare Other",55,0.94545454545454544,0,37,15,3,0,0,0]
["IS1","NR3","NOTTINGHAM CITYCARE PARTNERSHIP","Children & Family Services",21,1,0,20,1,0,0,0,0]
["IS1","NR3","NOTTINGHAM CITYCARE PARTNERSHIP","Community Inpatient Services",7,1,0,2,5,0,0,0,0]
["IS1","NR3","NOTTINGHAM CITYCARE PARTNERSHIP","Rehabilitation & Therapy Services",114,0.65789473684210531,0.17543859649122806,50,25,19,5,15,0]
["IS1","NR3","NOTTINGHAM CITYCARE PARTNERSHIP","Specialist Services",98,0.90816326530612246,4.0816326530612242E-2,69,20,3,1,3,2]
["IS1","NQH","NOVUS HEALTH LTD","Community Healthcare Other",143,0.98601398601398604,6.993006993006993E-3,132,9,1,1,0,0]
["IS1","NQH","NOVUS HEALTH LTD","Rehabilitation & Therapy Services",419,0.87828162291169454,6.205250596658711E-2,298,70,22,12,14,3]
["IS1","NLF","PENNINE MUSCULOSKELETAL PARTNERSHIP (ICATS)","Community Healthcare Other",775,0.93419354838709678,1.935483870967742E-2,630,94,29,9,6,7]
["IS1","NTP","PRACTICE PLUS GROUP","Community Healthcare Other",1298,0.7380585516178737,0.19337442218798151,674,284,81,107,144,8]
["IS1","NQA","PROVIDE","Children & Family Services",9,0.77777777777777779,0,6,1,2,0,0,0]
["IS1","NQA","PROVIDE","Community Healthcare Other",836,0.97009569377990434,1.7942583732057416E-2,743,68,9,7,8,1]
["IS1","NQA","PROVIDE","Community Inpatient Services",27,1,0,27,0,0,0,0,0]
["IS1","NQA","PROVIDE","Community Nursing Services",6,1,0,6,0,0,0,0,0]
["IS1","NQA","PROVIDE","Rehabilitation & Therapy Services",11,0.90909090909090906,0,9,1,1,0,0,0]
["IS1","NQA","PROVIDE","Specialist Services",204,0.97058823529411764,1.4705882352941176E-2,175,23,2,0,3,1]
["IS1","NNC","SOLENT MEDICAL SERVICES LIMITED","Community Healthcare Other",12,1,0,12,0,0,0,0,0]
["IS1","NDL","SUFFOLK GP FEDERATION","Community Healthcare Other",755,0.89403973509933776,5.8278145695364242E-2,551,124,32,23,21,4]
["IS1","NYG","SUSSEX COMMUNITY DERMATOLOGY SERVICE","Community Healthcare Other",188,0.99468085106382975,0,112,75,1,0,0,0]
["IS1","NGX","TAURUS HEALTHCARE LTD","Community Healthcare Other",125,0.92800000000000005,3.2000000000000001E-2,96,20,5,2,2,0]
["IS1","NN1","THE ROYAL HOSPITAL FOR NEURO-DISABILITY","Community Inpatient Services",5,1,0,4,1,0,0,0,0]
["IS1","8HN95","THE STROKE ASSOCIATION","Community Healthcare Other",21,0.90476190476190477,0,13,6,0,0,0,2]
["IS1","NQT","VIRGIN CARE LTD","Children & Family Services",352,0.98579545454545459,1.1363636363636364E-2,308,39,1,1,3,0]
["IS1","NQT","VIRGIN CARE LTD","Community Healthcare Other",313,0.89456869009584661,7.3482428115015971E-2,208,72,5,6,17,5]
["IS1","NQT","VIRGIN CARE LTD","Community Inpatient Services",39,0.97435897435897434,0,30,8,1,0,0,0]
["IS1","NQT","VIRGIN CARE LTD","Community Nursing Services",342,0.95321637426900585,2.046783625730994E-2,285,41,6,1,6,3]
["IS1","NQT","VIRGIN CARE LTD","Rehabilitation & Therapy Services",33,1,0,28,5,0,0,0,0]
["IS1","NQT","VIRGIN CARE LTD","Specialist Services",1268,0.94952681388012616,1.8927444794952682E-2,994,210,26,10,14,14]
["IS1","NDA","VIRGIN CARE SERVICES LTD","Community Healthcare Other",21,1,0,20,1,0,0,0,0]
["IS1","NDA","VIRGIN CARE SERVICES LTD","Community Nursing Services",73,0.95890410958904104,1.3698630136986301E-2,54,16,2,1,0,0]
["IS1","NDA","VIRGIN CARE SERVICES LTD","Rehabilitation & Therapy Services",40,0.9,0.05,25,11,2,2,0,0]
["IS1","NDA","VIRGIN CARE SERVICES LTD","Specialist Services",122,0.95081967213114749,1.6393442622950821E-2,106,10,0,2,0,4]
["IS1","AXG","WILTSHIRE HEALTH & CARE","Community Healthcare Other",20,0.55000000000000004,0.25,8,3,0,2,3,4]
["IS1","AXG","WILTSHIRE HEALTH & CARE","Community Inpatient Services",16,1,0,"*","*","*","*","*","*"]
["IS1","AXG","WILTSHIRE HEALTH & CARE","Community Nursing Services",4,"*","*","*","*","*","*","*","*"]
["IS1","AXG","WILTSHIRE HEALTH & CARE","Rehabilitation & Therapy Services",187,0.9732620320855615,1.6042780748663103E-2,157,25,0,2,1,2]
["IS1","AXG","WILTSHIRE HEALTH & CARE","Specialist Services",63,0.92063492063492058,6.3492063492063489E-2,52,6,0,1,3,1]
["IS1","NNV","YOUR HEALTHCARE","Children & Family Services",389,0.95372750642673521,5.1413881748071976E-3,216,155,16,1,1,0]
["IS1","NNV","YOUR HEALTHCARE","Community Inpatient Services",1,"*","*","*","*","*","*","*","*"]
["IS1","NNV","YOUR HEALTHCARE","Rehabilitation & Therapy Services",21,1,0,21,0,0,0,0,0]
["IS1","NNV","YOUR HEALTHCARE","Specialist Services",8,1,0,"*","*","*","*","*","*"]

{"sheet":"BS","index":5,"n_rows":497,"n_cols":30,"rows_kept":497,"cut":false,"hidden":true,"merged":[]}
[null,"Sort","Region (LO) Code","Region (LO) name","Trust code","Trust name","Category",null,"Sort Lists:","Sort range…","Sort range…","Sort range…","Reference Region Lists:","Code…","Name…","Linked Region Lists:","Code…","Name…","Reference Lists:","Code…","Code…","Name…","Category…","Trusts Linked lists:","Code…","Name…","Categories Linked lists:","Code…","Name…","Category…"]
["Region (LO)",1,1,1,"-","-","-",null,null,"STP Code","STP Code","STP Code",null,"QE1","LANCASHIRE AND SOUTH CUMBRIA ICS",null,"QE1","LANCASHIRE AND SOUTH CUMBRIA ICS",null,"QE1","RXL","BLACKPOOL TEACHING HOSPITALS NHS FOUNDATION TRUST","Children & Family Services",null,"8HE44","AIREDALE NHS FOUNDATION TRUST",null,"8HE44","AIREDALE NHS FOUNDATION TRUST","Children & Family Services"]
["Trusts",1,1,1,1,1,"-",null,null,"STP Name","Trust Code","Trust Code",null,"QF7","SOUTH YORKSHIRE AND BASSETLAW STP",null,"QF7","SOUTH YORKSHIRE AND BASSETLAW STP",null,"QE1","RXL","BLACKPOOL TEACHING HOSPITALS NHS FOUNDATION TRUST","Community Inpatient Services",null,"8HN95","ALDER HEY CHILDREN'S NHS FOUNDATION TRUST",null,"8HN95","ALDER HEY CHILDREN'S NHS FOUNDATION TRUST","Community Healthcare Other"]
["Categories",1,1,1,1,1,1,null,null,"Total Responses","Trust Name","Trust Name",null,"QGH","HEREFORDSHIRE AND WORCESTERSHIRE STP",null,"QGH","HEREFORDSHIRE AND WORCESTERSHIRE STP",null,"QE1","RXL","BLACKPOOL TEACHING HOSPITALS NHS FOUNDATION TRUST","Community Nursing Services",null,"8J094","ALLIED HEALTH PROFESSIONALS SUFFOLK CIC",null,"8J094","ALLIED HEALTH PROFESSIONALS SUFFOLK CIC","Community Inpatient Services"]
[null,null,null,null,null,null,null,null,null,"Total Eligible","Total Responses","Category",null,"QH8","MID AND SOUTH ESSEX STP",null,"QH8","MID AND SOUTH ESSEX STP",null,"QE1","RXL","BLACKPOOL TEACHING HOSPITALS NHS FOUNDATION TRUST","Rehabilitation & Therapy Services",null,"ARA","BADGER LTD",null,"ARA","BADGER LTD","Community Nursing Services"]
[null,null,null,null,null,null,null,null,null,"Percentage Positive","Total Eligible","Total Responses",null,"QHL","BIRMINGHAM AND SOLIHULL STP",null,"QHL","BIRMINGHAM AND SOLIHULL STP",null,"QE1","RXL","BLACKPOOL TEACHING HOSPITALS NHS FOUNDATION TRUST","Specialist Services",null,"AT7H","BARDOC",null,"AT7H","BARDOC","Rehabilitation & Therapy Services"]
[null,null,null,null,null,null,null,null,null,"Percentage Negative","Percentage Positive","Percentage Positive",null,"QHM","CUMBRIA AND NORTH EAST STP",null,"QHM","CUMBRIA AND NORTH EAST STP",null,"QE1","RXR","EAST LANCASHIRE HOSPITALS NHS TRUST","Children & Family Services",null,"AXG","BARNET, ENFIELD AND HARINGEY MENTAL HEALTH NHS TRUST",null,"AXG","BARNET, ENFIELD AND HARINGEY MENTAL HEALTH NHS TRUST","Specialist Services"]
[null,null,null,null,null,null,null,null,null,"Very good","Percentage Negative","Percentage Negative",null,"QJ2","JOINED UP CARE DERBYSHIRE STP",null,"QJ2","JOINED UP CARE DERBYSHIRE STP",null,"QE1","RXR","EAST LANCASHIRE HOSPITALS NHS TRUST","Community Healthcare Other",null,"DAY","BERKSHIRE HEALTHCARE NHS FOUNDATION TRUST",null,"DAY","BERKSHIRE HEALTHCARE NHS FOUNDATION TRUST"]
[null,null,null,null,null,null,null,null,null,"Good","Very good","Very good",null,"QJG","SUFFOLK AND NORTH EAST ESSEX ICS",null,"QJG","SUFFOLK AND NORTH EAST ESSEX ICS",null,"QE1","RXR","EAST LANCASHIRE HOSPITALS NHS TRUST","Community Inpatient Services",null,"DCF","BIRMINGHAM COMMUNITY HEALTHCARE NHS FOUNDATION TRUST",null,"DCF","BIRMINGHAM COMMUNITY HEALTHCARE NHS FOUNDATION TRUST"]
[null,null,null,null,null,null,null,null,null,"Neither Good nor Poor","Good","Good",null,"QJK","DEVON STP",null,"QJK","DEVON STP",null,"QE1","RXR","EAST LANCASHIRE HOSPITALS NHS TRUST","Community Nursing Services",null,"DVG","BLACK COUNTRY HEALTHCARE NHS FOUNDATION TRUST",null,"DVG","BLACK COUNTRY HEALTHCARE NHS FOUNDATION TRUST"]
[null,null,null,null,null,null,null,null,null,"Poor","Neither Good nor Poor","Neither Good nor Poor",null,"QJM","LINCOLNSHIRE STP",null,"QJM","LINCOLNSHIRE STP",null,"QE1","RXR","EAST LANCASHIRE HOSPITALS NHS TRUST","Rehabilitation & Therapy Services",null,"DY6","BLACKPOOL TEACHING HOSPITALS NHS FOUNDATION TRUST",null,"DY6","BLACKPOOL TEACHING HOSPITALS NHS FOUNDATION TRUST"]
[null,null,null,null,null,null,null,null,null,"Very Poor","Poor","Poor",null,"QK1","LEICESTER, LEICESTERSHIRE AND RUTLAND STP",null,"QK1","LEICESTER, LEICESTERSHIRE AND RUTLAND STP",null,"QE1","RXR","EAST LANCASHIRE HOSPITALS NHS TRUST","Specialist Services",null,"NAX","BOLTON NHS FOUNDATION TRUST",null,"NAX","BOLTON NHS FOUNDATION TRUST"]
[null,null,null,null,null,null,null,null,null,"Don't Know","Very Poor","Very Poor",null,"QKK","OUR HEALTHIER SOUTH EAST LONDON STP",null,"QKK","OUR HEALTHIER SOUTH EAST LONDON STP",null,"QE1","RW5","LANCASHIRE & SOUTH CUMBRIA NHS FOUNDATION TRUST","Children & Family Services",null,"NCE","BRADFORD DISTRICT CARE NHS FOUNDATION TRUST",null,"NCE","BRADFORD DISTRICT CARE NHS FOUNDATION TRUST"]
[null,null,null,null,null,null,null,null,null,null,"Don't Know","Don't Know",null,"QKS","KENT AND MEDWAY STP",null,"QKS","KENT AND MEDWAY STP",null,"QE1","RW5","LANCASHIRE & SOUTH CUMBRIA NHS FOUNDATION TRUST","Community Inpatient Services",null,"NDA","BRIDGEWATER COMMUNITY HEALTHCARE NHS FOUNDATION TRUST",null,"NDA","BRIDGEWATER COMMUNITY HEALTHCARE NHS FOUNDATION TRUST"]
[null,null,null,null,null,null,null,null,null,null,"Mode SMS",null,null,"QM7","HERTFORDSHIRE AND WEST ESSEX STP",null,"QM7","HERTFORDSHIRE AND WEST ESSEX STP",null,"QE1","RW5","LANCASHIRE & SOUTH CUMBRIA NHS FOUNDATION TRUST","Community Nursing Services",null,"NDJ","BROMLEY HEALTHCARE",null,"NDJ","BROMLEY HEALTHCARE"]
[null,null,null,null,null,null,null,null,null,null,"Mode Electronic Discharge",null,null,"QMF","EAST LONDON HEALTH & CARE PARTNERSHIP (STP)",null,"QMF","EAST LONDON HEALTH & CARE PARTNERSHIP (STP)",null,"QE1","RW5","LANCASHIRE & SOUTH CUMBRIA NHS FOUNDATION TRUST","Rehabilitation & Therapy Services",null,"NDK","BUCKINGHAMSHIRE HEALTHCARE NHS TRUST",null,"NDK","BUCKINGHAMSHIRE HEALTHCARE NHS TRUST"]
[null,null,null,null,null,null,null,null,null,null,"Mode Paper Home",null,null,"QMJ","NORTH LONDON PARTNERS IN HEALTH & CARE (STP)",null,"QMJ","NORTH LONDON PARTNERS IN HEALTH & CARE (STP)",null,"QE1","RW5","LANCASHIRE & SOUTH CUMBRIA NHS FOUNDATION TRUST","Specialist Services",null,"NDL","CALDERDALE AND HUDDERSFIELD NHS FOUNDATION TRUST",null,"NDL","CALDERDALE AND HUDDERSFIELD NHS FOUNDATION TRUST"]
[null,null,null,null,null,null,null,null,null,null,"Mode Telephone",null,null,"QMM","NORFOLK AND WAVENEY HEALTH & CARE PARTNERSHIP (STP)",null,"QMM","NORFOLK AND WAVENEY HEALTH & CARE PARTNERSHIP (STP)",null,"QE1","RTX","UNIVERSITY HOSPITALS OF MORECAMBE BAY NHS FOUNDATION TRUST","Community Healthcare Other",null,"NEC","CAMBRIDGESHIRE AND PETERBOROUGH NHS FOUNDATION TRUST",null,"NEC","CAMBRIDGESHIRE AND PETERBOROUGH NHS FOUNDATION TRUST"]
[null,null,null,null,null,null,null,null,null,null,"Mode Online",null,null,"QNC","STAFFORDSHIRE & STOKE ON TRENT STP",null,"QNC","STAFFORDSHIRE & STOKE ON TRENT STP",null,"QE1","RTX","UNIVERSITY HOSPITALS OF MORECAMBE BAY NHS FOUNDATION TRUST","Community Inpatient Services",null,"NGX","CAMBRIDGESHIRE COMMUNITY SERVICES NHS TRUST",null,"NGX","CAMBRIDGESHIRE COMMUNITY SERVICES NHS TRUST"]
[null,null,null,null,null,null,null,null,null,null,"Mode Other",null,null,"QNQ","FRIMLEY HEALTH & CARE (STP)",null,"QNQ","FRIMLEY HEALTH & CARE (STP)",null,"QE1","RTX","UNIVERSITY HOSPITALS OF MORECAMBE BAY NHS FOUNDATION TRUST","Community Nursing Services",null,"NHA","CARE PLUS GROUP",null,"NHA","CARE PLUS GROUP"]
[null,null,null,null,null,null,null,null,null,null,null,null,null,"QNX","SUSSEX HEALTH AND CARE PARTNERSHIP",null,"QNX","SUSSEX HEALTH AND CARE PARTNERSHIP",null,"QE1","RTX","UNIVERSITY HOSPITALS OF MORECAMBE BAY NHS FOUNDATION TRUST","Rehabilitation & Therapy Services",null,"NHX","CENTRAL AND NORTH WEST LONDON NHS FOUNDATION TRUST",null,"NHX","CENTRAL AND NORTH WEST LONDON NHS FOUNDATION TRUST"]
[null,null,null,null,null,null,null,null,null,null,null,null,null,"QOC","SHROPSHIRE AND TELFORD AND WREKIN STP",null,"QOC","SHROPSHIRE AND TELFORD AND WREKIN STP",null,"QE1","RTX","UNIVERSITY HOSPITALS OF MORECAMBE BAY NHS FOUNDATION TRUST","Specialist Services",null,"NL3","CENTRAL LONDON COMMUNITY HEALTHCARE NHS TRUST",null,"NL3","CENTRAL LONDON COMMUNITY HEALTHCARE NHS TRUST"]
[null,null,null,null,null,null,null,null,null,null,null,null,null,"QOP","GREATER MANCHESTER HEALTH & SOCIAL CARE PARTNERSHIP",null,"QOP","GREATER MANCHESTER HEALTH & SOCIAL CARE PARTNERSHIP",null,"QF7","RXE","ROTHERHAM DONCASTER AND SOUTH HUMBER NHS FOUNDATION TRUST","Children & Family Services",null,"NL8","CHELSEA AND WESTMINSTER HOSPITAL NHS FOUNDATION TRUST",null,"NL8","CHELSEA AND WESTMINSTER HOSPITAL NHS FOUNDATION TRUST"]
[null,null,null,null,null,null,null,null,null,null,null,null,null,"QOQ","HUMBER, COAST AND VALE STP",null,"QOQ","HUMBER, COAST AND VALE STP",null,"QF7","RXE","ROTHERHAM DONCASTER AND SOUTH HUMBER NHS FOUNDATION TRUST","Community Healthcare Other",null,"NLE01","CHESHIRE AND WIRRAL PARTNERSHIP NHS FOUNDATION TRUST",null,"NLE01","CHESHIRE AND WIRRAL PARTNERSHIP NHS FOUNDATION TRUST"]
[null,null,null,null,null,null,null,null,null,null,null,null,null,"QOX","BATH AND NORTH EAST SOMERSET, SWINDON AND WILTSHIRE STP",null,"QOX","BATH AND NORTH EAST SOMERSET, SWINDON AND WILTSHIRE STP",null,"QF7","RXE","ROTHERHAM DONCASTER AND SOUTH HUMBER NHS FOUNDATION TRUST","Community Inpatient Services",null,"NLF","CITIZENS ADVICE STOCKPORT, OLDHAM, ROCHDALE",null,"NLF","CITIZENS ADVICE STOCKPORT, OLDHAM, ROCHDALE"]
[null,null,null,null,null,null,null,null,null,null,null,null,null,"QPM","NORTHAMPTONSHIRE STP",null,"QPM","NORTHAMPTONSHIRE STP",null,"QF7","RXE","ROTHERHAM DONCASTER AND SOUTH HUMBER NHS FOUNDATION TRUST","Community Nursing Services",null,"NMG","CITY HEALTH CARE PARTNERSHIP CIC",null,"NMG","CITY HEALTH CARE PARTNERSHIP CIC"]
[null,null,null,null,null,null,null,null,null,null,null,null,null,"QR1","GLOUCESTERSHIRE STP",null,"QR1","GLOUCESTERSHIRE STP",null,"QF7","RXE","ROTHERHAM DONCASTER AND SOUTH HUMBER NHS FOUNDATION TRUST","Rehabilitation & Therapy Services",null,"NN1","CLINICAL PARTNERSHIP",null,"NN1","CLINICAL PARTNERSHIP"]
[null,null,null,null,null,null,null,null,null,null,null,null,null,"QRL","HAMPSHIRE AND THE ISLE OF WIGHT STP",null,"QRL","HAMPSHIRE AND THE ISLE OF WIGHT STP",null,"QF7","RXE","ROTHERHAM DONCASTER AND SOUTH HUMBER NHS FOUNDATION TRUST","Specialist Services",null,"NNC","CONNECT HEALTH LIMITED",null,"NNC","CONNECT HEALTH LIMITED"]
[null,null,null,null,null,null,null,null,null,null,null,null,null,"QRV","NORTH WEST LONDON HEALTH & CARE PARTNERSHIP (STP)",null,"QRV","NORTH WEST LONDON HEALTH & CARE PARTNERSHIP (STP)",null,"QF7","RCU","SHEFFIELD CHILDREN'S NHS FOUNDATION TRUST","Community Nursing Services",null,"NNF","CONNECT HEALTH PAIN SERVICES",null,"NNF","CONNECT HEALTH PAIN SERVICES"]
[null,null,null,null,null,null,null,null,null,null,null,null,null,"QSL","SOMERSET STP",null,"QSL","SOMERSET STP",null,"QF7","RHQ","SHEFFIELD TEACHING HOSPITALS NHS FOUNDATION TRUST","Community Healthcare Other",null,"NNV","CORNWALL PARTNERSHIP NHS FOUNDATION TRUST",null,"NNV","CORNWALL PARTNERSHIP NHS FOUNDATION TRUST"]
[null,null,null,null,null,null,null,null,null,null,null,null,null,"QT1","NOTTINGHAM AND NOTTINGHAMSHIRE HEALTH AND CARE STP",null,"QT1","NOTTINGHAM AND NOTTINGHAMSHIRE HEALTH AND CARE STP",null,"QF7","RHQ","SHEFFIELD TEACHING HOSPITALS NHS FOUNDATION TRUST","Community Inpatient Services",null,"NPH","CROYDON HEALTH SERVICES NHS TRUST",null,"NPH","CROYDON HEALTH SERVICES NHS TRUST"]
[null,null,null,null,null,null,null,null,null,null,null,null,null,"QU9","BUCKINGHAMSHIRE, OXFORDSHIRE AND BERKSHIRE WEST STP",null,"QU9","BUCKINGHAMSHIRE, OXFORDSHIRE AND BERKSHIRE WEST STP",null,"QF7","RHQ","SHEFFIELD TEACHING HOSPITALS NHS FOUNDATION TRUST","Community Nursing Services",null,"NQ7","CSH SURREY",null,"NQ7","CSH SURREY"]
[null,null,null,null,null,null,null,null,null,null,null,null,null,"QUA","THE BLACK COUNTRY AND WEST BIRMINGHAM STP",null,"QUA","THE BLACK COUNTRY AND WEST BIRMINGHAM STP",null,"QF7","RHQ","SHEFFIELD TEACHING HOSPITALS NHS FOUNDATION TRUST","Rehabilitation & Therapy Services",null,"NQA","DERBYSHIRE COMMUNITY HEALTH SERVICES NHS FOUNDATION TRUST",null,"NQA","DERBYSHIRE COMMUNITY HEALTH SERVICES NHS FOUNDATION TRUST"]
[null,null,null,null,null,null,null,null,null,null,null,null,null,"QUE","CAMBRIDGESHIRE AND PETERBOROUGH STP",null,"QUE","CAMBRIDGESHIRE AND PETERBOROUGH STP",null,"QF7","RHQ","SHEFFIELD TEACHING HOSPITALS NHS FOUNDATION TRUST","Specialist Services",null,"NQH","DERBYSHIRE HEALTHCARE NHS FOUNDATION TRUST",null,"NQH","DERBYSHIRE HEALTHCARE NHS FOUNDATION TRUST"]
[null,null,null,null,null,null,null,null,null,null,null,null,null,"QUY","BRISTOL, NORTH SOMERSET AND SOUTH GLOUCESTERSHIRE STP",null,"QUY","BRISTOL, NORTH SOMERSET AND SOUTH GLOUCESTERSHIRE STP",null,"QF7","RFR","THE ROTHERHAM NHS FOUNDATION TRUST","Children & Family Services",null,"NQT","DORSET HEALTHCARE UNIVERSITY NHS FOUNDATION TRUST",null,"NQT","DORSET HEALTHCARE UNIVERSITY NHS FOUNDATION TRUST"]
[null,null,null,null,null,null,null,null,null,null,null,null,null,"QVV","DORSET STP",null,"QVV","DORSET STP",null,"QF7","RFR","THE ROTHERHAM NHS FOUNDATION TRUST","Community Nursing Services",null,"NQV","DR KERSHAWS HOSPICE",null,"NQV","DR KERSHAWS HOSPICE"]
[null,null,null,null,null,null,null,null,null,null,null,null,null,"QWE","SOUTH WEST LONDON HEALTH & CARE PARTNERSHIP (STP)",null,"QWE","SOUTH WEST LONDON HEALTH & CARE PARTNERSHIP (STP)",null,"QF7","RFR","THE ROTHERHAM NHS FOUNDATION TRUST","Rehabilitation & Therapy Services",null,"NR3","EAST CHESHIRE NHS TRUST",null,"NR3","EAST CHESHIRE NHS TRUST"]
[null,null,null,null,null,null,null,null,null,null,null,null,null,"QWO","WEST YORKSHIRE AND HARROGATE HEALTH & CARE PARTNERSHIP (STP)",null,"QWO","WEST YORKSHIRE AND HARROGATE HEALTH & CARE PARTNERSHIP (STP)",null,"QF7","RFR","THE ROTHERHAM NHS FOUNDATION TRUST","Specialist Services",null,"NR5","EAST COAST COMMUNITY HEALTHCARE C.I.C",null,"NR5","EAST COAST COMMUNITY HEALTHCARE C.I.C"]
[null,null,null,null,null,null,null,null,null,null,null,null,null,"QWU","COVENTRY AND WARWICKSHIRE STP",null,"QWU","COVENTRY AND WARWICKSHIRE STP",null,"QGH","R1A","HEREFORDSHIRE AND WORCESTERSHIRE HEALTH AND CARE NHS TRUST","Children & Family Services",null,"NTP","EAST LANCASHIRE HOSPITALS NHS TRUST",null,"NTP","EAST LANCASHIRE HOSPITALS NHS TRUST"]
[null,null,null,null,null,null,null,null,null,null,null,null,null,"QXU","SURREY HEARTLANDS HEALTH & CARE PARTNERSHIP (STP)",null,"QXU","SURREY HEARTLANDS HEALTH & CARE PARTNERSHIP (STP)",null,"QGH","R1A","HEREFORDSHIRE AND WORCESTERSHIRE HEALTH AND CARE NHS TRUST","Community Healthcare Other",null,"NTV","EAST LONDON NHS FOUNDATION TRUST",null,"NTV","EAST LONDON NHS FOUNDATION TRUST"]
[null,null,null,null,null,null,null,null,null,null,null,null,null,"QYG","CHESHIRE AND MERSEYSIDE STP",null,"QYG","CHESHIRE AND MERSEYSIDE STP",null,"QGH","R1A","HEREFORDSHIRE AND WORCESTERSHIRE HEALTH AND CARE NHS TRUST","Community Inpatient Services",null,"NWV01","EAST SUFFOLK AND NORTH ESSEX NHS FOUNDATION TRUST",null,"NWV01","EAST SUFFOLK AND NORTH ESSEX NHS FOUNDATION TRUST"]
[null,null,null,null,null,null,null,null,null,null,null,null,null,"IS1","Independent Sector Providers",null,"IS1","Independent Sector Providers",null,"QGH","R1A","HEREFORDSHIRE AND WORCESTERSHIRE HEALTH AND CARE NHS TRUST","Community Nursing Services",null,"NY6","EAST SUSSEX HEALTHCARE NHS TRUST",null,"NY6","EAST SUSSEX HEALTHCARE NHS TRUST"]
[null,null,null,null,null,null,null,null,null,null,null,null,null,null,null,null,null,null,null,"QGH","R1A","HEREFORDSHIRE AND WORCESTERSHIRE HEALTH AND CARE NHS TRUST","Rehabilitation & Therapy Services",null,"NYG","EASTLEIGH SOUTHERN PARISHES NETWORK LTD",null,"NYG","EASTLEIGH SOUTHERN PARISHES NETWORK LTD"]
[null,null,null,null,null,null,null,null,null,null,null,null,null,null,null,null,null,null,null,"QGH","R1A","HEREFORDSHIRE AND WORCESTERSHIRE HEALTH AND CARE NHS TRUST","Specialist Services",null,"Q8V5K","EPSOM AND ST HELIER UNIVERSITY HOSPITALS NHS TRUST",null,"Q8V5K","EPSOM AND ST HELIER UNIVERSITY HOSPITALS NHS TRUST"]
[null,null,null,null,null,null,null,null,null,null,null,null,null,null,null,null,null,null,null,"QGH","RLQ","WYE VALLEY NHS TRUST","Community Healthcare Other",null,"R0A","ESSEX PARTNERSHIP UNIVERSITY NHS FOUNDATION TRUST",null,"R0A","ESSEX PARTNERSHIP UNIVERSITY NHS FOUNDATION TRUST"]
[null,null,null,null,null,null,null,null,null,null,null,null,null,null,null,null,null,null,null,"QH8","R1L","ESSEX PARTNERSHIP UNIVERSITY NHS FOUNDATION TRUST","Children & Family Services",null,"R0B","FIRST COMMUNITY HEALTH AND CARE CIC",null,"R0B","FIRST COMMUNITY HEALTH AND CARE CIC"]
[null,null,null,null,null,null,null,null,null,null,null,null,null,null,null,null,null,null,null,"QH8","R1L","ESSEX PARTNERSHIP UNIVERSITY NHS FOUNDATION TRUST","Community Nursing Services",null,"R1A","FRESHNEY PELHAM CARE LIMITED",null,"R1A","FRESHNEY PELHAM CARE LIMITED"]
[null,null,null,null,null,null,null,null,null,null,null,null,null,null,null,null,null,null,null,"QH8","R1L","ESSEX PARTNERSHIP UNIVERSITY NHS FOUNDATION TRUST","Specialist Services",null,"R1C","FRIMLEY HEALTH NHS FOUNDATION TRUST",null,"R1C","FRIMLEY HEALTH NHS FOUNDATION TRUST"]
[null,null,null,null,null,null,null,null,null,null,null,null,null,null,null,null,null,null,null,"QHL","RYW","BIRMINGHAM COMMUNITY HEALTHCARE NHS FOUNDATION TRUST","Children & Family Services",null,"R1D","GLOUCESTERSHIRE HEALTH AND CARE NHS FOUNDATION TRUST",null,"R1D","GLOUCESTERSHIRE HEALTH AND CARE NHS FOUNDATION TRUST"]
[null,null,null,null,null,null,null,null,null,null,null,null,null,null,null,null,null,null,null,"QHL","RYW","BIRMINGHAM COMMUNITY HEALTHCARE NHS FOUNDATION TRUST","Community Healthcare Other",null,"R1F","GP CARE UK",null,"R1F","GP CARE UK"]
[null,null,null,null,null,null,null,null,null,null,null,null,null,null,null,null,null,null,null,"QHL","RYW","BIRMINGHAM COMMUNITY HEALTHCARE NHS FOUNDATION TRUST","Community Inpatient Services",null,"R1K","GUY'S AND ST THOMAS' NHS FOUNDATION TRUST",null,"R1K","GUY'S AND ST THOMAS' NHS FOUNDATION TRUST"]
[null,null,null,null,null,null,null,null,null,null,null,null,null,null,null,null,null,null,null,"QHL","RYW","BIRMINGHAM COMMUNITY HEALTHCARE NHS FOUNDATION TRUST","Community Nursing Services",null,"R1L","HARROGATE AND DISTRICT NHS FOUNDATION TRUST",null,"R1L","HARROGATE AND DISTRICT NHS FOUNDATION TRUST"]
[null,null,null,null,null,null,null,null,null,null,null,null,null,null,null,null,null,null,null,"QHL","RYW","BIRMINGHAM COMMUNITY HEALTHCARE NHS FOUNDATION TRUST","Rehabilitation & Therapy Services",null,"RA2","HEREFORDSHIRE AND WORCESTERSHIRE HEALTH AND CARE NHS TRUST",null,"RA2","HEREFORDSHIRE AND WORCESTERSHIRE HEALTH AND CARE NHS TRUST"]
[null,null,null,null,null,null,null,null,null,null,null,null,null,null,null,null,null,null,null,"QHL","RYW","BIRMINGHAM COMMUNITY HEALTHCARE NHS FOUNDATION TRUST","Specialist Services",null,"RA9","HERTFORDSHIRE COMMUNITY NHS TRUST",null,"RA9","HERTFORDSHIRE COMMUNITY NHS TRUST"]
[null,null,null,null,null,null,null,null,null,null,null,null,null,null,null,null,null,null,null,"QHL","RRK","UNIVERSITY HOSPITALS BIRMINGHAM NHS FOUNDATION TRUST","Children & Family Services",null,"RAT","HOMERTON UNIVERSITY HOSPITAL NHS FOUNDATION TRUST",null,"RAT","HOMERTON UNIVERSITY HOSPITAL NHS FOUNDATION TRUST"]
[null,null,null,null,null,null,null,null,null,null,null,null,null,null,null,null,null,null,null,"QHL","RRK","UNIVERSITY HOSPITALS BIRMINGHAM NHS FOUNDATION TRUST","Community Nursing Services",null,"RBK","HOUNSLOW AND RICHMOND COMMUNITY HEALTHCARE NHS TRUST",null,"RBK","HOUNSLOW AND RICHMOND COMMUNITY HEALTHCARE NHS TRUST"]
[null,null,null,null,null,null,null,null,null,null,null,null,null,null,null,null,null,null,null,"QHL","RRK","UNIVERSITY HOSPITALS BIRMINGHAM NHS FOUNDATION TRUST","Rehabilitation & Therapy Services",null,"RBS","HUMBER TEACHING NHS FOUNDATION TRUST",null,"RBS","HUMBER TEACHING NHS FOUNDATION TRUST"]
[null,null,null,null,null,null,null,null,null,null,null,null,null,null,null,null,null,null,null,"QHL","RRK","UNIVERSITY HOSPITALS BIRMINGHAM NHS FOUNDATION TRUST","Specialist Services",null,"RBT","INSIDEVUE LIMITED",null,"RBT","INSIDEVUE LIMITED"]
[null,null,null,null,null,null,null,null,null,null,null,null,null,null,null,null,null,null,null,"QHM","RNN","NORTH CUMBRIA INTEGRATED CARE NHS FOUNDATION TRUST","Community Healthcare Other",null,"RBZ","ISLE OF WIGHT NHS TRUST",null,"RBZ","ISLE OF WIGHT NHS TRUST"]
[null,null,null,null,null,null,null,null,null,null,null,null,null,null,null,null,null,null,null,"QHM","RNN","NORTH CUMBRIA INTEGRATED CARE NHS FOUNDATION TRUST","Community Inpatient Services",null,"RCB","KENT COMMUNITY HEALTH NHS FOUNDATION TRUST",null,"RCB","KENT COMMUNITY HEALTH NHS FOUNDATION TRUST"]
[null,null,null,null,null,null,null,null,null,null,null,null,null,null,null,null,null,null,null,"QHM","RNN","NORTH CUMBRIA INTEGRATED CARE NHS FOUNDATION TRUST","Community Nursing Services",null,"RCD","LANCASHIRE & SOUTH CUMBRIA NHS FOUNDATION TRUST",null,"RCD","LANCASHIRE & SOUTH CUMBRIA NHS FOUNDATION TRUST"]
[null,null,null,null,null,null,null,null,null,null,null,null,null,null,null,null,null,null,null,"QHM","RNN","NORTH CUMBRIA INTEGRATED CARE NHS FOUNDATION TRUST","Rehabilitation & Therapy Services",null,"RCF","LANCASTER HOUSE CONSULTING DIAGNOSTICS SURGICAL LTD HQ",null,"RCF","LANCASTER HOUSE CONSULTING DIAGNOSTICS SURGICAL LTD HQ"]
[null,null,null,null,null,null,null,null,null,null,null,null,null,null,null,null,null,null,null,"QHM","RNN","NORTH CUMBRIA INTEGRATED CARE NHS FOUNDATION TRUST","Specialist Services",null,"RCU","LEEDS COMMUNITY HEALTHCARE NHS TRUST",null,"RCU","LEEDS COMMUNITY HEALTHCARE NHS TRUST"]
[null,null,null,null,null,null,null,null,null,null,null,null,null,null,null,null,null,null,null,"QHM","RVW","NORTH TEES AND HARTLEPOOL NHS FOUNDATION TRUST","Community Nursing Services",null,"RDE","LEICESTERSHIRE PARTNERSHIP NHS TRUST",null,"RDE","LEICESTERSHIRE PARTNERSHIP NHS TRUST"]
[null,null,null,null,null,null,null,null,null,null,null,null,null,null,null,null,null,null,null,"QHM","RVW","NORTH TEES AND HARTLEPOOL NHS FOUNDATION TRUST","Rehabilitation & Therapy Services",null,"RDR","LEWISHAM AND GREENWICH NHS TRUST",null,"RDR","LEWISHAM AND GREENWICH NHS TRUST"]
[null,null,null,null,null,null,null,null,null,null,null,null,null,null,null,null,null,null,null,"QHM","RVW","NORTH TEES AND HARTLEPOOL NHS FOUNDATION TRUST","Specialist Services",null,"RDU","LINCOLNSHIRE COMMUNITY HEALTH SERVICES NHS TRUST",null,"RDU","LINCOLNSHIRE COMMUNITY HEALTH SERVICES NHS TRUST"]
[null,null,null,null,null,null,null,null,null,null,null,null,null,null,null,null,null,null,null,"QHM","RTF","NORTHUMBRIA HEALTHCARE NHS FOUNDATION TRUST","Community Nursing Services",null,"RDY","LIVEWELL SOUTHWEST",null,"RDY","LIVEWELL SOUTHWEST"]
[null,null,null,null,null,null,null,null,null,null,null,null,null,null,null,null,null,null,null,"QHM","RTF","NORTHUMBRIA HEALTHCARE NHS FOUNDATION TRUST","Rehabilitation & Therapy Services",null,"RFR","LLR PROVIDER COMPANY LTD",null,"RFR","LLR PROVIDER COMPANY LTD"]
[null,null,null,null,null,null,null,null,null,null,null,null,null,null,null,null,null,null,null,"QHM","RTF","NORTHUMBRIA HEALTHCARE NHS FOUNDATION TRUST","Specialist Services",null,"RGR","LOCALA COMMUNITY PARTNERSHIPS CIC",null,"RGR","LOCALA COMMUNITY PARTNERSHIPS CIC"]
[null,null,null,null,null,null,null,null,null,null,null,null,null,null,null,null,null,null,null,"QHM","RTR","SOUTH TEES HOSPITALS NHS FOUNDATION TRUST","Children & Family Services",null,"RH5","LONDON NORTH WEST UNIVERSITY HEALTHCARE NHS TRUST",null,"RH5","LONDON NORTH WEST UNIVERSITY HEALTHCARE NHS TRUST"]
[null,null,null,null,null,null,null,null,null,null,null,null,null,null,null,null,null,null,null,"QHM","RTR","SOUTH TEES HOSPITALS NHS FOUNDATION TRUST","Community Nursing Services",null,"RH8","MANCHESTER UNIVERSITY NHS FOUNDATION TRUST",null,"RH8","MANCHESTER UNIVERSITY NHS FOUNDATION TRUST"]
[null,null,null,null,null,null,null,null,null,null,null,null,null,null,null,null,null,null,null,"QHM","RTR","SOUTH TEES HOSPITALS NHS FOUNDATION TRUST","Rehabilitation & Therapy Services",null,"RHA","MASTERCALL HEALTHCARE",null,"RHA","MASTERCALL HEALTHCARE"]
[null,null,null,null,null,null,null,null,null,null,null,null,null,null,null,null,null,null,null,"QHM","RTR","SOUTH TEES HOSPITALS NHS FOUNDATION TRUST","Specialist Services",null,"RHQ","MEDWAY COMMUNITY HEALTHCARE",null,"RHQ","MEDWAY COMMUNITY HEALTHCARE"]
[null,null,null,null,null,null,null,null,null,null,null,null,null,null,null,null,null,null,null,"QHM","R0B","SOUTH TYNESIDE AND SUNDERLAND NHS FOUNDATION TRUST","Children & Family Services",null,"RJ1","MERSEY CARE NHS FOUNDATION TRUST",null,"RJ1","MERSEY CARE NHS FOUNDATION TRUST"]
[null,null,null,null,null,null,null,null,null,null,null,null,null,null,null,null,null,null,null,"QHM","R0B","SOUTH TYNESIDE AND SUNDERLAND NHS FOUNDATION TRUST","Community Healthcare Other",null,"RJ2","MID CHESHIRE HOSPITALS NHS FOUNDATION TRUST",null,"RJ2","MID CHESHIRE HOSPITALS NHS FOUNDATION TRUST"]
[null,null,null,null,null,null,null,null,null,null,null,null,null,null,null,null,null,null,null,"QHM","R0B","SOUTH TYNESIDE AND SUNDERLAND NHS FOUNDATION TRUST","Community Inpatient Services",null,"RJ6","MID HAMPSHIRE HEALTHCARE LIMITED",null,"RJ6","MID HAMPSHIRE HEALTHCARE LIMITED"]
[null,null,null,null,null,null,null,null,null,null,null,null,null,null,null,null,null,null,null,"QHM","R0B","SOUTH TYNESIDE AND SUNDERLAND NHS FOUNDATION TRUST","Community Nursing Services",null,"RJ7","MID YORKSHIRE HOSPITALS NHS TRUST",null,"RJ7","MID YORKSHIRE HOSPITALS NHS TRUST"]
[null,null,null,null,null,null,null,null,null,null,null,null,null,null,null,null,null,null,null,"QHM","RTD","THE NEWCASTLE UPON TYNE HOSPITALS NHS FOUNDATION TRUST","Community Healthcare Other",null,"RJ8","MIDLANDS PARTNERSHIP NHS FOUNDATION TRUST",null,"RJ8","MIDLANDS PARTNERSHIP NHS FOUNDATION TRUST"]
[null,null,null,null,null,null,null,null,null,null,null,null,null,null,null,null,null,null,null,"QJ2","RY8","DERBYSHIRE COMMUNITY HEALTH SERVICES NHS FOUNDATION TRUST","Children & Family Services",null,"RJC","MILTON KEYNES URGENT CARE SERVICES CIC HQ",null,"RJC","MILTON KEYNES URGENT CARE SERVICES CIC HQ"]
[null,null,null,null,null,null,null,null,null,null,null,null,null,null,null,null,null,null,null,"QJ2","RY8","DERBYSHIRE COMMUNITY HEALTH SERVICES NHS FOUNDATION TRUST","Community Healthcare Other",null,"RJN","NEIGHBOURHOOD CARE LIMITED",null,"RJN","NEIGHBOURHOOD CARE LIMITED"]
[null,null,null,null,null,null,null,null,null,null,null,null,null,null,null,null,null,null,null,"QJ2","RY8","DERBYSHIRE COMMUNITY HEALTH SERVICES NHS FOUNDATION TRUST","Community Nursing Services",null,"RK9","NORFOLK COMMUNITY HEALTH AND CARE NHS TRUST",null,"RK9","NORFOLK COMMUNITY HEALTH AND CARE NHS TRUST"]
[null,null,null,null,null,null,null,null,null,null,null,null,null,null,null,null,null,null,null,"QJ2","RY8","DERBYSHIRE COMMUNITY HEALTH SERVICES NHS FOUNDATION TRUST","Rehabilitation & Therapy Services",null,"RKE","NORTH CUMBRIA INTEGRATED CARE NHS FOUNDATION TRUST",null,"RKE","NORTH CUMBRIA INTEGRATED CARE NHS FOUNDATION TRUST"]
[null,null,null,null,null,null,null,null,null,null,null,null,null,null,null,null,null,null,null,"QJ2","RY8","DERBYSHIRE COMMUNITY HEALTH SERVICES NHS FOUNDATION TRUST","Specialist Services",null,"RKL","NORTH EAST LONDON NHS FOUNDATION TRUST",null,"RKL","NORTH EAST LONDON NHS FOUNDATION TRUST"]
[null,null,null,null,null,null,null,null,null,null,null,null,null,null,null,null,null,null,null,"QJ2","RXM","DERBYSHIRE HEALTHCARE NHS FOUNDATION TRUST","Children & Family Services",null,"RL4","NORTH HAMPSHIRE URGENT CARE",null,"RL4","NORTH HAMPSHIRE URGENT CARE"]
[null,null,null,null,null,null,null,null,null,null,null,null,null,null,null,null,null,null,null,"QJG","RDE","EAST SUFFOLK AND NORTH ESSEX NHS FOUNDATION TRUST","Community Healthcare Other",null,"RLQ","NORTH TEES AND HARTLEPOOL NHS FOUNDATION TRUST",null,"RLQ","NORTH TEES AND HARTLEPOOL NHS FOUNDATION TRUST"]
[null,null,null,null,null,null,null,null,null,null,null,null,null,null,null,null,null,null,null,"QJG","RDE","EAST SUFFOLK AND NORTH ESSEX NHS FOUNDATION TRUST","Community Inpatient Services",null,"RMC","NORTHAMPTONSHIRE HEALTHCARE NHS FOUNDATION TRUST",null,"RMC","NORTHAMPTONSHIRE HEALTHCARE NHS FOUNDATION TRUST"]
[null,null,null,null,null,null,null,null,null,null,null,null,null,null,null,null,null,null,null,"QJG","RDE","EAST SUFFOLK AND NORTH ESSEX NHS FOUNDATION TRUST","Community Nursing Services",null,"RNA","NORTHERN DEVON HEALTHCARE NHS TRUST",null,"RNA","NORTHERN DEVON HEALTHCARE NHS TRUST"]
[null,null,null,null,null,null,null,null,null,null,null,null,null,null,null,null,null,null,null,"QJG","RDE","EAST SUFFOLK AND NORTH ESSEX NHS FOUNDATION TRUST","Rehabilitation & Therapy Services",null,"RNN","NORTHUMBRIA HEALTHCARE NHS FOUNDATION TRUST",null,"RNN","NORTHUMBRIA HEALTHCARE NHS FOUNDATION TRUST"]
[null,null,null,null,null,null,null,null,null,null,null,null,null,null,null,null,null,null,null,"QJG","RDE","EAST SUFFOLK AND NORTH ESSEX NHS FOUNDATION TRUST","Specialist Services",null,"RNU","NOTTINGHAM CITYCARE PARTNERSHIP",null,"RNU","NOTTINGHAM CITYCARE PARTNERSHIP"]
[null,null,null,null,null,null,null,null,null,null,null,null,null,null,null,null,null,null,null,"QJG","RGR","WEST SUFFOLK NHS FOUNDATION TRUST","Community Inpatient Services",null,"RP1","NOTTINGHAMSHIRE HEALTHCARE NHS FOUNDATION TRUST",null,"RP1","NOTTINGHAMSHIRE HEALTHCARE NHS FOUNDATION TRUST"]
[null,null,null,null,null,null,null,null,null,null,null,null,null,null,null,null,null,null,null,"QJG","RGR","WEST SUFFOLK NHS FOUNDATION TRUST","Community Nursing Services",null,"RPG","NOVUS HEALTH LTD",null,"RPG","NOVUS HEALTH LTD"]
[null,null,null,null,null,null,null,null,null,null,null,null,null,null,null,null,null,null,null,"QJG","RGR","WEST SUFFOLK NHS FOUNDATION TRUST","Rehabilitation & Therapy Services",null,"RQM","OXFORD HEALTH NHS FOUNDATION TRUST",null,"RQM","OXFORD HEALTH NHS FOUNDATION TRUST"]
[null,null,null,null,null,null,null,null,null,null,null,null,null,null,null,null,null,null,null,"QJK","RBZ","NORTHERN DEVON HEALTHCARE NHS TRUST","Community Healthcare Other",null,"RQX","OXLEAS NHS FOUNDATION TRUST",null,"RQX","OXLEAS NHS FOUNDATION TRUST"]
[null,null,null,null,null,null,null,null,null,null,null,null,null,null,null,null,null,null,null,"QJK","RBZ","NORTHERN DEVON HEALTHCARE NHS TRUST","Community Inpatient Services",null,"RRE","PENNINE MUSCULOSKELETAL PARTNERSHIP (ICATS)",null,"RRE","PENNINE MUSCULOSKELETAL PARTNERSHIP (ICATS)"]
[null,null,null,null,null,null,null,null,null,null,null,null,null,null,null,null,null,null,null,"QJK","RBZ","NORTHERN DEVON HEALTHCARE NHS TRUST","Community Nursing Services",null,"RRF","PRACTICE PLUS GROUP",null,"RRF","PRACTICE PLUS GROUP"]
[null,null,null,null,null,null,null,null,null,null,null,null,null,null,null,null,null,null,null,"QJK","RBZ","NORTHERN DEVON HEALTHCARE NHS TRUST","Rehabilitation & Therapy Services",null,"RRK","PROVIDE",null,"RRK","PROVIDE"]
[null,null,null,null,null,null,null,null,null,null,null,null,null,null,null,null,null,null,null,"QJK","RBZ","NORTHERN DEVON HEALTHCARE NHS TRUST","Specialist Services",null,"RRP","ROTHERHAM DONCASTER AND SOUTH HUMBER NHS FOUNDATION TRUST",null,"RRP","ROTHERHAM DONCASTER AND SOUTH HUMBER NHS FOUNDATION TRUST"]
[null,null,null,null,null,null,null,null,null,null,null,null,null,null,null,null,null,null,null,"QJK","RH8","ROYAL DEVON AND EXETER NHS FOUNDATION TRUST","Community Healthcare Other",null,"RT1","ROYAL DEVON AND EXETER NHS FOUNDATION TRUST",null,"RT1","ROYAL DEVON AND EXETER NHS FOUNDATION TRUST"]
[null,null,null,null,null,null,null,null,null,null,null,null,null,null,null,null,null,null,null,"QJK","RH8","ROYAL DEVON AND EXETER NHS FOUNDATION TRUST","Community Inpatient Services",null,"RT5","ROYAL SURREY COUNTY HOSPITAL NHS FOUNDATION TRUST",null,"RT5","ROYAL SURREY COUNTY HOSPITAL NHS FOUNDATION TRUST"]
[null,null,null,null,null,null,null,null,null,null,null,null,null,null,null,null,null,null,null,"QJK","RH8","ROYAL DEVON AND EXETER NHS FOUNDATION TRUST","Community Nursing Services",null,"RTD","SHEFFIELD CHILDREN'S NHS FOUNDATION TRUST",null,"RTD","SHEFFIELD CHILDREN'S NHS FOUNDATION TRUST"]
[null,null,null,null,null,null,null,null,null,null,null,null,null,null,null,null,null,null,null,"QJK","RH8","ROYAL DEVON AND EXETER NHS FOUNDATION TRUST","Rehabilitation & Therapy Services",null,"RTF","SHEFFIELD TEACHING HOSPITALS NHS FOUNDATION TRUST",null,"RTF","SHEFFIELD TEACHING HOSPITALS NHS FOUNDATION TRUST"]
[null,null,null,null,null,null,null,null,null,null,null,null,null,null,null,null,null,null,null,"QJK","RH8","ROYAL DEVON AND EXETER NHS FOUNDATION TRUST","Specialist Services",null,"RTQ","SHROPSHIRE COMMUNITY HEALTH NHS TRUST",null,"RTQ","SHROPSHIRE COMMUNITY HEALTH NHS TRUST"]
[null,null,null,null,null,null,null,null,null,null,null,null,null,null,null,null,null,null,null,"QJK","RA9","TORBAY AND SOUTH DEVON NHS FOUNDATION TRUST","Children & Family Services",null,"RTR","SOLENT MEDICAL SERVICES LIMITED",null,"RTR","SOLENT MEDICAL SERVICES LIMITED"]
[null,null,null,null,null,null,null,null,null,null,null,null,null,null,null,null,null,null,null,"QJK","RA9","TORBAY AND SOUTH DEVON NHS FOUNDATION TRUST","Community Healthcare Other",null,"RTX","SOLENT NHS TRUST",null,"RTX","SOLENT NHS TRUST"]
[null,null,null,null,null,null,null,null,null,null,null,null,null,null,null,null,null,null,null,"QJK","RA9","TORBAY AND SOUTH DEVON NHS FOUNDATION TRUST","Community Inpatient Services",null,"RV3","SOMERSET NHS FOUNDATION TRUST",null,"RV3","SOMERSET NHS FOUNDATION TRUST"]
[null,null,null,null,null,null,null,null,null,null,null,null,null,null,null,null,null,null,null,"QJK","RA9","TORBAY AND SOUTH DEVON NHS FOUNDATION TRUST","Rehabilitation & Therapy Services",null,"RV9","SOUTH TEES HOSPITALS NHS FOUNDATION TRUST",null,"RV9","SOUTH TEES HOSPITALS NHS FOUNDATION TRUST"]
[null,null,null,null,null,null,null,null,null,null,null,null,null,null,null,null,null,null,null,"QJK","RA9","TORBAY AND SOUTH DEVON NHS FOUNDATION TRUST","Specialist Services",null,"RVR","SOUTH TYNESIDE AND SUNDERLAND NHS FOUNDATION TRUST",null,"RVR","SOUTH TYNESIDE AND SUNDERLAND NHS FOUNDATION TRUST"]
[null,null,null,null,null,null,null,null,null,null,null,null,null,null,null,null,null,null,null,"QJK","RK9","UNIVERSITY HOSPITALS PLYMOUTH NHS TRUST","Children & Family Services",null,"RVW","SOUTH WARWICKSHIRE NHS FOUNDATION TRUST",null,"RVW","SOUTH WARWICKSHIRE NHS FOUNDATION TRUST"]
[null,null,null,null,null,null,null,null,null,null,null,null,null,null,null,null,null,null,null,"QJM","RY5","LINCOLNSHIRE COMMUNITY HEALTH SERVICES NHS TRUST","Children & Family Services",null,"RVY","SOUTH WEST YORKSHIRE PARTNERSHIP NHS FOUNDATION TRUST",null,"RVY","SOUTH WEST YORKSHIRE PARTNERSHIP NHS FOUNDATION TRUST"]
[null,null,null,null,null,null,null,null,null,null,null,null,null,null,null,null,null,null,null,"QJM","RY5","LINCOLNSHIRE COMMUNITY HEALTH SERVICES NHS TRUST","Community Healthcare Other",null,"RW1","SOUTHERN HEALTH NHS FOUNDATION TRUST",null,"RW1","SOUTHERN HEALTH NHS FOUNDATION TRUST"]
[null,null,null,null,null,null,null,null,null,null,null,null,null,null,null,null,null,null,null,"QJM","RY5","LINCOLNSHIRE COMMUNITY HEALTH SERVICES NHS TRUST","Community Inpatient Services",null,"RW4","SOUTHPORT AND ORMSKIRK HOSPITAL NHS TRUST",null,"RW4","SOUTHPORT AND ORMSKIRK HOSPITAL NHS TRUST"]
[null,null,null,null,null,null,null,null,null,null,null,null,null,null,null,null,null,null,null,"QJM","RY5","LINCOLNSHIRE COMMUNITY HEALTH SERVICES NHS TRUST","Community Nursing Services",null,"RW5","ST GEORGE'S UNIVERSITY HOSPITALS NHS FOUNDATION TRUST",null,"RW5","ST GEORGE'S UNIVERSITY HOSPITALS NHS FOUNDATION TRUST"]
[null,null,null,null,null,null,null,null,null,null,null,null,null,null,null,null,null,null,null,"QJM","RY5","LINCOLNSHIRE COMMUNITY HEALTH SERVICES NHS TRUST","Rehabilitation & Therapy Services",null,"RWJ","STOCKPORT NHS FOUNDATION TRUST",null,"RWJ","STOCKPORT NHS FOUNDATION TRUST"]
[null,null,null,null,null,null,null,null,null,null,null,null,null,null,null,null,null,null,null,"QJM","RY5","LINCOLNSHIRE COMMUNITY HEALTH SERVICES NHS TRUST","Specialist Services",null,"RWK","SUFFOLK GP FEDERATION",null,"RWK","SUFFOLK GP FEDERATION"]
[null,null,null,null,null,null,null,null,null,null,null,null,null,null,null,null,null,null,null,"QK1","RT5","LEICESTERSHIRE PARTNERSHIP NHS TRUST","Children & Family Services",null,"RWX","SUSSEX COMMUNITY DERMATOLOGY SERVICE",null,"RWX","SUSSEX COMMUNITY DERMATOLOGY SERVICE"]
[null,null,null,null,null,null,null,null,null,null,null,null,null,null,null,null,null,null,null,"QK1","RT5","LEICESTERSHIRE PARTNERSHIP NHS TRUST","Community Healthcare Other",null,"RWY","SUSSEX COMMUNITY NHS FOUNDATION TRUST",null,"RWY","SUSSEX COMMUNITY NHS FOUNDATION TRUST"]
[null,null,null,null,null,null,null,null,null,null,null,null,null,null,null,null,null,null,null,"QK1","RT5","LEICESTERSHIRE PARTNERSHIP NHS TRUST","Community Inpatient Services",null,"RXA","TAURUS HEALTHCARE LTD",null,"RXA","TAURUS HEALTHCARE LTD"]
[null,null,null,null,null,null,null,null,null,null,null,null,null,null,null,null,null,null,null,"QK1","RT5","LEICESTERSHIRE PARTNERSHIP NHS TRUST","Community Nursing Services",null,"RXC","THE DUDLEY GROUP NHS FOUNDATION TRUST",null,"RXC","THE DUDLEY GROUP NHS FOUNDATION TRUST"]
[null,null,null,null,null,null,null,null,null,null,null,null,null,null,null,null,null,null,null,"QK1","RT5","LEICESTERSHIRE PARTNERSHIP NHS TRUST","Rehabilitation & Therapy Services",null,"RXE","THE NEWCASTLE UPON TYNE HOSPITALS NHS FOUNDATION TRUST",null,"RXE","THE NEWCASTLE UPON TYNE HOSPITALS NHS FOUNDATION TRUST"]
[null,null,null,null,null,null,null,null,null,null,null,null,null,null,null,null,null,null,null,"QK1","RT5","LEICESTERSHIRE PARTNERSHIP NHS TRUST","Specialist Services",null,"RXF","THE ROTHERHAM NHS FOUNDATION TRUST",null,"RXF","THE ROTHERHAM NHS FOUNDATION TRUST"]
[null,null,null,null,null,null,null,null,null,null,null,null,null,null,null,null,null,null,null,"QKK","RJ1","GUY'S AND ST THOMAS' NHS FOUNDATION TRUST","Children & Family Services",null,"RXG","THE ROYAL HOSPITAL FOR NEURO-DISABILITY",null,"RXG","THE ROYAL HOSPITAL FOR NEURO-DISABILITY"]
[null,null,null,null,null,null,null,null,null,null,null,null,null,null,null,null,null,null,null,"QKK","RJ1","GUY'S AND ST THOMAS' NHS FOUNDATION TRUST","Community Nursing Services",null,"RXL","THE ROYAL WOLVERHAMPTON NHS TRUST",null,"RXL","THE ROYAL WOLVERHAMPTON NHS TRUST"]
[null,null,null,null,null,null,null,null,null,null,null,null,null,null,null,null,null,null,null,"QKK","RJ1","GUY'S AND ST THOMAS' NHS FOUNDATION TRUST","Rehabilitation & Therapy Services",null,"RXM","THE STROKE ASSOCIATION",null,"RXM","THE STROKE ASSOCIATION"]
[null,null,null,null,null,null,null,null,null,null,null,null,null,null,null,null,null,null,null,"QKK","RJ1","GUY'S AND ST THOMAS' NHS FOUNDATION TRUST","Specialist Services",null,"RXQ","TORBAY AND SOUTH DEVON NHS FOUNDATION TRUST",null,"RXQ","TORBAY AND SOUTH DEVON NHS FOUNDATION TRUST"]
[null,null,null,null,null,null,null,null,null,null,null,null,null,null,null,null,null,null,null,"QKK","RJ2","LEWISHAM AND GREENWICH NHS TRUST","Children & Family Services",null,"RXR","UNIVERSITY HOSPITALS BIRMINGHAM NHS FOUNDATION TRUST",null,"RXR","UNIVERSITY HOSPITALS BIRMINGHAM NHS FOUNDATION TRUST"]
[null,null,null,null,null,null,null,null,null,null,null,null,null,null,null,null,null,null,null,"QKK","RJ2","LEWISHAM AND GREENWICH NHS TRUST","Community Healthcare Other",null,"RY2","UNIVERSITY HOSPITALS OF MORECAMBE BAY NHS FOUNDATION TRUST",null,"RY2","UNIVERSITY HOSPITALS OF MORECAMBE BAY NHS FOUNDATION TRUST"]
[null,null,null,null,null,null,null,null,null,null,null,null,null,null,null,null,null,null,null,"QKK","RJ2","LEWISHAM AND GREENWICH NHS TRUST","Community Nursing Services",null,"RY3","UNIVERSITY HOSPITALS PLYMOUTH NHS TRUST",null,"RY3","UNIVERSITY HOSPITALS PLYMOUTH NHS TRUST"]
[null,null,null,null,null,null,null,null,null,null,null,null,null,null,null,null,null,null,null,"QKK","RJ2","LEWISHAM AND GREENWICH NHS TRUST","Rehabilitation & Therapy Services",null,"RY4","VIRGIN CARE LTD",null,"RY4","VIRGIN CARE LTD"]
[null,null,null,null,null,null,null,null,null,null,null,null,null,null,null,null,null,null,null,"QKK","RJ2","LEWISHAM AND GREENWICH NHS TRUST","Specialist Services",null,"RY5","VIRGIN CARE SERVICES LTD",null,"RY5","VIRGIN CARE SERVICES LTD"]
[null,null,null,null,null,null,null,null,null,null,null,null,null,null,null,null,null,null,null,"QKK","RPG","OXLEAS NHS FOUNDATION TRUST","Children & Family Services",null,"RY6","WALSALL HEALTHCARE NHS TRUST",null,"RY6","WALSALL HEALTHCARE NHS TRUST"]
[null,null,null,null,null,null,null,null,null,null,null,null,null,null,null,null,null,null,null,"QKK","RPG","OXLEAS NHS FOUNDATION TRUST","Community Healthcare Other",null,"RY7","WEST LONDON NHS TRUST",null,"RY7","WEST LONDON NHS TRUST"]
[null,null,null,null,null,null,null,null,null,null,null,null,null,null,null,null,null,null,null,"QKK","RPG","OXLEAS NHS FOUNDATION TRUST","Community Inpatient Services",null,"RY8","WEST SUFFOLK NHS FOUNDATION TRUST",null,"RY8","WEST SUFFOLK NHS FOUNDATION TRUST"]
[null,null,null,null,null,null,null,null,null,null,null,null,null,null,null,null,null,null,null,"QKK","RPG","OXLEAS NHS FOUNDATION TRUST","Community Nursing Services",null,"RY9","WHITTINGTON HEALTH NHS TRUST",null,"RY9","WHITTINGTON HEALTH NHS TRUST"]
[null,null,null,null,null,null,null,null,null,null,null,null,null,null,null,null,null,null,null,"QKK","RPG","OXLEAS NHS FOUNDATION TRUST","Rehabilitation & Therapy Services",null,"RYV","WILTSHIRE HEALTH & CARE",null,"RYV","WILTSHIRE HEALTH & CARE"]
[null,null,null,null,null,null,null,null,null,null,null,null,null,null,null,null,null,null,null,"QKK","RPG","OXLEAS NHS FOUNDATION TRUST","Specialist Services",null,"RYW","WIRRAL COMMUNITY HEALTH AND CARE NHS FOUNDATION TRUST",null,"RYW","WIRRAL COMMUNITY HEALTH AND CARE NHS FOUNDATION TRUST"]
[null,null,null,null,null,null,null,null,null,null,null,null,null,null,null,null,null,null,null,"QKS","RYY","KENT COMMUNITY HEALTH NHS FOUNDATION TRUST","Children & Family Services",null,"RYX","WRIGHTINGTON, WIGAN AND LEIGH NHS FOUNDATION TRUST",null,"RYX","WRIGHTINGTON, WIGAN AND LEIGH NHS FOUNDATION TRUST"]
[null,null,null,null,null,null,null,null,null,null,null,null,null,null,null,null,null,null,null,"QKS","RYY","KENT COMMUNITY HEALTH NHS FOUNDATION TRUST","Community Healthcare Other",null,"RYY","WYE VALLEY NHS TRUST",null,"RYY","WYE VALLEY NHS TRUST"]
[null,null,null,null,null,null,null,null,null,null,null,null,null,null,null,null,null,null,null,"QKS","RYY","KENT COMMUNITY HEALTH NHS FOUNDATION TRUST","Community Inpatient Services",null,"TAD","YORK AND SCARBOROUGH TEACHING HOSPITALS NHS FOUNDATION TRUST",null,"TAD","YORK AND SCARBOROUGH TEACHING HOSPITALS NHS FOUNDATION TRUST"]
[null,null,null,null,null,null,null,null,null,null,null,null,null,null,null,null,null,null,null,"QKS","RYY","KENT COMMUNITY HEALTH NHS FOUNDATION TRUST","Community Nursing Services",null,"TAJ","YOUR HEALTHCARE",null,"TAJ","YOUR HEALTHCARE"]
[null,null,null,null,null,null,null,null,null,null,null,null,null,null,null,null,null,null,null,"QKS","RYY","KENT COMMUNITY HEALTH NHS FOUNDATION TRUST","Rehabilitation & Therapy Services"]
[null,null,null,null,null,null,null,null,null,null,null,null,null,null,null,null,null,null,null,"QKS","RYY","KENT COMMUNITY HEALTH NHS FOUNDATION TRUST","Specialist Services"]
[null,null,null,null,null,null,null,null,null,null,null,null,null,null,null,null,null,null,null,"QM7","RY4","HERTFORDSHIRE COMMUNITY NHS TRUST","Children & Family Services"]
[null,null,null,null,null,null,null,null,null,null,null,null,null,null,null,null,null,null,null,"QM7","RY4","HERTFORDSHIRE COMMUNITY NHS TRUST","Community Healthcare Other"]
[null,null,null,null,null,null,null,null,null,null,null,null,null,null,null,null,null,null,null,"QM7","RY4","HERTFORDSHIRE COMMUNITY NHS TRUST","Community Inpatient Services"]
[null,null,null,null,null,null,null,null,null,null,null,null,null,null,null,null,null,null,null,"QM7","RY4","HERTFORDSHIRE COMMUNITY NHS TRUST","Community Nursing Services"]
[null,null,null,null,null,null,null,null,null,null,null,null,null,null,null,null,null,null,null,"QM7","RY4","HERTFORDSHIRE COMMUNITY NHS TRUST","Rehabilitation & Therapy Services"]
[null,null,null,null,null,null,null,null,null,null,null,null,null,null,null,null,null,null,null,"QM7","RY4","HERTFORDSHIRE COMMUNITY NHS TRUST","Specialist Services"]
[null,null,null,null,null,null,null,null,null,null,null,null,null,null,null,null,null,null,null,"QMF","RWK","EAST LONDON NHS FOUNDATION TRUST","Children & Family Services"]
[null,null,null,null,null,null,null,null,null,null,null,null,null,null,null,null,null,null,null,"QMF","RWK","EAST LONDON NHS FOUNDATION TRUST","Community Healthcare Other"]
[null,null,null,null,null,null,null,null,null,null,null,null,null,null,null,null,null,null,null,"QMF","RWK","EAST LONDON NHS FOUNDATION TRUST","Community Inpatient Services"]
[null,null,null,null,null,null,null,null,null,null,null,null,null,null,null,null,null,null,null,"QMF","RWK","EAST LONDON NHS FOUNDATION TRUST","Community Nursing Services"]
[null,null,null,null,null,null,null,null,null,null,null,null,null,null,null,null,null,null,null,"QMF","RWK","EAST LONDON NHS FOUNDATION TRUST","Rehabilitation & Therapy Services"]
[null,null,null,null,null,null,null,null,null,null,null,null,null,null,null,null,null,null,null,"QMF","RWK","EAST LONDON NHS FOUNDATION TRUST","Specialist Services"]
[null,null,null,null,null,null,null,null,null,null,null,null,null,null,null,null,null,null,null,"QMF","RQX","HOMERTON UNIVERSITY HOSPITAL NHS FOUNDATION TRUST","Children & Family Services"]
[null,null,null,null,null,null,null,null,null,null,null,null,null,null,null,null,null,null,null,"QMF","RQX","HOMERTON UNIVERSITY HOSPITAL NHS FOUNDATION TRUST","Community Nursing Services"]
[null,null,null,null,null,null,null,null,null,null,null,null,null,null,null,null,null,null,null,"QMF","RQX","HOMERTON UNIVERSITY HOSPITAL NHS FOUNDATION TRUST","Rehabilitation & Therapy Services"]
[null,null,null,null,null,null,null,null,null,null,null,null,null,null,null,null,null,null,null,"QMF","RQX","HOMERTON UNIVERSITY HOSPITAL NHS FOUNDATION TRUST","Specialist Services"]
[null,null,null,null,null,null,null,null,null,null,null,null,null,null,null,null,null,null,null,"QMF","RAT","NORTH EAST LONDON NHS FOUNDATION TRUST","Children & Family Services"]
[null,null,null,null,null,null,null,null,null,null,null,null,null,null,null,null,null,null,null,"QMF","RAT","NORTH EAST LONDON NHS FOUNDATION TRUST","Community Healthcare Other"]
[null,null,null,null,null,null,null,null,null,null,null,null,null,null,null,null,null,null,null,"QMF","RAT","NORTH EAST LONDON NHS FOUNDATION TRUST","Community Inpatient Services"]
[null,null,null,null,null,null,null,null,null,null,null,null,null,null,null,null,null,null,null,"QMF","RAT","NORTH EAST LONDON NHS FOUNDATION TRUST","Community Nursing Services"]
[null,null,null,null,null,null,null,null,null,null,null,null,null,null,null,null,null,null,null,"QMF","RAT","NORTH EAST LONDON NHS FOUNDATION TRUST","Rehabilitation & Therapy Services"]
[null,null,null,null,null,null,null,null,null,null,null,null,null,null,null,null,null,null,null,"QMF","RAT","NORTH EAST LONDON NHS FOUNDATION TRUST","Specialist Services"]
[null,null,null,null,null,null,null,null,null,null,null,null,null,null,null,null,null,null,null,"QMJ","RRP","BARNET, ENFIELD AND HARINGEY MENTAL HEALTH NHS TRUST","Children & Family Services"]
[null,null,null,null,null,null,null,null,null,null,null,null,null,null,null,null,null,null,null,"QMJ","RRP","BARNET, ENFIELD AND HARINGEY MENTAL HEALTH NHS TRUST","Community Inpatient Services"]
[null,null,null,null,null,null,null,null,null,null,null,null,null,null,null,null,null,null,null,"QMJ","RRP","BARNET, ENFIELD AND HARINGEY MENTAL HEALTH NHS TRUST","Community Nursing Services"]
[null,null,null,null,null,null,null,null,null,null,null,null,null,null,null,null,null,null,null,"QMJ","RRP","BARNET, ENFIELD AND HARINGEY MENTAL HEALTH NHS TRUST","Rehabilitation & Therapy Services"]
[null,null,null,null,null,null,null,null,null,null,null,null,null,null,null,null,null,null,null,"QMJ","RRP","BARNET, ENFIELD AND HARINGEY MENTAL HEALTH NHS TRUST","Specialist Services"]
[null,null,null,null,null,null,null,null,null,null,null,null,null,null,null,null,null,null,null,"QMJ","RV3","CENTRAL AND NORTH WEST LONDON NHS FOUNDATION TRUST","Children & Family Services"]
[null,null,null,null,null,null,null,null,null,null,null,null,null,null,null,null,null,null,null,"QMJ","RV3","CENTRAL AND NORTH WEST LONDON NHS FOUNDATION TRUST","Community Healthcare Other"]
[null,null,null,null,null,null,null,null,null,null,null,null,null,null,null,null,null,null,null,"QMJ","RV3","CENTRAL AND NORTH WEST LONDON NHS FOUNDATION TRUST","Community Inpatient Services"]
[null,null,null,null,null,null,null,null,null,null,null,null,null,null,null,null,null,null,null,"QMJ","RV3","CENTRAL AND NORTH WEST LONDON NHS FOUNDATION TRUST","Community Nursing Services"]
[null,null,null,null,null,null,null,null,null,null,null,null,null,null,null,null,null,null,null,"QMJ","RV3","CENTRAL AND NORTH WEST LONDON NHS FOUNDATION TRUST","Rehabilitation & Therapy Services"]
[null,null,null,null,null,null,null,null,null,null,null,null,null,null,null,null,null,null,null,"QMJ","RV3","CENTRAL AND NORTH WEST LONDON NHS FOUNDATION TRUST","Specialist Services"]
[null,null,null,null,null,null,null,null,null,null,null,null,null,null,null,null,null,null,null,"QMJ","RKE","WHITTINGTON HEALTH NHS TRUST","Children & Family Services"]
[null,null,null,null,null,null,null,null,null,null,null,null,null,null,null,null,null,null,null,"QMJ","RKE","WHITTINGTON HEALTH NHS TRUST","Rehabilitation & Therapy Services"]
[null,null,null,null,null,null,null,null,null,null,null,null,null,null,null,null,null,null,null,"QMJ","RKE","WHITTINGTON HEALTH NHS TRUST","Specialist Services"]
[null,null,null,null,null,null,null,null,null,null,null,null,null,null,null,null,null,null,null,"QMM","RY3","NORFOLK COMMUNITY HEALTH AND CARE NHS TRUST","Children & Family Services"]
[null,null,null,null,null,null,null,null,null,null,null,null,null,null,null,null,null,null,null,"QMM","RY3","NORFOLK COMMUNITY HEALTH AND CARE NHS TRUST","Community Inpatient Services"]
[null,null,null,null,null,null,null,null,null,null,null,null,null,null,null,null,null,null,null,"QMM","RY3","NORFOLK COMMUNITY HEALTH AND CARE NHS TRUST","Community Nursing Services"]
[null,null,null,null,null,null,null,null,null,null,null,null,null,null,null,null,null,null,null,"QMM","RY3","NORFOLK COMMUNITY HEALTH AND CARE NHS TRUST","Rehabilitation & Therapy Services"]
[null,null,null,null,null,null,null,null,null,null,null,null,null,null,null,null,null,null,null,"QMM","RY3","NORFOLK COMMUNITY HEALTH AND CARE NHS TRUST","Specialist Services"]
[null,null,null,null,null,null,null,null,null,null,null,null,null,null,null,null,null,null,null,"QNC","RRE","MIDLANDS PARTNERSHIP NHS FOUNDATION TRUST","Children & Family Services"]
[null,null,null,null,null,null,null,null,null,null,null,null,null,null,null,null,null,null,null,"QNC","RRE","MIDLANDS PARTNERSHIP NHS FOUNDATION TRUST","Community Healthcare Other"]
[null,null,null,null,null,null,null,null,null,null,null,null,null,null,null,null,null,null,null,"QNC","RRE","MIDLANDS PARTNERSHIP NHS FOUNDATION TRUST","Community Inpatient Services"]
[null,null,null,null,null,null,null,null,null,null,null,null,null,null,null,null,null,null,null,"QNC","RRE","MIDLANDS PARTNERSHIP NHS FOUNDATION TRUST","Community Nursing Services"]
[null,null,null,null,null,null,null,null,null,null,null,null,null,null,null,null,null,null,null,"QNC","RRE","MIDLANDS PARTNERSHIP NHS FOUNDATION TRUST","Rehabilitation & Therapy Services"]
[null,null,null,null,null,null,null,null,null,null,null,null,null,null,null,null,null,null,null,"QNC","RRE","MIDLANDS PARTNERSHIP NHS FOUNDATION TRUST","Specialist Services"]
[null,null,null,null,null,null,null,null,null,null,null,null,null,null,null,null,null,null,null,"QNQ","RWX","BERKSHIRE HEALTHCARE NHS FOUNDATION TRUST","Children & Family Services"]
[null,null,null,null,null,null,null,null,null,null,null,null,null,null,null,null,null,null,null,"QNQ","RWX","BERKSHIRE HEALTHCARE NHS FOUNDATION TRUST","Community Inpatient Services"]
[null,null,null,null,null,null,null,null,null,null,null,null,null,null,null,null,null,null,null,"QNQ","RWX","BERKSHIRE HEALTHCARE NHS FOUNDATION TRUST","Community Nursing Services"]
[null,null,null,null,null,null,null,null,null,null,null,null,null,null,null,null,null,null,null,"QNQ","RWX","BERKSHIRE HEALTHCARE NHS FOUNDATION TRUST","Rehabilitation & Therapy Services"]
[null,null,null,null,null,null,null,null,null,null,null,null,null,null,null,null,null,null,null,"QNQ","RWX","BERKSHIRE HEALTHCARE NHS FOUNDATION TRUST","Specialist Services"]
[null,null,null,null,null,null,null,null,null,null,null,null,null,null,null,null,null,null,null,"QNQ","RDU","FRIMLEY HEALTH NHS FOUNDATION TRUST","Community Healthcare Other"]
[null,null,null,null,null,null,null,null,null,null,null,null,null,null,null,null,null,null,null,"QNX","RXC","EAST SUSSEX HEALTHCARE NHS TRUST","Community Inpatient Services"]
[null,null,null,null,null,null,null,null,null,null,null,null,null,null,null,null,null,null,null,"QNX","RXC","EAST SUSSEX HEALTHCARE NHS TRUST","Community Nursing Services"]
[null,null,null,null,null,null,null,null,null,null,null,null,null,null,null,null,null,null,null,"QNX","RXC","EAST SUSSEX HEALTHCARE NHS TRUST","Rehabilitation & Therapy Services"]
[null,null,null,null,null,null,null,null,null,null,null,null,null,null,null,null,null,null,null,"QNX","RXC","EAST SUSSEX HEALTHCARE NHS TRUST","Specialist Services"]
[null,null,null,null,null,null,null,null,null,null,null,null,null,null,null,null,null,null,null,"QNX","RDR","SUSSEX COMMUNITY NHS FOUNDATION TRUST","Children & Family Services"]
[null,null,null,null,null,null,null,null,null,null,null,null,null,null,null,null,null,null,null,"QNX","RDR","SUSSEX COMMUNITY NHS FOUNDATION TRUST","Community Healthcare Other"]
[null,null,null,null,null,null,null,null,null,null,null,null,null,null,null,null,null,null,null,"QNX","RDR","SUSSEX COMMUNITY NHS FOUNDATION TRUST","Community Inpatient Services"]
[null,null,null,null,null,null,null,null,null,null,null,null,null,null,null,null,null,null,null,"QNX","RDR","SUSSEX COMMUNITY NHS FOUNDATION TRUST","Community Nursing Services"]
[null,null,null,null,null,null,null,null,null,null,null,null,null,null,null,null,null,null,null,"QNX","RDR","SUSSEX COMMUNITY NHS FOUNDATION TRUST","Rehabilitation & Therapy Services"]
[null,null,null,null,null,null,null,null,null,null,null,null,null,null,null,null,null,null,null,"QNX","RDR","SUSSEX COMMUNITY NHS FOUNDATION TRUST","Specialist Services"]
[null,null,null,null,null,null,null,null,null,null,null,null,null,null,null,null,null,null,null,"QOC","R1D","SHROPSHIRE COMMUNITY HEALTH NHS TRUST","Children & Family Services"]
[null,null,null,null,null,null,null,null,null,null,null,null,null,null,null,null,null,null,null,"QOC","R1D","SHROPSHIRE COMMUNITY HEALTH NHS TRUST","Community Healthcare Other"]
[null,null,null,null,null,null,null,null,null,null,null,null,null,null,null,null,null,null,null,"QOC","R1D","SHROPSHIRE COMMUNITY HEALTH NHS TRUST","Community Inpatient Services"]
[null,null,null,null,null,null,null,null,null,null,null,null,null,null,null,null,null,null,null,"QOC","R1D","SHROPSHIRE COMMUNITY HEALTH NHS TRUST","Community Nursing Services"]
[null,null,null,null,null,null,null,null,null,null,null,null,null,null,null,null,null,null,null,"QOC","R1D","SHROPSHIRE COMMUNITY HEALTH NHS TRUST","Rehabilitation & Therapy Services"]
[null,null,null,null,null,null,null,null,null,null,null,null,null,null,null,null,null,null,null,"QOC","R1D","SHROPSHIRE COMMUNITY HEALTH NHS TRUST","Specialist Services"]
[null,null,null,null,null,null,null,null,null,null,null,null,null,null,null,null,null,null,null,"QOP","RMC","BOLTON NHS FOUNDATION TRUST","Children & Family Services"]
[null,null,null,null,null,null,null,null,null,null,null,null,null,null,null,null,null,null,null,"QOP","RMC","BOLTON NHS FOUNDATION TRUST","Community Healthcare Other"]
[null,null,null,null,null,null,null,null,null,null,null,null,null,null,null,null,null,null,null,"QOP","RMC","BOLTON NHS FOUNDATION TRUST","Community Inpatient Services"]
[null,null,null,null,null,null,null,null,null,null,null,null,null,null,null,null,null,null,null,"QOP","RMC","BOLTON NHS FOUNDATION TRUST","Community Nursing Services"]
[null,null,null,null,null,null,null,null,null,null,null,null,null,null,null,null,null,null,null,"QOP","RMC","BOLTON NHS FOUNDATION TRUST","Rehabilitation & Therapy Services"]
[null,null,null,null,null,null,null,null,null,null,null,null,null,null,null,null,null,null,null,"QOP","RMC","BOLTON NHS FOUNDATION TRUST","Specialist Services"]
[null,null,null,null,null,null,null,null,null,null,null,null,null,null,null,null,null,null,null,"QOP","R0A","MANCHESTER UNIVERSITY NHS FOUNDATION TRUST","Children & Family Services"]
[null,null,null,null,null,null,null,null,null,null,null,null,null,null,null,null,null,null,null,"QOP","R0A","MANCHESTER UNIVERSITY NHS FOUNDATION TRUST","Community Inpatient Services"]
[null,null,null,null,null,null,null,null,null,null,null,null,null,null,null,null,null,null,null,"QOP","R0A","MANCHESTER UNIVERSITY NHS FOUNDATION TRUST","Community Nursing Services"]
[null,null,null,null,null,null,null,null,null,null,null,null,null,null,null,null,null,null,null,"QOP","R0A","MANCHESTER UNIVERSITY NHS FOUNDATION TRUST","Rehabilitation & Therapy Services"]
[null,null,null,null,null,null,null,null,null,null,null,null,null,null,null,null,null,null,null,"QOP","R0A","MANCHESTER UNIVERSITY NHS FOUNDATION TRUST","Specialist Services"]
[null,null,null,null,null,null,null,null,null,null,null,null,null,null,null,null,null,null,null,"QOP","RWJ","STOCKPORT NHS FOUNDATION TRUST","Children & Family Services"]
[null,null,null,null,null,null,null,null,null,null,null,null,null,null,null,null,null,null,null,"QOP","RWJ","STOCKPORT NHS FOUNDATION TRUST","Community Healthcare Other"]
[null,null,null,null,null,null,null,null,null,null,null,null,null,null,null,null,null,null,null,"QOP","RWJ","STOCKPORT NHS FOUNDATION TRUST","Community Nursing Services"]
[null,null,null,null,null,null,null,null,null,null,null,null,null,null,null,null,null,null,null,"QOP","RWJ","STOCKPORT NHS FOUNDATION TRUST","Rehabilitation & Therapy Services"]
[null,null,null,null,null,null,null,null,null,null,null,null,null,null,null,null,null,null,null,"QOP","RWJ","STOCKPORT NHS FOUNDATION TRUST","Specialist Services"]
[null,null,null,null,null,null,null,null,null,null,null,null,null,null,null,null,null,null,null,"QOP","RRF","WRIGHTINGTON, WIGAN AND LEIGH NHS FOUNDATION TRUST","Children & Family Services"]
[null,null,null,null,null,null,null,null,null,null,null,null,null,null,null,null,null,null,null,"QOP","RRF","WRIGHTINGTON, WIGAN AND LEIGH NHS FOUNDATION TRUST","Community Nursing Services"]
[null,null,null,null,null,null,null,null,null,null,null,null,null,null,null,null,null,null,null,"QOP","RRF","WRIGHTINGTON, WIGAN AND LEIGH NHS FOUNDATION TRUST","Rehabilitation & Therapy Services"]
[null,null,null,null,null,null,null,null,null,null,null,null,null,null,null,null,null,null,null,"QOP","RRF","WRIGHTINGTON, WIGAN AND LEIGH NHS FOUNDATION TRUST","Specialist Services"]
[null,null,null,null,null,null,null,null,null,null,null,null,null,null,null,null,null,null,null,"QOQ","RCD","HARROGATE AND DISTRICT NHS FOUNDATION TRUST","Community Healthcare Other"]
[null,null,null,null,null,null,null,null,null,null,null,null,null,null,null,null,null,null,null,"QOQ","RCD","HARROGATE AND DISTRICT NHS FOUNDATION TRUST","Rehabilitation & Therapy Services"]
[null,null,null,null,null,null,null,null,null,null,null,null,null,null,null,null,null,null,null,"QOQ","RV9","HUMBER TEACHING NHS FOUNDATION TRUST","Children & Family Services"]
[null,null,null,null,null,null,null,null,null,null,null,null,null,null,null,null,null,null,null,"QOQ","RV9","HUMBER TEACHING NHS FOUNDATION TRUST","Community Healthcare Other"]
[null,null,null,null,null,null,null,null,null,null,null,null,null,null,null,null,null,null,null,"QOQ","RV9","HUMBER TEACHING NHS FOUNDATION TRUST","Community Inpatient Services"]
[null,null,null,null,null,null,null,null,null,null,null,null,null,null,null,null,null,null,null,"QOQ","RV9","HUMBER TEACHING NHS FOUNDATION TRUST","Community Nursing Services"]
[null,null,null,null,null,null,null,null,null,null,null,null,null,null,null,null,null,null,null,"QOQ","RCB","YORK AND SCARBOROUGH TEACHING HOSPITALS NHS FOUNDATION TRUST","Community Inpatient Services"]
[null,null,null,null,null,null,null,null,null,null,null,null,null,null,null,null,null,null,null,"QPM","RP1","NORTHAMPTONSHIRE HEALTHCARE NHS FOUNDATION TRUST","Children & Family Services"]
[null,null,null,null,null,null,null,null,null,null,null,null,null,null,null,null,null,null,null,"QPM","RP1","NORTHAMPTONSHIRE HEALTHCARE NHS FOUNDATION TRUST","Community Healthcare Other"]
[null,null,null,null,null,null,null,null,null,null,null,null,null,null,null,null,null,null,null,"QPM","RP1","NORTHAMPTONSHIRE HEALTHCARE NHS FOUNDATION TRUST","Community Inpatient Services"]
[null,null,null,null,null,null,null,null,null,null,null,null,null,null,null,null,null,null,null,"QPM","RP1","NORTHAMPTONSHIRE HEALTHCARE NHS FOUNDATION TRUST","Community Nursing Services"]
[null,null,null,null,null,null,null,null,null,null,null,null,null,null,null,null,null,null,null,"QPM","RP1","NORTHAMPTONSHIRE HEALTHCARE NHS FOUNDATION TRUST","Rehabilitation & Therapy Services"]
[null,null,null,null,null,null,null,null,null,null,null,null,null,null,null,null,null,null,null,"QPM","RP1","NORTHAMPTONSHIRE HEALTHCARE NHS FOUNDATION TRUST","Specialist Services"]
[null,null,null,null,null,null,null,null,null,null,null,null,null,null,null,null,null,null,null,"QR1","RTQ","GLOUCESTERSHIRE HEALTH AND CARE NHS FOUNDATION TRUST","Children & Family Services"]
[null,null,null,null,null,null,null,null,null,null,null,null,null,null,null,null,null,null,null,"QR1","RTQ","GLOUCESTERSHIRE HEALTH AND CARE NHS FOUNDATION TRUST","Community Healthcare Other"]
[null,null,null,null,null,null,null,null,null,null,null,null,null,null,null,null,null,null,null,"QR1","RTQ","GLOUCESTERSHIRE HEALTH AND CARE NHS FOUNDATION TRUST","Community Inpatient Services"]
[null,null,null,null,null,null,null,null,null,null,null,null,null,null,null,null,null,null,null,"QR1","RTQ","GLOUCESTERSHIRE HEALTH AND CARE NHS FOUNDATION TRUST","Community Nursing Services"]
[null,null,null,null,null,null,null,null,null,null,null,null,null,null,null,null,null,null,null,"QR1","RTQ","GLOUCESTERSHIRE HEALTH AND CARE NHS FOUNDATION TRUST","Rehabilitation & Therapy Services"]
[null,null,null,null,null,null,null,null,null,null,null,null,null,null,null,null,null,null,null,"QR1","RTQ","GLOUCESTERSHIRE HEALTH AND CARE NHS FOUNDATION TRUST","Specialist Services"]
[null,null,null,null,null,null,null,null,null,null,null,null,null,null,null,null,null,null,null,"QRL","R1F","ISLE OF WIGHT NHS TRUST","Children & Family Services"]
[null,null,null,null,null,null,null,null,null,null,null,null,null,null,null,null,null,null,null,"QRL","R1F","ISLE OF WIGHT NHS TRUST","Community Healthcare Other"]
[null,null,null,null,null,null,null,null,null,null,null,null,null,null,null,null,null,null,null,"QRL","R1F","ISLE OF WIGHT NHS TRUST","Community Inpatient Services"]
[null,null,null,null,null,null,null,null,null,null,null,null,null,null,null,null,null,null,null,"QRL","R1F","ISLE OF WIGHT NHS TRUST","Community Nursing Services"]
[null,null,null,null,null,null,null,null,null,null,null,null,null,null,null,null,null,null,null,"QRL","R1F","ISLE OF WIGHT NHS TRUST","Rehabilitation & Therapy Services"]
[null,null,null,null,null,null,null,null,null,null,null,null,null,null,null,null,null,null,null,"QRL","R1F","ISLE OF WIGHT NHS TRUST","Specialist Services"]
[null,null,null,null,null,null,null,null,null,null,null,null,null,null,null,null,null,null,null,"QRL","R1C","SOLENT NHS TRUST","Children & Family Services"]
[null,null,null,null,null,null,null,null,null,null,null,null,null,null,null,null,null,null,null,"QRL","R1C","SOLENT NHS TRUST","Community Healthcare Other"]
[null,null,null,null,null,null,null,null,null,null,null,null,null,null,null,null,null,null,null,"QRL","R1C","SOLENT NHS TRUST","Community Inpatient Services"]
[null,null,null,null,null,null,null,null,null,null,null,null,null,null,null,null,null,null,null,"QRL","R1C","SOLENT NHS TRUST","Community Nursing Services"]
[null,null,null,null,null,null,null,null,null,null,null,null,null,null,null,null,null,null,null,"QRL","R1C","SOLENT NHS TRUST","Rehabilitation & Therapy Services"]
[null,null,null,null,null,null,null,null,null,null,null,null,null,null,null,null,null,null,null,"QRL","R1C","SOLENT NHS TRUST","Specialist Services"]
[null,null,null,null,null,null,null,null,null,null,null,null,null,null,null,null,null,null,null,"QRL","RW1","SOUTHERN HEALTH NHS FOUNDATION TRUST","Children & Family Services"]
[null,null,null,null,null,null,null,null,null,null,null,null,null,null,null,null,null,null,null,"QRL","RW1","SOUTHERN HEALTH NHS FOUNDATION TRUST","Community Healthcare Other"]
[null,null,null,null,null,null,null,null,null,null,null,null,null,null,null,null,null,null,null,"QRL","RW1","SOUTHERN HEALTH NHS FOUNDATION TRUST","Community Inpatient Services"]
[null,null,null,null,null,null,null,null,null,null,null,null,null,null,null,null,null,null,null,"QRL","RW1","SOUTHERN HEALTH NHS FOUNDATION TRUST","Community Nursing Services"]
[null,null,null,null,null,null,null,null,null,null,null,null,null,null,null,null,null,null,null,"QRL","RW1","SOUTHERN HEALTH NHS FOUNDATION TRUST","Rehabilitation & Therapy Services"]
[null,null,null,null,null,null,null,null,null,null,null,null,null,null,null,null,null,null,null,"QRV","RYX","CENTRAL LONDON COMMUNITY HEALTHCARE NHS TRUST","Children & Family Services"]
[null,null,null,null,null,null,null,null,null,null,null,null,null,null,null,null,null,null,null,"QRV","RYX","CENTRAL LONDON COMMUNITY HEALTHCARE NHS TRUST","Community Healthcare Other"]
[null,null,null,null,null,null,null,null,null,null,null,null,null,null,null,null,null,null,null,"QRV","RYX","CENTRAL LONDON COMMUNITY HEALTHCARE NHS TRUST","Community Inpatient Services"]
[null,null,null,null,null,null,null,null,null,null,null,null,null,null,null,null,null,null,null,"QRV","RYX","CENTRAL LONDON COMMUNITY HEALTHCARE NHS TRUST","Community Nursing Services"]
[null,null,null,null,null,null,null,null,null,null,null,null,null,null,null,null,null,null,null,"QRV","RYX","CENTRAL LONDON COMMUNITY HEALTHCARE NHS TRUST","Rehabilitation & Therapy Services"]
[null,null,null,null,null,null,null,null,null,null,null,null,null,null,null,null,null,null,null,"QRV","RYX","CENTRAL LONDON COMMUNITY HEALTHCARE NHS TRUST","Specialist Services"]
[null,null,null,null,null,null,null,null,null,null,null,null,null,null,null,null,null,null,null,"QRV","RQM","CHELSEA AND WESTMINSTER HOSPITAL NHS FOUNDATION TRUST","Specialist Services"]
[null,null,null,null,null,null,null,null,null,null,null,null,null,null,null,null,null,null,null,"QRV","R1K","LONDON NORTH WEST UNIVERSITY HEALTHCARE NHS TRUST","Specialist Services"]
[null,null,null,null,null,null,null,null,null,null,null,null,null,null,null,null,null,null,null,"QRV","RKL","WEST LONDON NHS TRUST","Children & Family Services"]
[null,null,null,null,null,null,null,null,null,null,null,null,null,null,null,null,null,null,null,"QRV","RKL","WEST LONDON NHS TRUST","Community Inpatient Services"]
[null,null,null,null,null,null,null,null,null,null,null,null,null,null,null,null,null,null,null,"QRV","RKL","WEST LONDON NHS TRUST","Rehabilitation & Therapy Services"]
[null,null,null,null,null,null,null,null,null,null,null,null,null,null,null,null,null,null,null,"QRV","RKL","WEST LONDON NHS TRUST","Specialist Services"]
[null,null,null,null,null,null,null,null,null,null,null,null,null,null,null,null,null,null,null,"QSL","RH5","SOMERSET NHS FOUNDATION TRUST","Specialist Services"]
[null,null,null,null,null,null,null,null,null,null,null,null,null,null,null,null,null,null,null,"QT1","RHA","NOTTINGHAMSHIRE HEALTHCARE NHS FOUNDATION TRUST","Children & Family Services"]
[null,null,null,null,null,null,null,null,null,null,null,null,null,null,null,null,null,null,null,"QT1","RHA","NOTTINGHAMSHIRE HEALTHCARE NHS FOUNDATION TRUST","Community Healthcare Other"]
[null,null,null,null,null,null,null,null,null,null,null,null,null,null,null,null,null,null,null,"QT1","RHA","NOTTINGHAMSHIRE HEALTHCARE NHS FOUNDATION TRUST","Community Nursing Services"]
[null,null,null,null,null,null,null,null,null,null,null,null,null,null,null,null,null,null,null,"QT1","RHA","NOTTINGHAMSHIRE HEALTHCARE NHS FOUNDATION TRUST","Specialist Services"]
[null,null,null,null,null,null,null,null,null,null,null,null,null,null,null,null,null,null,null,"QT6","RJ8","CORNWALL PARTNERSHIP NHS FOUNDATION TRUST","Children & Family Services"]
[null,null,null,null,null,null,null,null,null,null,null,null,null,null,null,null,null,null,null,"QT6","RJ8","CORNWALL PARTNERSHIP NHS FOUNDATION TRUST","Community Healthcare Other"]
[null,null,null,null,null,null,null,null,null,null,null,null,null,null,null,null,null,null,null,"QT6","RJ8","CORNWALL PARTNERSHIP NHS FOUNDATION TRUST","Community Inpatient Services"]
[null,null,null,null,null,null,null,null,null,null,null,null,null,null,null,null,null,null,null,"QT6","RJ8","CORNWALL PARTNERSHIP NHS FOUNDATION TRUST","Community Nursing Services"]
[null,null,null,null,null,null,null,null,null,null,null,null,null,null,null,null,null,null,null,"QT6","RJ8","CORNWALL PARTNERSHIP NHS FOUNDATION TRUST","Rehabilitation & Therapy Services"]
[null,null,null,null,null,null,null,null,null,null,null,null,null,null,null,null,null,null,null,"QT6","RJ8","CORNWALL PARTNERSHIP NHS FOUNDATION TRUST","Specialist Services"]
[null,null,null,null,null,null,null,null,null,null,null,null,null,null,null,null,null,null,null,"QU9","RXQ","BUCKINGHAMSHIRE HEALTHCARE NHS TRUST","Children & Family Services"]
[null,null,null,null,null,null,null,null,null,null,null,null,null,null,null,null,null,null,null,"QU9","RXQ","BUCKINGHAMSHIRE HEALTHCARE NHS TRUST","Community Healthcare Other"]
[null,null,null,null,null,null,null,null,null,null,null,null,null,null,null,null,null,null,null,"QU9","RXQ","BUCKINGHAMSHIRE HEALTHCARE NHS TRUST","Community Inpatient Services"]
[null,null,null,null,null,null,null,null,null,null,null,null,null,null,null,null,null,null,null,"QU9","RXQ","BUCKINGHAMSHIRE HEALTHCARE NHS TRUST","Community Nursing Services"]
[null,null,null,null,null,null,null,null,null,null,null,null,null,null,null,null,null,null,null,"QU9","RXQ","BUCKINGHAMSHIRE HEALTHCARE NHS TRUST","Rehabilitation & Therapy Services"]
[null,null,null,null,null,null,null,null,null,null,null,null,null,null,null,null,null,null,null,"QU9","RXQ","BUCKINGHAMSHIRE HEALTHCARE NHS TRUST","Specialist Services"]
[null,null,null,null,null,null,null,null,null,null,null,null,null,null,null,null,null,null,null,"QU9","RNU","OXFORD HEALTH NHS FOUNDATION TRUST","Children & Family Services"]
[null,null,null,null,null,null,null,null,null,null,null,null,null,null,null,null,null,null,null,"QU9","RNU","OXFORD HEALTH NHS FOUNDATION TRUST","Community Healthcare Other"]
[null,null,null,null,null,null,null,null,null,null,null,null,null,null,null,null,null,null,null,"QU9","RNU","OXFORD HEALTH NHS FOUNDATION TRUST","Community Inpatient Services"]
[null,null,null,null,null,null,null,null,null,null,null,null,null,null,null,null,null,null,null,"QU9","RNU","OXFORD HEALTH NHS FOUNDATION TRUST","Community Nursing Services"]
[null,null,null,null,null,null,null,null,null,null,null,null,null,null,null,null,null,null,null,"QU9","RNU","OXFORD HEALTH NHS FOUNDATION TRUST","Rehabilitation & Therapy Services"]
[null,null,null,null,null,null,null,null,null,null,null,null,null,null,null,null,null,null,null,"QU9","RNU","OXFORD HEALTH NHS FOUNDATION TRUST","Specialist Services"]
[null,null,null,null,null,null,null,null,null,null,null,null,null,null,null,null,null,null,null,"QUA","TAJ","BLACK COUNTRY HEALTHCARE NHS FOUNDATION TRUST","Community Healthcare Other"]
[null,null,null,null,null,null,null,null,null,null,null,null,null,null,null,null,null,null,null,"QUA","RNA","THE DUDLEY GROUP NHS FOUNDATION TRUST","Community Nursing Services"]
[null,null,null,null,null,null,null,null,null,null,null,null,null,null,null,null,null,null,null,"QUA","RNA","THE DUDLEY GROUP NHS FOUNDATION TRUST","Rehabilitation & Therapy Services"]
[null,null,null,null,null,null,null,null,null,null,null,null,null,null,null,null,null,null,null,"QUA","RNA","THE DUDLEY GROUP NHS FOUNDATION TRUST","Specialist Services"]
[null,null,null,null,null,null,null,null,null,null,null,null,null,null,null,null,null,null,null,"QUA","RL4","THE ROYAL WOLVERHAMPTON NHS TRUST","Community Healthcare Other"]
[null,null,null,null,null,null,null,null,null,null,null,null,null,null,null,null,null,null,null,"QUA","RBK","WALSALL HEALTHCARE NHS TRUST","Community Healthcare Other"]
[null,null,null,null,null,null,null,null,null,null,null,null,null,null,null,null,null,null,null,"QUE","RT1","CAMBRIDGESHIRE AND PETERBOROUGH NHS FOUNDATION TRUST","Children & Family Services"]
[null,null,null,null,null,null,null,null,null,null,null,null,null,null,null,null,null,null,null,"QUE","RT1","CAMBRIDGESHIRE AND PETERBOROUGH NHS FOUNDATION TRUST","Community Healthcare Other"]
[null,null,null,null,null,null,null,null,null,null,null,null,null,null,null,null,null,null,null,"QUE","RT1","CAMBRIDGESHIRE AND PETERBOROUGH NHS FOUNDATION TRUST","Community Inpatient Services"]
[null,null,null,null,null,null,null,null,null,null,null,null,null,null,null,null,null,null,null,"QUE","RT1","CAMBRIDGESHIRE AND PETERBOROUGH NHS FOUNDATION TRUST","Community Nursing Services"]
[null,null,null,null,null,null,null,null,null,null,null,null,null,null,null,null,null,null,null,"QUE","RT1","CAMBRIDGESHIRE AND PETERBOROUGH NHS FOUNDATION TRUST","Rehabilitation & Therapy Services"]
[null,null,null,null,null,null,null,null,null,null,null,null,null,null,null,null,null,null,null,"QUE","RT1","CAMBRIDGESHIRE AND PETERBOROUGH NHS FOUNDATION TRUST","Specialist Services"]
[null,null,null,null,null,null,null,null,null,null,null,null,null,null,null,null,null,null,null,"QUE","RYV","CAMBRIDGESHIRE COMMUNITY SERVICES NHS TRUST","Children & Family Services"]
[null,null,null,null,null,null,null,null,null,null,null,null,null,null,null,null,null,null,null,"QUE","RYV","CAMBRIDGESHIRE COMMUNITY SERVICES NHS TRUST","Community Healthcare Other"]
[null,null,null,null,null,null,null,null,null,null,null,null,null,null,null,null,null,null,null,"QUE","RYV","CAMBRIDGESHIRE COMMUNITY SERVICES NHS TRUST","Community Nursing Services"]
[null,null,null,null,null,null,null,null,null,null,null,null,null,null,null,null,null,null,null,"QUE","RYV","CAMBRIDGESHIRE COMMUNITY SERVICES NHS TRUST","Rehabilitation & Therapy Services"]
[null,null,null,null,null,null,null,null,null,null,null,null,null,null,null,null,null,null,null,"QUE","RYV","CAMBRIDGESHIRE COMMUNITY SERVICES NHS TRUST","Specialist Services"]
[null,null,null,null,null,null,null,null,null,null,null,null,null,null,null,null,null,null,null,"QVV","RDY","DORSET HEALTHCARE UNIVERSITY NHS FOUNDATION TRUST","Children & Family Services"]
[null,null,null,null,null,null,null,null,null,null,null,null,null,null,null,null,null,null,null,"QVV","RDY","DORSET HEALTHCARE UNIVERSITY NHS FOUNDATION TRUST","Community Healthcare Other"]
[null,null,null,null,null,null,null,null,null,null,null,null,null,null,null,null,null,null,null,"QVV","RDY","DORSET HEALTHCARE UNIVERSITY NHS FOUNDATION TRUST","Community Inpatient Services"]
[null,null,null,null,null,null,null,null,null,null,null,null,null,null,null,null,null,null,null,"QVV","RDY","DORSET HEALTHCARE UNIVERSITY NHS FOUNDATION TRUST","Community Nursing Services"]
[null,null,null,null,null,null,null,null,null,null,null,null,null,null,null,null,null,null,null,"QVV","RDY","DORSET HEALTHCARE UNIVERSITY NHS FOUNDATION TRUST","Rehabilitation & Therapy Services"]
[null,null,null,null,null,null,null,null,null,null,null,null,null,null,null,null,null,null,null,"QVV","RDY","DORSET HEALTHCARE UNIVERSITY NHS FOUNDATION TRUST","Specialist Services"]
[null,null,null,null,null,null,null,null,null,null,null,null,null,null,null,null,null,null,null,"QWE","RJ6","CROYDON HEALTH SERVICES NHS TRUST","Children & Family Services"]
[null,null,null,null,null,null,null,null,null,null,null,null,null,null,null,null,null,null,null,"QWE","RJ6","CROYDON HEALTH SERVICES NHS TRUST","Community Nursing Services"]
[null,null,null,null,null,null,null,null,null,null,null,null,null,null,null,null,null,null,null,"QWE","RJ6","CROYDON HEALTH SERVICES NHS TRUST","Rehabilitation & Therapy Services"]
[null,null,null,null,null,null,null,null,null,null,null,null,null,null,null,null,null,null,null,"QWE","RJ6","CROYDON HEALTH SERVICES NHS TRUST","Specialist Services"]
[null,null,null,null,null,null,null,null,null,null,null,null,null,null,null,null,null,null,null,"QWE","RVR","EPSOM AND ST HELIER UNIVERSITY HOSPITALS NHS TRUST","Children & Family Services"]
[null,null,null,null,null,null,null,null,null,null,null,null,null,null,null,null,null,null,null,"QWE","RVR","EPSOM AND ST HELIER UNIVERSITY HOSPITALS NHS TRUST","Community Healthcare Other"]
[null,null,null,null,null,null,null,null,null,null,null,null,null,null,null,null,null,null,null,"QWE","RVR","EPSOM AND ST HELIER UNIVERSITY HOSPITALS NHS TRUST","Community Inpatient Services"]
[null,null,null,null,null,null,null,null,null,null,null,null,null,null,null,null,null,null,null,"QWE","RVR","EPSOM AND ST HELIER UNIVERSITY HOSPITALS NHS TRUST","Community Nursing Services"]
[null,null,null,null,null,null,null,null,null,null,null,null,null,null,null,null,null,null,null,"QWE","RVR","EPSOM AND ST HELIER UNIVERSITY HOSPITALS NHS TRUST","Rehabilitation & Therapy Services"]
[null,null,null,null,null,null,null,null,null,null,null,null,null,null,null,null,null,null,null,"QWE","RVR","EPSOM AND ST HELIER UNIVERSITY HOSPITALS NHS TRUST","Specialist Services"]
[null,null,null,null,null,null,null,null,null,null,null,null,null,null,null,null,null,null,null,"QWE","RY9","HOUNSLOW AND RICHMOND COMMUNITY HEALTHCARE NHS TRUST","Children & Family Services"]
[null,null,null,null,null,null,null,null,null,null,null,null,null,null,null,null,null,null,null,"QWE","RY9","HOUNSLOW AND RICHMOND COMMUNITY HEALTHCARE NHS TRUST","Community Healthcare Other"]
[null,null,null,null,null,null,null,null,null,null,null,null,null,null,null,null,null,null,null,"QWE","RY9","HOUNSLOW AND RICHMOND COMMUNITY HEALTHCARE NHS TRUST","Community Inpatient Services"]
[null,null,null,null,null,null,null,null,null,null,null,null,null,null,null,null,null,null,null,"QWE","RY9","HOUNSLOW AND RICHMOND COMMUNITY HEALTHCARE NHS TRUST","Community Nursing Services"]
[null,null,null,null,null,null,null,null,null,null,null,null,null,null,null,null,null,null,null,"QWE","RY9","HOUNSLOW AND RICHMOND COMMUNITY HEALTHCARE NHS TRUST","Rehabilitation & Therapy Services"]
[null,null,null,null,null,null,null,null,null,null,null,null,null,null,null,null,null,null,null,"QWE","RY9","HOUNSLOW AND RICHMOND COMMUNITY HEALTHCARE NHS TRUST","Specialist Services"]
[null,null,null,null,null,null,null,null,null,null,null,null,null,null,null,null,null,null,null,"QWE","RJ7","ST GEORGE'S UNIVERSITY HOSPITALS NHS FOUNDATION TRUST","Rehabilitation & Therapy Services"]
[null,null,null,null,null,null,null,null,null,null,null,null,null,null,null,null,null,null,null,"QWO","RCF","AIREDALE NHS FOUNDATION TRUST","Community Healthcare Other"]
[null,null,null,null,null,null,null,null,null,null,null,null,null,null,null,null,null,null,null,"QWO","TAD","BRADFORD DISTRICT CARE NHS FOUNDATION TRUST","Children & Family Services"]
[null,null,null,null,null,null,null,null,null,null,null,null,null,null,null,null,null,null,null,"QWO","TAD","BRADFORD DISTRICT CARE NHS FOUNDATION TRUST","Community Healthcare Other"]
[null,null,null,null,null,null,null,null,null,null,null,null,null,null,null,null,null,null,null,"QWO","TAD","BRADFORD DISTRICT CARE NHS FOUNDATION TRUST","Community Nursing Services"]
[null,null,null,null,null,null,null,null,null,null,null,null,null,null,null,null,null,null,null,"QWO","TAD","BRADFORD DISTRICT CARE NHS FOUNDATION TRUST","Rehabilitation & Therapy Services"]
[null,null,null,null,null,null,null,null,null,null,null,null,null,null,null,null,null,null,null,"QWO","TAD","BRADFORD DISTRICT CARE NHS FOUNDATION TRUST","Specialist Services"]
[null,null,null,null,null,null,null,null,null,null,null,null,null,null,null,null,null,null,null,"QWO","RWY","CALDERDALE AND HUDDERSFIELD NHS FOUNDATION TRUST","Community Nursing Services"]
[null,null,null,null,null,null,null,null,null,null,null,null,null,null,null,null,null,null,null,"QWO","RWY","CALDERDALE AND HUDDERSFIELD NHS FOUNDATION TRUST","Rehabilitation & Therapy Services"]
[null,null,null,null,null,null,null,null,null,null,null,null,null,null,null,null,null,null,null,"QWO","RWY","CALDERDALE AND HUDDERSFIELD NHS FOUNDATION TRUST","Specialist Services"]
[null,null,null,null,null,null,null,null,null,null,null,null,null,null,null,null,null,null,null,"QWO","RY6","LEEDS COMMUNITY HEALTHCARE NHS TRUST","Children & Family Services"]
[null,null,null,null,null,null,null,null,null,null,null,null,null,null,null,null,null,null,null,"QWO","RY6","LEEDS COMMUNITY HEALTHCARE NHS TRUST","Community Inpatient Services"]
[null,null,null,null,null,null,null,null,null,null,null,null,null,null,null,null,null,null,null,"QWO","RY6","LEEDS COMMUNITY HEALTHCARE NHS TRUST","Community Nursing Services"]
[null,null,null,null,null,null,null,null,null,null,null,null,null,null,null,null,null,null,null,"QWO","RY6","LEEDS COMMUNITY HEALTHCARE NHS TRUST","Specialist Services"]
[null,null,null,null,null,null,null,null,null,null,null,null,null,null,null,null,null,null,null,"QWO","RXF","MID YORKSHIRE HOSPITALS NHS TRUST","Children & Family Services"]
[null,null,null,null,null,null,null,null,null,null,null,null,null,null,null,null,null,null,null,"QWO","RXF","MID YORKSHIRE HOSPITALS NHS TRUST","Community Nursing Services"]
[null,null,null,null,null,null,null,null,null,null,null,null,null,null,null,null,null,null,null,"QWO","RXF","MID YORKSHIRE HOSPITALS NHS TRUST","Rehabilitation & Therapy Services"]
[null,null,null,null,null,null,null,null,null,null,null,null,null,null,null,null,null,null,null,"QWO","RXF","MID YORKSHIRE HOSPITALS NHS TRUST","Specialist Services"]
[null,null,null,null,null,null,null,null,null,null,null,null,null,null,null,null,null,null,null,"QWO","RXG","SOUTH WEST YORKSHIRE PARTNERSHIP NHS FOUNDATION TRUST","Children & Family Services"]
[null,null,null,null,null,null,null,null,null,null,null,null,null,null,null,null,null,null,null,"QWO","RXG","SOUTH WEST YORKSHIRE PARTNERSHIP NHS FOUNDATION TRUST","Community Nursing Services"]
[null,null,null,null,null,null,null,null,null,null,null,null,null,null,null,null,null,null,null,"QWO","RXG","SOUTH WEST YORKSHIRE PARTNERSHIP NHS FOUNDATION TRUST","Rehabilitation & Therapy Services"]
[null,null,null,null,null,null,null,null,null,null,null,null,null,null,null,null,null,null,null,"QWO","RXG","SOUTH WEST YORKSHIRE PARTNERSHIP NHS FOUNDATION TRUST","Specialist Services"]
[null,null,null,null,null,null,null,null,null,null,null,null,null,null,null,null,null,null,null,"QWU","RJC","SOUTH WARWICKSHIRE NHS FOUNDATION TRUST","Children & Family Services"]
[null,null,null,null,null,null,null,null,null,null,null,null,null,null,null,null,null,null,null,"QWU","RJC","SOUTH WARWICKSHIRE NHS FOUNDATION TRUST","Community Healthcare Other"]
[null,null,null,null,null,null,null,null,null,null,null,null,null,null,null,null,null,null,null,"QWU","RJC","SOUTH WARWICKSHIRE NHS FOUNDATION TRUST","Community Nursing Services"]
[null,null,null,null,null,null,null,null,null,null,null,null,null,null,null,null,null,null,null,"QWU","RJC","SOUTH WARWICKSHIRE NHS FOUNDATION TRUST","Rehabilitation & Therapy Services"]
[null,null,null,null,null,null,null,null,null,null,null,null,null,null,null,null,null,null,null,"QWU","RJC","SOUTH WARWICKSHIRE NHS FOUNDATION TRUST","Specialist Services"]
[null,null,null,null,null,null,null,null,null,null,null,null,null,null,null,null,null,null,null,"QXU","RA2","ROYAL SURREY COUNTY HOSPITAL NHS FOUNDATION TRUST","Community Inpatient Services"]
[null,null,null,null,null,null,null,null,null,null,null,null,null,null,null,null,null,null,null,"QXU","RA2","ROYAL SURREY COUNTY HOSPITAL NHS FOUNDATION TRUST","Rehabilitation & Therapy Services"]
[null,null,null,null,null,null,null,null,null,null,null,null,null,null,null,null,null,null,null,"QYG","RBS","ALDER HEY CHILDREN'S NHS FOUNDATION TRUST","Children & Family Services"]
[null,null,null,null,null,null,null,null,null,null,null,null,null,null,null,null,null,null,null,"QYG","RY2","BRIDGEWATER COMMUNITY HEALTHCARE NHS FOUNDATION TRUST","Children & Family Services"]
[null,null,null,null,null,null,null,null,null,null,null,null,null,null,null,null,null,null,null,"QYG","RY2","BRIDGEWATER COMMUNITY HEALTHCARE NHS FOUNDATION TRUST","Community Healthcare Other"]
[null,null,null,null,null,null,null,null,null,null,null,null,null,null,null,null,null,null,null,"QYG","RY2","BRIDGEWATER COMMUNITY HEALTHCARE NHS FOUNDATION TRUST","Community Nursing Services"]
[null,null,null,null,null,null,null,null,null,null,null,null,null,null,null,null,null,null,null,"QYG","RY2","BRIDGEWATER COMMUNITY HEALTHCARE NHS FOUNDATION TRUST","Rehabilitation & Therapy Services"]
[null,null,null,null,null,null,null,null,null,null,null,null,null,null,null,null,null,null,null,"QYG","RY2","BRIDGEWATER COMMUNITY HEALTHCARE NHS FOUNDATION TRUST","Specialist Services"]
[null,null,null,null,null,null,null,null,null,null,null,null,null,null,null,null,null,null,null,"QYG","RXA","CHESHIRE AND WIRRAL PARTNERSHIP NHS FOUNDATION TRUST","Children & Family Services"]
[null,null,null,null,null,null,null,null,null,null,null,null,null,null,null,null,null,null,null,"QYG","RXA","CHESHIRE AND WIRRAL PARTNERSHIP NHS FOUNDATION TRUST","Community Nursing Services"]
[null,null,null,null,null,null,null,null,null,null,null,null,null,null,null,null,null,null,null,"QYG","RXA","CHESHIRE AND WIRRAL PARTNERSHIP NHS FOUNDATION TRUST","Rehabilitation & Therapy Services"]
[null,null,null,null,null,null,null,null,null,null,null,null,null,null,null,null,null,null,null,"QYG","RJN","EAST CHESHIRE NHS TRUST","Children & Family Services"]
[null,null,null,null,null,null,null,null,null,null,null,null,null,null,null,null,null,null,null,"QYG","RJN","EAST CHESHIRE NHS TRUST","Community Nursing Services"]
[null,null,null,null,null,null,null,null,null,null,null,null,null,null,null,null,null,null,null,"QYG","RJN","EAST CHESHIRE NHS TRUST","Rehabilitation & Therapy Services"]
[null,null,null,null,null,null,null,null,null,null,null,null,null,null,null,null,null,null,null,"QYG","RJN","EAST CHESHIRE NHS TRUST","Specialist Services"]
[null,null,null,null,null,null,null,null,null,null,null,null,null,null,null,null,null,null,null,"QYG","RW4","MERSEY CARE NHS FOUNDATION TRUST","Children & Family Services"]
[null,null,null,null,null,null,null,null,null,null,null,null,null,null,null,null,null,null,null,"QYG","RW4","MERSEY CARE NHS FOUNDATION TRUST","Community Nursing Services"]
[null,null,null,null,null,null,null,null,null,null,null,null,null,null,null,null,null,null,null,"QYG","RW4","MERSEY CARE NHS FOUNDATION TRUST","Rehabilitation & Therapy Services"]
[null,null,null,null,null,null,null,null,null,null,null,null,null,null,null,null,null,null,null,"QYG","RW4","MERSEY CARE NHS FOUNDATION TRUST","Specialist Services"]
[null,null,null,null,null,null,null,null,null,null,null,null,null,null,null,null,null,null,null,"QYG","RBT","MID CHESHIRE HOSPITALS NHS FOUNDATION TRUST","Children & Family Services"]
[null,null,null,null,null,null,null,null,null,null,null,null,null,null,null,null,null,null,null,"QYG","RBT","MID CHESHIRE HOSPITALS NHS FOUNDATION TRUST","Community Healthcare Other"]
[null,null,null,null,null,null,null,null,null,null,null,null,null,null,null,null,null,null,null,"QYG","RBT","MID CHESHIRE HOSPITALS NHS FOUNDATION TRUST","Community Nursing Services"]
[null,null,null,null,null,null,null,null,null,null,null,null,null,null,null,null,null,null,null,"QYG","RBT","MID CHESHIRE HOSPITALS NHS FOUNDATION TRUST","Rehabilitation & Therapy Services"]
[null,null,null,null,null,null,null,null,null,null,null,null,null,null,null,null,null,null,null,"QYG","RVY","SOUTHPORT AND ORMSKIRK HOSPITAL NHS TRUST","Specialist Services"]
[null,null,null,null,null,null,null,null,null,null,null,null,null,null,null,null,null,null,null,"QYG","RY7","WIRRAL COMMUNITY HEALTH AND CARE NHS FOUNDATION TRUST","Children & Family Services"]
[null,null,null,null,null,null,null,null,null,null,null,null,null,null,null,null,null,null,null,"QYG","RY7","WIRRAL COMMUNITY HEALTH AND CARE NHS FOUNDATION TRUST","Community Healthcare Other"]
[null,null,null,null,null,null,null,null,null,null,null,null,null,null,null,null,null,null,null,"QYG","RY7","WIRRAL COMMUNITY HEALTH AND CARE NHS FOUNDATION TRUST","Community Inpatient Services"]
[null,null,null,null,null,null,null,null,null,null,null,null,null,null,null,null,null,null,null,"QYG","RY7","WIRRAL COMMUNITY HEALTH AND CARE NHS FOUNDATION TRUST","Community Nursing Services"]
[null,null,null,null,null,null,null,null,null,null,null,null,null,null,null,null,null,null,null,"QYG","RY7","WIRRAL COMMUNITY HEALTH AND CARE NHS FOUNDATION TRUST","Rehabilitation & Therapy Services"]
[null,null,null,null,null,null,null,null,null,null,null,null,null,null,null,null,null,null,null,"QYG","RY7","WIRRAL COMMUNITY HEALTH AND CARE NHS FOUNDATION TRUST","Specialist Services"]
[null,null,null,null,null,null,null,null,null,null,null,null,null,null,null,null,null,null,null,"IS1","NEC","ALLIED HEALTH PROFESSIONALS SUFFOLK CIC","Rehabilitation & Therapy Services"]
[null,null,null,null,null,null,null,null,null,null,null,null,null,null,null,null,null,null,null,"IS1","8J094","BADGER LTD","Community Healthcare Other"]
[null,null,null,null,null,null,null,null,null,null,null,null,null,null,null,null,null,null,null,"IS1","DVG","BARDOC","Community Healthcare Other"]
[null,null,null,null,null,null,null,null,null,null,null,null,null,null,null,null,null,null,null,"IS1","NQV","BROMLEY HEALTHCARE","Children & Family Services"]
[null,null,null,null,null,null,null,null,null,null,null,null,null,null,null,null,null,null,null,"IS1","NQV","BROMLEY HEALTHCARE","Community Nursing Services"]
[null,null,null,null,null,null,null,null,null,null,null,null,null,null,null,null,null,null,null,"IS1","NQV","BROMLEY HEALTHCARE","Rehabilitation & Therapy Services"]
[null,null,null,null,null,null,null,null,null,null,null,null,null,null,null,null,null,null,null,"IS1","NQV","BROMLEY HEALTHCARE","Specialist Services"]
[null,null,null,null,null,null,null,null,null,null,null,null,null,null,null,null,null,null,null,"IS1","NL3","CARE PLUS GROUP","Community Nursing Services"]
[null,null,null,null,null,null,null,null,null,null,null,null,null,null,null,null,null,null,null,"IS1","NL3","CARE PLUS GROUP","Specialist Services"]
[null,null,null,null,null,null,null,null,null,null,null,null,null,null,null,null,null,null,null,"IS1","Q8V5K","CITIZENS ADVICE STOCKPORT, OLDHAM, ROCHDALE","Community Healthcare Other"]
[null,null,null,null,null,null,null,null,null,null,null,null,null,null,null,null,null,null,null,"IS1","NNF","CITY HEALTH CARE PARTNERSHIP CIC","Children & Family Services"]
[null,null,null,null,null,null,null,null,null,null,null,null,null,null,null,null,null,null,null,"IS1","NNF","CITY HEALTH CARE PARTNERSHIP CIC","Community Healthcare Other"]
[null,null,null,null,null,null,null,null,null,null,null,null,null,null,null,null,null,null,null,"IS1","NNF","CITY HEALTH CARE PARTNERSHIP CIC","Community Nursing Services"]
[null,null,null,null,null,null,null,null,null,null,null,null,null,null,null,null,null,null,null,"IS1","NNF","CITY HEALTH CARE PARTNERSHIP CIC","Rehabilitation & Therapy Services"]
[null,null,null,null,null,null,null,null,null,null,null,null,null,null,null,null,null,null,null,"IS1","NNF","CITY HEALTH CARE PARTNERSHIP CIC","Specialist Services"]
[null,null,null,null,null,null,null,null,null,null,null,null,null,null,null,null,null,null,null,"IS1","DCF","CLINICAL PARTNERSHIP","Community Healthcare Other"]
[null,null,null,null,null,null,null,null,null,null,null,null,null,null,null,null,null,null,null,"IS1","NMG","CONNECT HEALTH LIMITED","Community Healthcare Other"]
[null,null,null,null,null,null,null,null,null,null,null,null,null,null,null,null,null,null,null,"IS1","NY6","CONNECT HEALTH PAIN SERVICES","Community Healthcare Other"]
[null,null,null,null,null,null,null,null,null,null,null,null,null,null,null,null,null,null,null,"IS1","NY6","CONNECT HEALTH PAIN SERVICES","Specialist Services"]
[null,null,null,null,null,null,null,null,null,null,null,null,null,null,null,null,null,null,null,"IS1","NTV","CSH SURREY","Children & Family Services"]
[null,null,null,null,null,null,null,null,null,null,null,null,null,null,null,null,null,null,null,"IS1","NTV","CSH SURREY","Community Inpatient Services"]
[null,null,null,null,null,null,null,null,null,null,null,null,null,null,null,null,null,null,null,"IS1","8HE44","DR KERSHAWS HOSPICE","Community Healthcare Other"]
[null,null,null,null,null,null,null,null,null,null,null,null,null,null,null,null,null,null,null,"IS1","8HE44","DR KERSHAWS HOSPICE","Community Inpatient Services"]
[null,null,null,null,null,null,null,null,null,null,null,null,null,null,null,null,null,null,null,"IS1","8HE44","DR KERSHAWS HOSPICE","Community Nursing Services"]
[null,null,null,null,null,null,null,null,null,null,null,null,null,null,null,null,null,null,null,"IS1","NAX","EAST COAST COMMUNITY HEALTHCARE C.I.C","Community Healthcare Other"]
[null,null,null,null,null,null,null,null,null,null,null,null,null,null,null,null,null,null,null,"IS1","NAX","EAST COAST COMMUNITY HEALTHCARE C.I.C","Community Inpatient Services"]
[null,null,null,null,null,null,null,null,null,null,null,null,null,null,null,null,null,null,null,"IS1","NAX","EAST COAST COMMUNITY HEALTHCARE C.I.C","Community Nursing Services"]
[null,null,null,null,null,null,null,null,null,null,null,null,null,null,null,null,null,null,null,"IS1","NAX","EAST COAST COMMUNITY HEALTHCARE C.I.C","Rehabilitation & Therapy Services"]
[null,null,null,null,null,null,null,null,null,null,null,null,null,null,null,null,null,null,null,"IS1","NAX","EAST COAST COMMUNITY HEALTHCARE C.I.C","Specialist Services"]
[null,null,null,null,null,null,null,null,null,null,null,null,null,null,null,null,null,null,null,"IS1","DY6","EASTLEIGH SOUTHERN PARISHES NETWORK LTD","Community Healthcare Other"]
[null,null,null,null,null,null,null,null,null,null,null,null,null,null,null,null,null,null,null,"IS1","NDJ","FIRST COMMUNITY HEALTH AND CARE CIC","Children & Family Services"]
[null,null,null,null,null,null,null,null,null,null,null,null,null,null,null,null,null,null,null,"IS1","NDJ","FIRST COMMUNITY HEALTH AND CARE CIC","Community Healthcare Other"]
[null,null,null,null,null,null,null,null,null,null,null,null,null,null,null,null,null,null,null,"IS1","NDJ","FIRST COMMUNITY HEALTH AND CARE CIC","Community Inpatient Services"]
[null,null,null,null,null,null,null,null,null,null,null,null,null,null,null,null,null,null,null,"IS1","NDJ","FIRST COMMUNITY HEALTH AND CARE CIC","Community Nursing Services"]
[null,null,null,null,null,null,null,null,null,null,null,null,null,null,null,null,null,null,null,"IS1","NDJ","FIRST COMMUNITY HEALTH AND CARE CIC","Rehabilitation & Therapy Services"]
[null,null,null,null,null,null,null,null,null,null,null,null,null,null,null,null,null,null,null,"IS1","NDJ","FIRST COMMUNITY HEALTH AND CARE CIC","Specialist Services"]
[null,null,null,null,null,null,null,null,null,null,null,null,null,null,null,null,null,null,null,"IS1","NDK","FRESHNEY PELHAM CARE LIMITED","Community Nursing Services"]
[null,null,null,null,null,null,null,null,null,null,null,null,null,null,null,null,null,null,null,"IS1","NWV01","GP CARE UK","Community Healthcare Other"]
[null,null,null,null,null,null,null,null,null,null,null,null,null,null,null,null,null,null,null,"IS1","NHA","INSIDEVUE LIMITED","Community Inpatient Services"]
[null,null,null,null,null,null,null,null,null,null,null,null,null,null,null,null,null,null,null,"IS1","NLE01","LANCASTER HOUSE CONSULTING DIAGNOSTICS SURGICAL LTD HQ","Community Healthcare Other"]
[null,null,null,null,null,null,null,null,null,null,null,null,null,null,null,null,null,null,null,"IS1","NR5","LIVEWELL SOUTHWEST","Children & Family Services"]
[null,null,null,null,null,null,null,null,null,null,null,null,null,null,null,null,null,null,null,"IS1","NR5","LIVEWELL SOUTHWEST","Community Healthcare Other"]
[null,null,null,null,null,null,null,null,null,null,null,null,null,null,null,null,null,null,null,"IS1","NR5","LIVEWELL SOUTHWEST","Community Nursing Services"]
[null,null,null,null,null,null,null,null,null,null,null,null,null,null,null,null,null,null,null,"IS1","NR5","LIVEWELL SOUTHWEST","Rehabilitation & Therapy Services"]
[null,null,null,null,null,null,null,null,null,null,null,null,null,null,null,null,null,null,null,"IS1","NR5","LIVEWELL SOUTHWEST","Specialist Services"]
[null,null,null,null,null,null,null,null,null,null,null,null,null,null,null,null,null,null,null,"IS1","DAY","LLR PROVIDER COMPANY LTD","Community Healthcare Other"]
[null,null,null,null,null,null,null,null,null,null,null,null,null,null,null,null,null,null,null,"IS1","NL8","LOCALA COMMUNITY PARTNERSHIPS CIC","Children & Family Services"]
[null,null,null,null,null,null,null,null,null,null,null,null,null,null,null,null,null,null,null,"IS1","NL8","LOCALA COMMUNITY PARTNERSHIPS CIC","Community Healthcare Other"]
[null,null,null,null,null,null,null,null,null,null,null,null,null,null,null,null,null,null,null,"IS1","NL8","LOCALA COMMUNITY PARTNERSHIPS CIC","Community Nursing Services"]
[null,null,null,null,null,null,null,null,null,null,null,null,null,null,null,null,null,null,null,"IS1","NL8","LOCALA COMMUNITY PARTNERSHIPS CIC","Rehabilitation & Therapy Services"]
[null,null,null,null,null,null,null,null,null,null,null,null,null,null,null,null,null,null,null,"IS1","NL8","LOCALA COMMUNITY PARTNERSHIPS CIC","Specialist Services"]
[null,null,null,null,null,null,null,null,null,null,null,null,null,null,null,null,null,null,null,"IS1","NCE","MASTERCALL HEALTHCARE","Community Healthcare Other"]
[null,null,null,null,null,null,null,null,null,null,null,null,null,null,null,null,null,null,null,"IS1","NQ7","MEDWAY COMMUNITY HEALTHCARE","Children & Family Services"]
[null,null,null,null,null,null,null,null,null,null,null,null,null,null,null,null,null,null,null,"IS1","NQ7","MEDWAY COMMUNITY HEALTHCARE","Community Healthcare Other"]
[null,null,null,null,null,null,null,null,null,null,null,null,null,null,null,null,null,null,null,"IS1","NQ7","MEDWAY COMMUNITY HEALTHCARE","Community Nursing Services"]
[null,null,null,null,null,null,null,null,null,null,null,null,null,null,null,null,null,null,null,"IS1","NQ7","MEDWAY COMMUNITY HEALTHCARE","Rehabilitation & Therapy Services"]
[null,null,null,null,null,null,null,null,null,null,null,null,null,null,null,null,null,null,null,"IS1","NQ7","MEDWAY COMMUNITY HEALTHCARE","Specialist Services"]
[null,null,null,null,null,null,null,null,null,null,null,null,null,null,null,null,null,null,null,"IS1","ARA","MID HAMPSHIRE HEALTHCARE LIMITED","Community Healthcare Other"]
[null,null,null,null,null,null,null,null,null,null,null,null,null,null,null,null,null,null,null,"IS1","NPH","MILTON KEYNES URGENT CARE SERVICES CIC HQ","Community Healthcare Other"]
[null,null,null,null,null,null,null,null,null,null,null,null,null,null,null,null,null,null,null,"IS1","AT7H","NEIGHBOURHOOD CARE LIMITED","Community Inpatient Services"]
[null,null,null,null,null,null,null,null,null,null,null,null,null,null,null,null,null,null,null,"IS1","NHX","NORTH HAMPSHIRE URGENT CARE","Community Healthcare Other"]
[null,null,null,null,null,null,null,null,null,null,null,null,null,null,null,null,null,null,null,"IS1","NR3","NOTTINGHAM CITYCARE PARTNERSHIP","Children & Family Services"]
[null,null,null,null,null,null,null,null,null,null,null,null,null,null,null,null,null,null,null,"IS1","NR3","NOTTINGHAM CITYCARE PARTNERSHIP","Community Inpatient Services"]
[null,null,null,null,null,null,null,null,null,null,null,null,null,null,null,null,null,null,null,"IS1","NR3","NOTTINGHAM CITYCARE PARTNERSHIP","Rehabilitation & Therapy Services"]
[null,null,null,null,null,null,null,null,null,null,null,null,null,null,null,null,null,null,null,"IS1","NR3","NOTTINGHAM CITYCARE PARTNERSHIP","Specialist Services"]
[null,null,null,null,null,null,null,null,null,null,null,null,null,null,null,null,null,null,null,"IS1","NQH","NOVUS HEALTH LTD","Community Healthcare Other"]
[null,null,null,null,null,null,null,null,null,null,null,null,null,null,null,null,null,null,null,"IS1","NQH","NOVUS HEALTH LTD","Rehabilitation & Therapy Services"]
[null,null,null,null,null,null,null,null,null,null,null,null,null,null,null,null,null,null,null,"IS1","NLF","PENNINE MUSCULOSKELETAL PARTNERSHIP (ICATS)","Community Healthcare Other"]
[null,null,null,null,null,null,null,null,null,null,null,null,null,null,null,null,null,null,null,"IS1","NTP","PRACTICE PLUS GROUP","Community Healthcare Other"]
[null,null,null,null,null,null,null,null,null,null,null,null,null,null,null,null,null,null,null,"IS1","NQA","PROVIDE","Children & Family Services"]
[null,null,null,null,null,null,null,null,null,null,null,null,null,null,null,null,null,null,null,"IS1","NQA","PROVIDE","Community Healthcare Other"]
[null,null,null,null,null,null,null,null,null,null,null,null,null,null,null,null,null,null,null,"IS1","NQA","PROVIDE","Community Inpatient Services"]
[null,null,null,null,null,null,null,null,null,null,null,null,null,null,null,null,null,null,null,"IS1","NQA","PROVIDE","Community Nursing Services"]
[null,null,null,null,null,null,null,null,null,null,null,null,null,null,null,null,null,null,null,"IS1","NQA","PROVIDE","Rehabilitation & Therapy Services"]
[null,null,null,null,null,null,null,null,null,null,null,null,null,null,null,null,null,null,null,"IS1","NQA","PROVIDE","Specialist Services"]
[null,null,null,null,null,null,null,null,null,null,null,null,null,null,null,null,null,null,null,"IS1","NNC","SOLENT MEDICAL SERVICES LIMITED","Community Healthcare Other"]
[null,null,null,null,null,null,null,null,null,null,null,null,null,null,null,null,null,null,null,"IS1","NDL","SUFFOLK GP FEDERATION","Community Healthcare Other"]
[null,null,null,null,null,null,null,null,null,null,null,null,null,null,null,null,null,null,null,"IS1","NYG","SUSSEX COMMUNITY DERMATOLOGY SERVICE","Community Healthcare Other"]
[null,null,null,null,null,null,null,null,null,null,null,null,null,null,null,null,null,null,null,"IS1","NGX","TAURUS HEALTHCARE LTD","Community Healthcare Other"]
[null,null,null,null,null,null,null,null,null,null,null,null,null,null,null,null,null,null,null,"IS1","NN1","THE ROYAL HOSPITAL FOR NEURO-DISABILITY","Community Inpatient Services"]
[null,null,null,null,null,null,null,null,null,null,null,null,null,null,null,null,null,null,null,"IS1","8HN95","THE STROKE ASSOCIATION","Community Healthcare Other"]
[null,null,null,null,null,null,null,null,null,null,null,null,null,null,null,null,null,null,null,"IS1","NQT","VIRGIN CARE LTD","Children & Family Services"]
[null,null,null,null,null,null,null,null,null,null,null,null,null,null,null,null,null,null,null,"IS1","NQT","VIRGIN CARE LTD","Community Healthcare Other"]
[null,null,null,null,null,null,null,null,null,null,null,null,null,null,null,null,null,null,null,"IS1","NQT","VIRGIN CARE LTD","Community Inpatient Services"]
[null,null,null,null,null,null,null,null,null,null,null,null,null,null,null,null,null,null,null,"IS1","NQT","VIRGIN CARE LTD","Community Nursing Services"]
[null,null,null,null,null,null,null,null,null,null,null,null,null,null,null,null,null,null,null,"IS1","NQT","VIRGIN CARE LTD","Rehabilitation & Therapy Services"]
[null,null,null,null,null,null,null,null,null,null,null,null,null,null,null,null,null,null,null,"IS1","NQT","VIRGIN CARE LTD","Specialist Services"]
[null,null,null,null,null,null,null,null,null,null,null,null,null,null,null,null,null,null,null,"IS1","NDA","VIRGIN CARE SERVICES LTD","Community Healthcare Other"]
[null,null,null,null,null,null,null,null,null,null,null,null,null,null,null,null,null,null,null,"IS1","NDA","VIRGIN CARE SERVICES LTD","Community Nursing Services"]
[null,null,null,null,null,null,null,null,null,null,null,null,null,null,null,null,null,null,null,"IS1","NDA","VIRGIN CARE SERVICES LTD","Rehabilitation & Therapy Services"]
[null,null,null,null,null,null,null,null,null,null,null,null,null,null,null,null,null,null,null,"IS1","NDA","VIRGIN CARE SERVICES LTD","Specialist Services"]
[null,null,null,null,null,null,null,null,null,null,null,null,null,null,null,null,null,null,null,"IS1","AXG","WILTSHIRE HEALTH & CARE","Community Healthcare Other"]
[null,null,null,null,null,null,null,null,null,null,null,null,null,null,null,null,null,null,null,"IS1","AXG","WILTSHIRE HEALTH & CARE","Community Inpatient Services"]
[null,null,null,null,null,null,null,null,null,null,null,null,null,null,null,null,null,null,null,"IS1","AXG","WILTSHIRE HEALTH & CARE","Community Nursing Services"]
[null,null,null,null,null,null,null,null,null,null,null,null,null,null,null,null,null,null,null,"IS1","AXG","WILTSHIRE HEALTH & CARE","Rehabilitation & Therapy Services"]
[null,null,null,null,null,null,null,null,null,null,null,null,null,null,null,null,null,null,null,"IS1","AXG","WILTSHIRE HEALTH & CARE","Specialist Services"]
[null,null,null,null,null,null,null,null,null,null,null,null,null,null,null,null,null,null,null,"IS1","NNV","YOUR HEALTHCARE","Children & Family Services"]
[null,null,null,null,null,null,null,null,null,null,null,null,null,null,null,null,null,null,null,"IS1","NNV","YOUR HEALTHCARE","Community Inpatient Services"]
[null,null,null,null,null,null,null,null,null,null,null,null,null,null,null,null,null,null,null,"IS1","NNV","YOUR HEALTHCARE","Rehabilitation & Therapy Services"]
[null,null,null,null,null,null,null,null,null,null,null,null,null,null,null,null,null,null,null,"IS1","NNV","YOUR HEALTHCARE","Specialist Services"]